Body name,Date,Transaction number,Amount,Non recoverable VAT included in amount,Supplier name,Supplier ID,Expense area,Fund type,Expense type,Category description
Thanet District Council,05/07/2022,548244,-12900.53,,Kent County Council (Kcs),KCC003,Director Of Corp Gov/Mon Off,Revenue,Energy Costs,FACILITIES AND MANGEMENT SERV
Thanet District Council,19/07/2022,549712,-436.03,,Ecotricity Limited,ECO008,Dir Ops/Commercial Serv,Revenue,Energy Costs,UTILITIES
Thanet District Council,19/07/2022,549713,-421.96,,Ecotricity Limited,ECO008,Dir Ops/Commercial Serv,Revenue,Energy Costs,UTILITIES
Thanet District Council,19/07/2022,549714,-421.96,,Ecotricity Limited,ECO008,Dir Ops/Commercial Serv,Revenue,Energy Costs,UTILITIES
Thanet District Council,19/07/2022,549716,-436.03,,Ecotricity Limited,ECO008,Dir Ops/Commercial Serv,Revenue,Energy Costs,UTILITIES
Thanet District Council,19/07/2022,549717,-450.09,,Ecotricity Limited,ECO008,Dir Ops/Commercial Serv,Revenue,Energy Costs,UTILITIES
Thanet District Council,19/07/2022,549719,-436.03,,Ecotricity Limited,ECO008,Dir Ops/Commercial Serv,Revenue,Energy Costs,UTILITIES
Thanet District Council,19/07/2022,549721,-436.03,,Ecotricity Limited,ECO008,Dir Ops/Commercial Serv,Revenue,Energy Costs,UTILITIES
Thanet District Council,26/07/2022,550646,-7.5,,Ecotricity Limited,ECO008,Deputy Chief Executive/S151,Revenue,Energy Costs,UTILITIES
Thanet District Council,26/07/2022,550646,-799.71,,Ecotricity Limited,ECO008,Dir Ops/Commercial Serv,Revenue,Energy Costs,UTILITIES
Thanet District Council,26/07/2022,550647,-8,,Ecotricity Limited,ECO008,Deputy Chief Executive/S151,Revenue,Energy Costs,UTILITIES
Thanet District Council,26/07/2022,550647,-853.03,,Ecotricity Limited,ECO008,Dir Ops/Commercial Serv,Revenue,Energy Costs,UTILITIES
Thanet District Council,26/07/2022,550648,-7.78,,Ecotricity Limited,ECO008,Deputy Chief Executive/S151,Revenue,Energy Costs,UTILITIES
Thanet District Council,26/07/2022,550648,-826.34,,Ecotricity Limited,ECO008,Dir Ops/Commercial Serv,Revenue,Energy Costs,UTILITIES
Thanet District Council,26/07/2022,550649,-7.78,,Ecotricity Limited,ECO008,Deputy Chief Executive/S151,Revenue,Energy Costs,UTILITIES
Thanet District Council,26/07/2022,550649,-826.34,,Ecotricity Limited,ECO008,Dir Ops/Commercial Serv,Revenue,Energy Costs,UTILITIES
Thanet District Council,26/07/2022,550650,-7,,Ecotricity Limited,ECO008,Deputy Chief Executive/S151,Revenue,Energy Costs,UTILITIES
Thanet District Council,26/07/2022,550650,-746.4,,Ecotricity Limited,ECO008,Dir Ops/Commercial Serv,Revenue,Energy Costs,UTILITIES
Thanet District Council,26/07/2022,550651,-7.78,,Ecotricity Limited,ECO008,Deputy Chief Executive/S151,Revenue,Energy Costs,UTILITIES
Thanet District Council,26/07/2022,550651,-826.34,,Ecotricity Limited,ECO008,Dir Ops/Commercial Serv,Revenue,Energy Costs,UTILITIES
Thanet District Council,26/07/2022,550652,-7.52,,Ecotricity Limited,ECO008,Deputy Chief Executive/S151,Revenue,Energy Costs,UTILITIES
Thanet District Council,26/07/2022,550652,-799.69,,Ecotricity Limited,ECO008,Dir Ops/Commercial Serv,Revenue,Energy Costs,UTILITIES
Thanet District Council,26/07/2022,550653,-7.78,,Ecotricity Limited,ECO008,Deputy Chief Executive/S151,Revenue,Energy Costs,UTILITIES
Thanet District Council,26/07/2022,550653,-826.34,,Ecotricity Limited,ECO008,Dir Ops/Commercial Serv,Revenue,Energy Costs,UTILITIES
Thanet District Council,28/07/2022,550684,-592.67,,Mc Truck & Bus Ltd,MCT002,Dir Ops/Commercial Serv,Revenue,Direct Transport Costs,VEHICLE MANAGEMENT
Thanet District Council,05/07/2022,548647,900,,3 Temple Garden Fees,3TG001,Director Of Corp Gov/Mon Off,Revenue,Services,LEGAL SERVICES
Thanet District Council,05/07/2022,543974,2431.69,,Algeco Uk Limited,ELL015,Dir Ops/Commercial Serv,Revenue,"Equip, Furniture And Materials",FACILITIES AND MANGEMENT SERV
Thanet District Council,05/07/2022,545253,2431.69,,Algeco Uk Limited,ELL015,Dir Ops/Commercial Serv,Revenue,"Equip, Furniture And Materials",FACILITIES AND MANGEMENT SERV
Thanet District Council,05/07/2022,547275,2431.69,,Algeco Uk Limited,ELL015,Dir Ops/Commercial Serv,Revenue,"Equip, Furniture And Materials",FACILITIES AND MANGEMENT SERV
Thanet District Council,05/07/2022,549138,1250,,Redacted,LEW016,Deputy Chief Executive/S151,Revenue,Grants & Subscriptions,RENT DEPOSITS
Thanet District Council,05/07/2022,546925,1850,,Andrew Lane,LAN037,Dir Ops/Commercial Serv,Revenue,Services,LEGAL SERVICES
Thanet District Council,05/07/2022,548451,2503.49,,British Marine Federation,BRI002,Dir Ops/Commercial Serv,Revenue,Grants & Subscriptions,HUMAN RESOURCES
Thanet District Council,05/07/2022,548458,1500,,Browne Jacobson Llp,BRO080,Director of Corporate Resources and S151,Balance Sheet,Provisions-Future Settlement,LEGAL SERVICES
Thanet District Council,05/07/2022,548459,5212.4,,Browne Jacobson Llp,BRO080,Director of Corporate Resources and S151,Balance Sheet,Provisions-Future Settlement,LEGAL SERVICES
Thanet District Council,05/07/2022,548498,485,,Canon (Uk) Ltd,CAN021,Director Of Corp Gov/Mon Off,Revenue,"Print, Stat And Gen Off Exps",FACILITIES AND MANGEMENT SERV
Thanet District Council,05/07/2022,548499,1189.11,,Canon (Uk) Ltd,CAN021,Director Of Corp Gov/Mon Off,Revenue,"Print, Stat And Gen Off Exps",FACILITIES AND MANGEMENT SERV
Thanet District Council,05/07/2022,548576,743.73,,Ccs Media Limited,CCS003,Director of Corporate Resources and S151,Balance Sheet,Plant And Equipment,ICT
Thanet District Council,05/07/2022,548593,1095,,Community Safety Professional Training Ltd,COM044,Deputy Chief Executive/S151,Revenue,"Equip, Furniture And Materials",HUMAN RESOURCES
Thanet District Council,05/07/2022,548571,730,,Eagle Security Alarms Ltd,EAG005,Dir Ops/Commercial Serv,Revenue,"Equip, Furniture And Materials",FACILITIES AND MANGEMENT SERV
Thanet District Council,05/07/2022,548571,400,,Eagle Security Alarms Ltd,EAG005,Dir Ops/Commercial Serv,Revenue,"Repairs, Alter & Mtce - Build",FACILITIES AND MANGEMENT SERV
Thanet District Council,05/07/2022,545690,2028.99,,Ecotricity Limited,ECO008,Deputy Chief Executive/S151,Revenue,Energy Costs,UTILITIES
Thanet District Council,05/07/2022,547564,2096.64,,Ecotricity Limited,ECO008,Deputy Chief Executive/S151,Revenue,Energy Costs,UTILITIES
Thanet District Council,05/07/2022,547667,1180.72,,Ecotricity Limited,ECO008,Deputy Chief Executive/S151,Revenue,Energy Costs,UTILITIES
Thanet District Council,05/07/2022,547804,7.78,,Ecotricity Limited,ECO008,Deputy Chief Executive/S151,Revenue,Energy Costs,UTILITIES
Thanet District Council,05/07/2022,547804,826.34,,Ecotricity Limited,ECO008,Dir Ops/Commercial Serv,Revenue,Energy Costs,UTILITIES
Thanet District Council,05/07/2022,547808,436.03,,Ecotricity Limited,ECO008,Dir Ops/Commercial Serv,Revenue,Energy Costs,UTILITIES
Thanet District Council,05/07/2022,548585,541.03,,Ecotricity Limited,ECO008,Deputy Chief Executive/S151,Revenue,Energy Costs,UTILITIES
Thanet District Council,05/07/2022,548594,850,,Farah Ramzan,RAM050,Deputy Chief Executive/S151,Revenue,Services,LEGAL SERVICES
Thanet District Council,05/07/2022,548661,3550,,Firebrand Training Limited,FIR017,Deputy Chief Executive/S151,Revenue,Communications & Computing,HUMAN RESOURCES
Thanet District Council,05/07/2022,549053,9885,,Florence Court Hotel Ltd,FLO009,Deputy Chief Executive/S151,Revenue,Services,HOUSING MANAGEMENT
Thanet District Council,05/07/2022,548156,17683.54,,Gas Call Services Limited,GAS014,Director of Corporate Resources and S151,Balance Sheet,Repairs And Mtce Holding A/C,UTILITIES
Thanet District Council,05/07/2022,546650,1748,,Gas Contract Services Ltd,GAS004,Director of Corporate Resources and S151,Balance Sheet,Repairs And Mtce Holding A/C,CONSTRUCTION-REPAIR AND MAINT
Thanet District Council,05/07/2022,548581,800,,Howard Leithead,LEI011,Director Of Corp Gov/Mon Off,Revenue,Services,LEGAL SERVICES
Thanet District Council,05/07/2022,548606,1979.48,,Hr Go (Kent) Ltd,HRG001,Dir Ops/Commercial Serv,Revenue,Agency Staff,HUMAN RESOURCES
Thanet District Council,05/07/2022,548607,656.38,,Hr Go (Kent) Ltd,HRG001,Dir Ops/Commercial Serv,Revenue,Agency Staff,HUMAN RESOURCES
Thanet District Council,05/07/2022,548608,532.2,,Hr Go (Kent) Ltd,HRG001,Deputy Chief Executive/S151,Revenue,Agency Staff,HUMAN RESOURCES
Thanet District Council,05/07/2022,548506,8168.55,,Jentex Fuel Oils,JEN005,Dir Ops/Commercial Serv,Revenue,"Equip, Furniture And Materials",UTILITIES
Thanet District Council,05/07/2022,548686,7023.36,,Jentex Fuel Oils,JEN005,Dir Ops/Commercial Serv,Revenue,"Equip, Furniture And Materials",UTILITIES
Thanet District Council,05/07/2022,548179,3880.06,,Kent County Council (Kcs),KCC003,Director Of Corp Gov/Mon Off,Revenue,Energy Costs,FACILITIES AND MANGEMENT SERV
Thanet District Council,05/07/2022,548185,2246.63,,Kent County Council (Kcs),KCC003,Deputy Chief Executive/S151,Revenue,Energy Costs,FACILITIES AND MANGEMENT SERV
Thanet District Council,05/07/2022,548186,2310.03,,Kent County Council (Kcs),KCC003,Dir Ops/Commercial Serv,Revenue,Energy Costs,FACILITIES AND MANGEMENT SERV
Thanet District Council,05/07/2022,548187,1980.96,,Kent County Council (Kcs),KCC003,Director Of Corp Gov/Mon Off,Revenue,Energy Costs,FACILITIES AND MANGEMENT SERV
Thanet District Council,05/07/2022,548188,5588.85,,Kent County Council (Kcs),KCC003,Dir Ops/Commercial Serv,Revenue,Energy Costs,FACILITIES AND MANGEMENT SERV
Thanet District Council,05/07/2022,548190,1862.11,,Kent County Council (Kcs),KCC003,Director Of Corp Gov/Mon Off,Revenue,Energy Costs,FACILITIES AND MANGEMENT SERV
Thanet District Council,05/07/2022,548202,8657.24,,Kent County Council (Kcs),KCC003,Dir Ops/Commercial Serv,Revenue,Energy Costs,FACILITIES AND MANGEMENT SERV
Thanet District Council,05/07/2022,548237,3123.45,,Kent County Council (Kcs),KCC003,Dir Ops/Commercial Serv,Revenue,Energy Costs,FACILITIES AND MANGEMENT SERV
Thanet District Council,05/07/2022,548238,2368,,Kent County Council (Kcs),KCC003,Dir Ops/Commercial Serv,Revenue,Energy Costs,FACILITIES AND MANGEMENT SERV
Thanet District Council,05/07/2022,548239,3355.48,,Kent County Council (Kcs),KCC003,Dir Ops/Commercial Serv,Revenue,Energy Costs,FACILITIES AND MANGEMENT SERV
Thanet District Council,05/07/2022,548240,3759.05,,Kent County Council (Kcs),KCC003,Dir Ops/Commercial Serv,Revenue,Energy Costs,FACILITIES AND MANGEMENT SERV
Thanet District Council,05/07/2022,548241,12928.69,,Kent County Council (Kcs),KCC003,Director Of Corp Gov/Mon Off,Revenue,Energy Costs,FACILITIES AND MANGEMENT SERV
Thanet District Council,05/07/2022,548242,10315.34,,Kent County Council (Kcs),KCC003,Dir Ops/Commercial Serv,Revenue,Energy Costs,FACILITIES AND MANGEMENT SERV
Thanet District Council,05/07/2022,548243,12038.47,,Kent County Council (Kcs),KCC003,Director Of Corp Gov/Mon Off,Revenue,Energy Costs,FACILITIES AND MANGEMENT SERV
Thanet District Council,05/07/2022,548245,19050.95,,Kent County Council (Kcs),KCC003,Dir Ops/Commercial Serv,Revenue,Energy Costs,FACILITIES AND MANGEMENT SERV
Thanet District Council,05/07/2022,548794,27535.66,,Kompan Ltd,KOM001,Director of Corporate Resources and S151,Balance Sheet,Plant And Equipment,SPORTS PLAYGROUND EQUIPMENT
Thanet District Council,05/07/2022,548643,2500,,Lee Evans Partnership Llp,LEE007,Director of Corporate Resources and S151,Balance Sheet,Other Land And Buildings-Hra,CONSULTANCY
Thanet District Council,05/07/2022,548644,2500,,Lee Evans Partnership Llp,LEE007,Director of Corporate Resources and S151,Balance Sheet,Other Land And Buildings-Hra,CONSULTANCY
Thanet District Council,05/07/2022,549131,1000,,Lovetts Birchington Ltd,LOV006,Deputy Chief Executive/S151,Revenue,Grants & Subscriptions,RENT DEPOSITS
Thanet District Council,05/07/2022,548450,664.79,,Maitland Medical Service Limited,MAI010,Director Of Corp Gov/Mon Off,Revenue,Employee Related Schemes,HEALTHCARE
Thanet District Council,05/07/2022,548591,530.44,,Maitland Medical Service Limited,MAI010,Director Of Corp Gov/Mon Off,Revenue,Employee Related Schemes,HEALTHCARE
Thanet District Council,05/07/2022,548453,3990,,Margate Media Community Project Ltd,MAR118,Director Of Corp Gov/Mon Off,Revenue,Rents,FACILITIES AND MANGEMENT SERV
Thanet District Council,05/07/2022,538475,14889,,Mears Ltd,MEA003,Director of Corporate Resources and S151,Balance Sheet,Repairs And Mtce Holding A/C,CONSTRUCTION-REPAIR AND MAINT
Thanet District Council,05/07/2022,543674,6860.8,,Mears Ltd,MEA003,Director of Corporate Resources and S151,Balance Sheet,Repairs And Mtce Holding A/C,CONSTRUCTION-REPAIR AND MAINT
Thanet District Council,05/07/2022,545413,6860.8,,Mears Ltd,MEA003,Director of Corporate Resources and S151,Balance Sheet,Repairs And Mtce Holding A/C,CONSTRUCTION-REPAIR AND MAINT
Thanet District Council,05/07/2022,546412,23254.1,,Mears Ltd,MEA003,Director of Corporate Resources and S151,Balance Sheet,Repairs And Mtce Holding A/C,CONSTRUCTION-REPAIR AND MAINT
Thanet District Council,05/07/2022,548657,3159.35,,Michael Page Int Recruitment Ltd,PAG008,Deputy Chief Executive/S151,Revenue,Services,HUMAN RESOURCES
Thanet District Council,05/07/2022,548467,1157.36,,Nauticalia Limited,NAU001,Dir Ops/Commercial Serv,Revenue,"Equip, Furniture And Materials",STATIONERY
Thanet District Council,05/07/2022,548592,3698.17,,Paul Rogers,ROG010,Director Of Corp Gov/Mon Off,Revenue,Services,LEGAL SERVICES
Thanet District Council,05/07/2022,548582,834.1,,P D Minibuses,PDM001,Dir Ops/Commercial Serv,Revenue,Services,AGENCY PAYMENTS
Thanet District Council,05/07/2022,547871,640.9,,Posturite Ltd,POS010,Deputy Chief Executive/S151,Revenue,"Equip, Furniture And Materials",HEALTH AND SAFETY
Thanet District Council,05/07/2022,549134,1250,,Prospects Assured Uk Ltd,PRO032,Deputy Chief Executive/S151,Revenue,Grants & Subscriptions,RENT DEPOSITS
Thanet District Council,05/07/2022,549137,1750,,Prospects Assured Uk Ltd,PRO032,Deputy Chief Executive/S151,Revenue,Grants & Subscriptions,RENT DEPOSITS
Thanet District Council,05/07/2022,546923,4500,,Ranjit Bhose,BHO001,Deputy Chief Executive/S151,Revenue,Services,LEGAL SERVICES
Thanet District Council,05/07/2022,548172,717,,Rigour Survey South Limited,RIG015,Director of Corporate Resources and S151,Balance Sheet,Other Land And Buildings-Hra,CONSTRUCTION-REPAIR AND MAINT
Thanet District Council,05/07/2022,548173,717,,Rigour Survey South Limited,RIG015,Director of Corporate Resources and S151,Balance Sheet,Other Land And Buildings-Hra,CONSTRUCTION-REPAIR AND MAINT
Thanet District Council,05/07/2022,548059,2212.39,,Scottish Water Business Stream Ltd,SCO019,Dir Ops/Commercial Serv,Revenue,Water Services,UTILITIES
Thanet District Council,05/07/2022,548345,546.48,,Scottish Water Business Stream Ltd,SCO019,Dir Ops/Commercial Serv,Revenue,Water Services,UTILITIES
Thanet District Council,05/07/2022,548629,2980.46,,Scottish Water Business Stream Ltd,SCO019,Dir Ops/Commercial Serv,Revenue,Water Services,UTILITIES
Thanet District Council,05/07/2022,548630,911.93,,Scottish Water Business Stream Ltd,SCO019,Dir Ops/Commercial Serv,Revenue,Water Services,UTILITIES
Thanet District Council,05/07/2022,548641,521.27,,Scottish Water Business Stream Ltd,SCO019,Dir Ops/Commercial Serv,Revenue,Water Services,UTILITIES
Thanet District Council,05/07/2022,549132,48880,,Serveco Holdings Limited,SER010,Deputy Chief Executive/S151,Revenue,Grants & Subscriptions,GRANTS
Thanet District Council,05/07/2022,548174,709.5,,Spaldings Ltd,SPA006,Dir Ops/Commercial Serv,Revenue,"Equip, Furniture And Materials",HORTICULTURAL
Thanet District Council,05/07/2022,548454,1421.68,,Tfa Fuel Services Ltd,TFA003,Dir Ops/Commercial Serv,Revenue,"Equip, Furniture And Materials",UTILITIES
Thanet District Council,05/07/2022,549133,951.99,,The Riverside Group,RIV007,Deputy Chief Executive/S151,Revenue,Grants & Subscriptions,RENT DEPOSITS
Thanet District Council,05/07/2022,546716,12479.18,,Town & Country Cleaners Ltd,TOW002,Director of Corporate Resources and S151,Balance Sheet,Repairs And Mtce Holding A/C,CLEANING AND JANITORIAL
Thanet District Council,05/07/2022,548145,7010,,Uk Container Maintenance Ltd,UKC001,Dir Ops/Commercial Serv,Revenue,"Equip, Furniture And Materials",ENVIRONMENTAL SERVICES
Thanet District Council,05/07/2022,548460,8800.8,,Your Leisure Kent Limited,YOU016,Dir Ops/Commercial Serv,Revenue,Services,ARTS AND LEISURE SERVICES
Thanet District Council,05/07/2022,548513,4351,,Zoho Corporation B.V,ZOH002,East Kent Shared Services,Revenue,Communications & Computing,ICT
Thanet District Council,06/07/2022,548256,591.17,,Allstar Business Solutions Ltd,ALL038,Dir Ops/Commercial Serv,Revenue,Direct Transport Costs,VEHICLE MANAGEMENT
Thanet District Council,06/07/2022,548500,623.57,,Allstar Business Solutions Ltd,ALL038,Dir Ops/Commercial Serv,Revenue,Direct Transport Costs,VEHICLE MANAGEMENT
Thanet District Council,06/07/2022,548956,530.68,,Allstar Business Solutions Ltd,ALL038,Dir Ops/Commercial Serv,Revenue,Direct Transport Costs,VEHICLE MANAGEMENT
Thanet District Council,07/07/2022,549151,2431.69,,Algeco Uk Limited,ELL015,Dir Ops/Commercial Serv,Revenue,"Equip, Furniture And Materials",FACILITIES AND MANGEMENT SERV
Thanet District Council,07/07/2022,549321,983.19,,Anderson Smith Law Limited,AND100,Deputy Chief Executive/S151,Revenue,Other Transfer Payments,NON TRADE PAYEE
Thanet District Council,07/07/2022,549278,5734.46,,Atwell Martin Property Management Ltd,ATW001,Deputy Chief Executive/S151,Revenue,Grants & Subscriptions,GRANTS
Thanet District Council,07/07/2022,548835,1201.32,,Bartec Municipal Technologies Limited,BAR070,Director of Corporate Resources and S151,Balance Sheet,Plant And Equipment,ENVIRONMENTAL SERVICES
Thanet District Council,07/07/2022,548809,1762.2,,Bowman Maintenance Contracting,BMC001,Dir Ops/Commercial Serv,Revenue,"Repairs, Alter & Mtce - Build",BUILDING CONSTRUCTION MATERIAL
Thanet District Council,07/07/2022,549140,18346,,Briggs Marine Contractors Ltd,BRI049,Dir Ops/Commercial Serv,Revenue,"Equip, Furniture And Materials",MARITIME SERVICES
Thanet District Council,07/07/2022,549054,1750,,Bsf Consulting Engineers Ltd,BSF001,Director of Corporate Resources and S151,Balance Sheet,Repairs And Mtce Holding A/C,CONSULTANCY
Thanet District Council,07/07/2022,548018,650,,Channel Commercials Plc,CCO001,Dir Ops/Commercial Serv,Revenue,Direct Transport Costs,VEHICLE MANAGEMENT
Thanet District Council,07/07/2022,548878,3500,,Charles & Associate Consulting Engineers Ltd,CHA076,Director of Corporate Resources and S151,Balance Sheet,Other Land And Buildings-Hra,CONSULTANCY
Thanet District Council,07/07/2022,548512,44131.98,,Civica Uk Ltd,CIV003,East Kent Shared Services,Revenue,Private Contractors,ICT
Thanet District Council,07/07/2022,549086,1813951.99,,Civica Uk Ltd,CIV003,East Kent Shared Services,Revenue,Private Contractors,ICT
Thanet District Council,07/07/2022,549292,636,,Collier Stevens Practice,COL038,Director of Corporate Resources and S151,Balance Sheet,Capital Exp-Non Council Assets,GRANTS
Thanet District Council,07/07/2022,547487,1622.92,,Dennis Eagle Limited,TER011,Dir Ops/Commercial Serv,Revenue,Direct Transport Costs,VEHICLE MANAGEMENT
Thanet District Council,07/07/2022,548468,1103.93,,Dennis Eagle Limited,TER011,Dir Ops/Commercial Serv,Revenue,Direct Transport Costs,VEHICLE MANAGEMENT
Thanet District Council,07/07/2022,549289,16000,,Dolphin Lifts Kent,DOL003,Director of Corporate Resources and S151,Balance Sheet,Capital Exp-Non Council Assets,GRANTS
Thanet District Council,07/07/2022,547274,417.27,,East Kent Components Ltd,EKC006,Dir Ops/Commercial Serv,Revenue,Direct Transport Costs,VEHICLE MANAGEMENT
Thanet District Council,07/07/2022,549297,54819,,Ekc Group,EKC007,Director of Corporate Resources and S151,Balance Sheet,Capital Exp-Non Council Assets,HUMAN RESOURCES
Thanet District Council,07/07/2022,546677,1020,,Envirocure Ltd,ENV011,Director of Corporate Resources and S151,Balance Sheet,Repairs And Mtce Holding A/C,FACILITIES AND MANGEMENT SERV
Thanet District Council,07/07/2022,548656,649.82,,Envirowaste Solutions Uk Ltd,ENV019,Dir Ops/Commercial Serv,Revenue,Services,HUMAN RESOURCES
Thanet District Council,07/07/2022,549094,716.96,,Ernest Doe & Sons Ltd,ERN003,Dir Ops/Commercial Serv,Revenue,"Equip, Furniture And Materials",HORTICULTURAL
Thanet District Council,07/07/2022,549285,6687.09,,Evermech Services Ltd,EVE011,Director of Corporate Resources and S151,Balance Sheet,Capital Exp-Non Council Assets,GRANTS
Thanet District Council,07/07/2022,549287,838.83,,Evermech Services Ltd,EVE011,Director of Corporate Resources and S151,Balance Sheet,Capital Exp-Non Council Assets,GRANTS
Thanet District Council,07/07/2022,549293,11541,,Evermech Services Ltd,EVE011,Director of Corporate Resources and S151,Balance Sheet,Capital Exp-Non Council Assets,GRANTS
Thanet District Council,07/07/2022,549294,6720,,Evermech Services Ltd,EVE011,Director of Corporate Resources and S151,Balance Sheet,Capital Exp-Non Council Assets,GRANTS
Thanet District Council,07/07/2022,548444,25750,,Firebrand Training Limited,FIR017,East Kent Shared Services,Revenue,Training,HUMAN RESOURCES
Thanet District Council,07/07/2022,548931,798,,Four Jays Ltd,FOU007,Dir Ops/Commercial Serv,Revenue,Services,ARTS AND LEISURE SERVICES
Thanet District Council,07/07/2022,548932,462,,Four Jays Ltd,FOU007,Dir Ops/Commercial Serv,Revenue,Services,ARTS AND LEISURE SERVICES
Thanet District Council,07/07/2022,549068,744,,Four Jays Ltd,FOU007,Dir Ops/Commercial Serv,Revenue,Services,ARTS AND LEISURE SERVICES
Thanet District Council,07/07/2022,549071,808,,Four Jays Ltd,FOU007,Dir Ops/Commercial Serv,Revenue,Services,ARTS AND LEISURE SERVICES
Thanet District Council,07/07/2022,549073,544,,Four Jays Ltd,FOU007,Dir Ops/Commercial Serv,Revenue,Services,ARTS AND LEISURE SERVICES
Thanet District Council,07/07/2022,549077,544,,Four Jays Ltd,FOU007,Dir Ops/Commercial Serv,Revenue,Services,ARTS AND LEISURE SERVICES
Thanet District Council,07/07/2022,549079,680,,Four Jays Ltd,FOU007,Dir Ops/Commercial Serv,Revenue,Services,ARTS AND LEISURE SERVICES
Thanet District Council,07/07/2022,549082,816,,Four Jays Ltd,FOU007,Dir Ops/Commercial Serv,Revenue,Services,ARTS AND LEISURE SERVICES
Thanet District Council,07/07/2022,548597,4573,,Groundsure Limited,GRO023,Deputy Chief Executive/S151,Revenue,Services,CONSTRUCTION-REPAIR AND MAINT
Thanet District Council,07/07/2022,549291,11202.22,,G & W Gardner Building Cont Ltd,GAR001,Director of Corporate Resources and S151,Balance Sheet,Capital Exp-Non Council Assets,GRANTS
Thanet District Council,07/07/2022,549281,7238,,Higher Elevation Limited,HIG010,Director of Corporate Resources and S151,Balance Sheet,Capital Exp-Non Council Assets,GRANTS
Thanet District Council,07/07/2022,548259,3592.5,,Hr Go (Kent) Ltd,HRG001,Dir Ops/Commercial Serv,Revenue,Agency Staff,HUMAN RESOURCES
Thanet District Council,07/07/2022,548260,2258.28,,Hr Go (Kent) Ltd,HRG001,Dir Ops/Commercial Serv,Revenue,Agency Staff,HUMAN RESOURCES
Thanet District Council,07/07/2022,548266,8182.37,,Hr Go (Kent) Ltd,HRG001,Dir Ops/Commercial Serv,Revenue,Agency Staff,HUMAN RESOURCES
Thanet District Council,07/07/2022,548268,2426.11,,Hr Go (Kent) Ltd,HRG001,Dir Ops/Commercial Serv,Revenue,Agency Staff,HUMAN RESOURCES
Thanet District Council,07/07/2022,548269,1826.15,,Hr Go (Kent) Ltd,HRG001,Dir Ops/Commercial Serv,Revenue,Agency Staff,HUMAN RESOURCES
Thanet District Council,07/07/2022,548271,550.64,,Hr Go (Kent) Ltd,HRG001,Dir Ops/Commercial Serv,Revenue,Agency Staff,HUMAN RESOURCES
Thanet District Council,07/07/2022,548600,912.24,,Hr Go (Kent) Ltd,HRG001,Dir Ops/Commercial Serv,Revenue,Agency Staff,HUMAN RESOURCES
Thanet District Council,07/07/2022,548601,2971.46,,Hr Go (Kent) Ltd,HRG001,Dir Ops/Commercial Serv,Revenue,Agency Staff,HUMAN RESOURCES
Thanet District Council,07/07/2022,548602,2498.5,,Hr Go (Kent) Ltd,HRG001,Dir Ops/Commercial Serv,Revenue,Agency Staff,HUMAN RESOURCES
Thanet District Council,07/07/2022,548603,9742.05,,Hr Go (Kent) Ltd,HRG001,Dir Ops/Commercial Serv,Revenue,Agency Staff,HUMAN RESOURCES
Thanet District Council,07/07/2022,549113,2139.79,,Hr Go (Kent) Ltd,HRG001,Dir Ops/Commercial Serv,Revenue,Agency Staff,HUMAN RESOURCES
Thanet District Council,07/07/2022,549115,656.38,,Hr Go (Kent) Ltd,HRG001,Dir Ops/Commercial Serv,Revenue,Agency Staff,HUMAN RESOURCES
Thanet District Council,07/07/2022,549119,2474.35,,Hr Go (Kent) Ltd,HRG001,Dir Ops/Commercial Serv,Revenue,Agency Staff,HUMAN RESOURCES
Thanet District Council,07/07/2022,549120,1868.51,,Hr Go (Kent) Ltd,HRG001,Dir Ops/Commercial Serv,Revenue,Agency Staff,HUMAN RESOURCES
Thanet District Council,07/07/2022,549121,511.1,,Hr Go (Kent) Ltd,HRG001,Dir Ops/Commercial Serv,Revenue,Agency Staff,HUMAN RESOURCES
Thanet District Council,07/07/2022,549124,3700.26,,Hr Go (Kent) Ltd,HRG001,Dir Ops/Commercial Serv,Revenue,Agency Staff,HUMAN RESOURCES
Thanet District Council,07/07/2022,548361,4500,,Imperial Civil Enforcement Sols Ltd,IMP008,Dir Ops/Commercial Serv,Revenue,"Equip, Furniture And Materials",STREET AND TRAFFIC MANAGEMENT
Thanet District Council,07/07/2022,548987,8658.14,,Jentex Fuel Oils,JEN005,Dir Ops/Commercial Serv,Revenue,"Equip, Furniture And Materials",UTILITIES
Thanet District Council,07/07/2022,548461,1312.5,,Jne Security Ltd,JNE002,Dir Ops/Commercial Serv,Revenue,"Equip, Furniture And Materials",FACILITIES AND MANGEMENT SERV
Thanet District Council,07/07/2022,549284,941.2,,John Gale,GAL001,Director of Corporate Resources and S151,Balance Sheet,Capital Exp-Non Council Assets,GRANTS
Thanet District Council,07/07/2022,549290,1400,,John Gale,GAL001,Director of Corporate Resources and S151,Balance Sheet,Capital Exp-Non Council Assets,GRANTS
Thanet District Council,07/07/2022,549279,1300,,Lovetts Birchington Ltd,LOV006,Deputy Chief Executive/S151,Revenue,Grants & Subscriptions,RENT DEPOSITS
Thanet District Council,07/07/2022,549322,1500,,REDACTED,CHO005,Deputy Chief Executive/S151,Revenue,Grants & Subscriptions,RENT ALLOWANCES
Thanet District Council,07/07/2022,547049,6646.4,,Mears Ltd,MEA003,Director of Corporate Resources and S151,Balance Sheet,Repairs And Mtce Holding A/C,CONSTRUCTION-REPAIR AND MAINT
Thanet District Council,07/07/2022,547052,797.36,,Mears Ltd,MEA003,Director of Corporate Resources and S151,Balance Sheet,Repairs And Mtce Holding A/C,CONSTRUCTION-REPAIR AND MAINT
Thanet District Council,07/07/2022,549233,110145.66,,Mears Ltd,MEA003,Deputy Chief Executive/S151,Revenue,"Repairs, Alter & Mtce - Build",CONSTRUCTION-REPAIR AND MAINT
Thanet District Council,07/07/2022,548998,3080,,Munihire Limited,MUN012,Dir Ops/Commercial Serv,Revenue,Cont Hire & Operating Lease,VEHICLE MANAGEMENT
Thanet District Council,07/07/2022,549109,864.71,,National Express Ltd,NAT010,Dir Ops/Commercial Serv,Revenue,Services,AGENCY PAYMENTS
Thanet District Council,07/07/2022,548947,4860,,Probe Limited,PRO040,Dir Ops/Commercial Serv,Revenue,Services,STREET AND TRAFFIC MANAGEMENT
Thanet District Council,07/07/2022,548951,1820,,Probe Limited,PRO040,Dir Ops/Commercial Serv,Revenue,Services,STREET AND TRAFFIC MANAGEMENT
Thanet District Council,07/07/2022,548952,1820,,Probe Limited,PRO040,Dir Ops/Commercial Serv,Revenue,Services,STREET AND TRAFFIC MANAGEMENT
Thanet District Council,07/07/2022,548963,4860,,Probe Limited,PRO040,Dir Ops/Commercial Serv,Revenue,Services,STREET AND TRAFFIC MANAGEMENT
Thanet District Council,07/07/2022,548907,20801.94,,Profile Security Services Limited,PRO018,Dir Ops/Commercial Serv,Revenue,Services,FACILITIES AND MANGEMENT SERV
Thanet District Council,07/07/2022,548620,1375,,Rigby Taylor Ltd,RIG002,Dir Ops/Commercial Serv,Revenue,"Equip, Furniture And Materials",HORTICULTURAL
Thanet District Council,07/07/2022,549061,4698.58,,Robert West Consulting Ltd,WES057,Director of Corporate Resources and S151,Balance Sheet,Plant And Equipment,MARITIME SERVICES
Thanet District Council,07/07/2022,549275,2619.1,,Scottish Water Business Stream Ltd,SCO019,Dir Ops/Commercial Serv,Revenue,Water Services,UTILITIES
Thanet District Council,07/07/2022,549276,6580.86,,Scottish Water Business Stream Ltd,SCO019,Dir Ops/Commercial Serv,Revenue,Water Services,UTILITIES
Thanet District Council,07/07/2022,549139,4250,,Tavcom Limited,TAV002,Dir Ops/Commercial Serv,Revenue,Training,HUMAN RESOURCES
Thanet District Council,07/07/2022,548834,1156.4,,Tennants Distribution Limited,TEN005,Dir Ops/Commercial Serv,Revenue,Direct Transport Costs,VEHICLE MANAGEMENT
Thanet District Council,07/07/2022,548796,1712.4,,Total Supplies Ltd,TOT009,Dir Ops/Commercial Serv,Revenue,"Equip, Furniture And Materials",CLEANING AND JANITORIAL
Thanet District Council,07/07/2022,549282,812.56,,Town & Country Housing,TOW009,Director of Corporate Resources and S151,Balance Sheet,Capital Exp-Non Council Assets,GRANTS
Thanet District Council,07/07/2022,549286,1530.25,,Town & Country Housing,TOW009,Director of Corporate Resources and S151,Balance Sheet,Capital Exp-Non Council Assets,GRANTS
Thanet District Council,07/07/2022,549288,1010.18,,Town & Country Housing,TOW009,Director of Corporate Resources and S151,Balance Sheet,Capital Exp-Non Council Assets,GRANTS
Thanet District Council,07/07/2022,549272,15000,,True Compliance Limited,TRU017,Deputy Chief Executive/S151,Revenue,Communications & Computing,ICT
Thanet District Council,07/07/2022,549283,8310.27,,Trueden Disability Adaptations Ltd,TRU012,Director of Corporate Resources and S151,Balance Sheet,Capital Exp-Non Council Assets,GRANTS
Thanet District Council,07/07/2022,548464,20250,,Weir & Carmichael Limited,WEI004,Dir Ops/Commercial Serv,Revenue,"Equip, Furniture And Materials",ENVIRONMENTAL SERVICES
Thanet District Council,07/07/2022,548157,700,,Ws Cole & Sons Limited,WSC001,Dir Ops/Commercial Serv,Revenue,Services,CEMETERY AND CREMATORIUM
Thanet District Council,07/07/2022,548158,700,,Ws Cole & Sons Limited,WSC001,Dir Ops/Commercial Serv,Revenue,Services,CEMETERY AND CREMATORIUM
Thanet District Council,07/07/2022,548879,700,,Ws Cole & Sons Limited,WSC001,Dir Ops/Commercial Serv,Revenue,Services,CEMETERY AND CREMATORIUM
Thanet District Council,07/07/2022,548888,700,,Ws Cole & Sons Limited,WSC001,Dir Ops/Commercial Serv,Revenue,Services,CEMETERY AND CREMATORIUM
Thanet District Council,07/07/2022,548957,700,,Ws Cole & Sons Limited,WSC001,Dir Ops/Commercial Serv,Revenue,Services,CEMETERY AND CREMATORIUM
Thanet District Council,07/07/2022,548984,700,,Ws Cole & Sons Limited,WSC001,Dir Ops/Commercial Serv,Revenue,Services,CEMETERY AND CREMATORIUM
Thanet District Council,07/07/2022,548985,700,,Ws Cole & Sons Limited,WSC001,Dir Ops/Commercial Serv,Revenue,Services,CEMETERY AND CREMATORIUM
Thanet District Council,12/07/2022,549759,1100,,Bsf Consulting Engineers Ltd,BSF001,Director of Corporate Resources and S151,Balance Sheet,Insurance Holding Account,CONSULTANCY
Thanet District Council,12/07/2022,549096,14545,,Canterbury City Council,CAN004,East Kent Shared Services,Revenue,Grants & Subscriptions,VARIOUS CATS-PUBLIC SECTOR
Thanet District Council,12/07/2022,549007,1085.06,,Crystal Facilities Management Services,CRY003,Director Of Corp Gov/Mon Off,Revenue,Cleaning & Domestic Supplies,CLEANING AND JANITORIAL
Thanet District Council,12/07/2022,547296,5505.98,,Dennis Eagle Limited,TER011,Dir Ops/Commercial Serv,Revenue,Direct Transport Costs,VEHICLE MANAGEMENT
Thanet District Council,12/07/2022,547317,673.7,,Dennis Eagle Ltd,DEN005,Dir Ops/Commercial Serv,Revenue,Direct Transport Costs,VEHICLE MANAGEMENT
Thanet District Council,12/07/2022,548924,537.24,,Dennis Eagle Ltd,DEN005,Dir Ops/Commercial Serv,Revenue,Direct Transport Costs,VEHICLE MANAGEMENT
Thanet District Council,12/07/2022,549089,429.64,,Dennis Eagle Ltd,DEN005,Dir Ops/Commercial Serv,Revenue,Direct Transport Costs,VEHICLE MANAGEMENT
Thanet District Council,12/07/2022,549018,1350,,Dixon Searle Partnership Limited,DIX007,Deputy Chief Executive/S151,Revenue,Services,CONSULTANCY
Thanet District Council,12/07/2022,549768,34850,,Dover District Council,DOV001,Director Of Corp Gov/Mon Off,Revenue,Services,VARIOUS CATS-PUBLIC SECTOR
Thanet District Council,12/07/2022,549674,1616.5,,Dr S Khemani,KHE001,Dir Ops/Commercial Serv,Revenue,Services,HEALTHCARE
Thanet District Council,12/07/2022,547146,431.78,,East Kent Components Ltd,EKC006,Dir Ops/Commercial Serv,Revenue,Direct Transport Costs,VEHICLE MANAGEMENT
Thanet District Council,12/07/2022,547572,706.45,,Ecotricity Limited,ECO008,Deputy Chief Executive/S151,Revenue,Energy Costs,UTILITIES
Thanet District Council,12/07/2022,549448,2478.49,,Ecotricity Limited,ECO008,Deputy Chief Executive/S151,Revenue,Energy Costs,UTILITIES
Thanet District Council,12/07/2022,549718,3839.85,,Ecotricity Limited,ECO008,Dir Ops/Commercial Serv,Revenue,Energy Costs,UTILITIES
Thanet District Council,12/07/2022,549711,0,,Firebrand Training Limited,FIR017,East Kent Shared Services,Revenue,Training,HUMAN RESOURCES
Thanet District Council,12/07/2022,549045,3292.26,,Flowbird Smart City Uk Limited,FLO011,Dir Ops/Commercial Serv,Revenue,Communications & Computing,STREET AND TRAFFIC MANAGEMENT
Thanet District Council,12/07/2022,548586,2367.12,,Haynes Of Maidstone Ltd,HAY008,Dir Ops/Commercial Serv,Revenue,Direct Transport Costs,VEHICLE MANAGEMENT
Thanet District Council,12/07/2022,549063,904.9,,Hi Way Services Ltd,HIW002,Dir Ops/Commercial Serv,Revenue,"Repairs, Alter & Mtce - Build",HIGHWAY EQUIPMENT AND MATERIAL
Thanet District Council,12/07/2022,549710,10000,,H M Courts & Tribunal Service,HMC007,Dir Ops/Commercial Serv,Revenue,Services,GOVERNMENT AGENCIES
Thanet District Council,12/07/2022,542817,450.68,,Hr Go (Kent) Ltd,HRG001,Dir Ops/Commercial Serv,Revenue,Agency Staff,HUMAN RESOURCES
Thanet District Council,12/07/2022,544923,648.6,,Hr Go (Kent) Ltd,HRG001,Dir Ops/Commercial Serv,Revenue,Agency Staff,HUMAN RESOURCES
Thanet District Council,12/07/2022,545186,648.6,,Hr Go (Kent) Ltd,HRG001,Dir Ops/Commercial Serv,Revenue,Agency Staff,HUMAN RESOURCES
Thanet District Council,12/07/2022,545238,810.75,,Hr Go (Kent) Ltd,HRG001,Dir Ops/Commercial Serv,Revenue,Agency Staff,HUMAN RESOURCES
Thanet District Council,12/07/2022,545565,648.6,,Hr Go (Kent) Ltd,HRG001,Dir Ops/Commercial Serv,Revenue,Agency Staff,HUMAN RESOURCES
Thanet District Council,12/07/2022,546268,810.75,,Hr Go (Kent) Ltd,HRG001,Dir Ops/Commercial Serv,Revenue,Agency Staff,HUMAN RESOURCES
Thanet District Council,12/07/2022,546632,810.75,,Hr Go (Kent) Ltd,HRG001,Dir Ops/Commercial Serv,Revenue,Agency Staff,HUMAN RESOURCES
Thanet District Council,12/07/2022,547501,486.45,,Hr Go (Kent) Ltd,HRG001,Dir Ops/Commercial Serv,Revenue,Agency Staff,HUMAN RESOURCES
Thanet District Council,12/07/2022,548264,1749.52,,Hr Go (Kent) Ltd,HRG001,Dir Ops/Commercial Serv,Revenue,Agency Staff,HUMAN RESOURCES
Thanet District Council,12/07/2022,548265,1206.09,,Hr Go (Kent) Ltd,HRG001,Dir Ops/Commercial Serv,Revenue,Agency Staff,HUMAN RESOURCES
Thanet District Council,12/07/2022,548605,1193.54,,Hr Go (Kent) Ltd,HRG001,Dir Ops/Commercial Serv,Revenue,Agency Staff,HUMAN RESOURCES
Thanet District Council,12/07/2022,548610,2049.18,,Hr Go (Kent) Ltd,HRG001,Dir Ops/Commercial Serv,Revenue,Agency Staff,HUMAN RESOURCES
Thanet District Council,12/07/2022,549116,665.25,,Hr Go (Kent) Ltd,HRG001,Deputy Chief Executive/S151,Revenue,Agency Staff,HUMAN RESOURCES
Thanet District Council,12/07/2022,549117,1408.31,,Hr Go (Kent) Ltd,HRG001,Dir Ops/Commercial Serv,Revenue,Agency Staff,HUMAN RESOURCES
Thanet District Council,12/07/2022,549649,1448.49,,Kent County Council,KCC002,Director of Corporate Resources and S151,Balance Sheet,Capital Exp-Non Council Assets,VARIOUS CATS-PUBLIC SECTOR
Thanet District Council,12/07/2022,549247,13500,,Kent Fire & Rescue Service,KFI002,Dir Ops/Commercial Serv,Revenue,Services,VARIOUS CATS-PUBLIC SECTOR
Thanet District Council,12/07/2022,549049,624,,Lyreco Uk Limited,LYR001,Director Of Corp Gov/Mon Off,Revenue,"Print, Stat And Gen Off Exps",STATIONERY
Thanet District Council,12/07/2022,548575,4211.88,,Marine Management Organisation,MAR088,Director of Corporate Resources and S151,Balance Sheet,Plant And Equipment,MARITIME SERVICES
Thanet District Council,12/07/2022,549057,867.14,,Mark One Hire Ltd,MAR121,Dir Ops/Commercial Serv,Revenue,"Equip, Furniture And Materials",HORTICULTURAL
Thanet District Council,12/07/2022,548992,505.69,,Mears Ltd,MEA003,Director Of Corp Gov/Mon Off,Revenue,"Repairs, Alter & Mtce - Build",CONSTRUCTION-REPAIR AND MAINT
Thanet District Council,12/07/2022,548992,574.73,,Mears Ltd,MEA003,Dir Ops/Commercial Serv,Revenue,"Repairs, Alter & Mtce - Build",CONSTRUCTION-REPAIR AND MAINT
Thanet District Council,12/07/2022,548457,49850,,Ovenden Allworks Limited,OVE008,Dir Ops/Commercial Serv,Revenue,"Repairs, Alter & Mtce - Build",CONSTRUCTION-REPAIR AND MAINT
Thanet District Council,12/07/2022,548914,25050,,Ovenden Allworks Limited,OVE008,Dir Ops/Commercial Serv,Revenue,"Repairs, Alter & Mtce - Build",CONSTRUCTION-REPAIR AND MAINT
Thanet District Council,12/07/2022,548915,2688.37,,Ovenden Allworks Limited,OVE008,Dir Ops/Commercial Serv,Revenue,"Repairs, Alter & Mtce - Build",CONSTRUCTION-REPAIR AND MAINT
Thanet District Council,12/07/2022,548916,23305.54,,Ovenden Allworks Limited,OVE008,Dir Ops/Commercial Serv,Revenue,"Repairs, Alter & Mtce - Build",CONSTRUCTION-REPAIR AND MAINT
Thanet District Council,12/07/2022,548960,600,,Page Plan Prints,PAG009,Deputy Chief Executive/S151,Revenue,"Print, Stat And Gen Off Exps",FACILITIES AND MANGEMENT SERV
Thanet District Council,12/07/2022,548356,13600,,Pentest People Limited,PEN015,East Kent Shared Services,Revenue,Communications & Computing,ICT
Thanet District Council,12/07/2022,548690,2340,,Premier Signs,PRE027,Deputy Chief Executive/S151,Revenue,"Equip, Furniture And Materials",BUILDING CONSTRUCTION MATERIAL
Thanet District Council,12/07/2022,548908,1446.97,,Profile Security Services Limited,PRO018,Director Of Corp Gov/Mon Off,Revenue,Services,FACILITIES AND MANGEMENT SERV
Thanet District Council,12/07/2022,549755,1250,,Prospects Assured Uk Ltd,PRO032,Deputy Chief Executive/S151,Revenue,Grants & Subscriptions,RENT DEPOSITS
Thanet District Council,12/07/2022,545157,74208.98,,Royal National Lifeboat Institution,RNL002,Dir Ops/Commercial Serv,Revenue,Services,ARTS AND LEISURE SERVICES
Thanet District Council,12/07/2022,548895,5568.21,,Scottish Water Business Stream Ltd,SCO019,Dir Ops/Commercial Serv,Revenue,Water Services,UTILITIES
Thanet District Council,12/07/2022,549304,574.81,,Scottish Water Business Stream Ltd,SCO019,Dir Ops/Commercial Serv,Revenue,Water Services,UTILITIES
Thanet District Council,12/07/2022,549312,2265.88,,Scottish Water Business Stream Ltd,SCO019,Dir Ops/Commercial Serv,Revenue,Water Services,UTILITIES
Thanet District Council,12/07/2022,549680,3025.04,,Scottish Water Business Stream Ltd,SCO019,Dir Ops/Commercial Serv,Revenue,Water Services,UTILITIES
Thanet District Council,12/07/2022,546610,540.66,,Smi Int Group Ltd,SMI055,Dir Ops/Commercial Serv,Revenue,"Clothes, Uniforms & Laundry",CLOTHING
Thanet District Council,12/07/2022,546778,1320,,Smi Int Group Ltd,SMI055,Dir Ops/Commercial Serv,Revenue,"Clothes, Uniforms & Laundry",CLOTHING
Thanet District Council,12/07/2022,547080,589.4,,Smi Int Group Ltd,SMI055,Dir Ops/Commercial Serv,Revenue,"Clothes, Uniforms & Laundry",CLOTHING
Thanet District Council,12/07/2022,549055,432.3,,Smi Int Group Ltd,SMI055,Deputy Chief Executive/S151,Revenue,"Clothes, Uniforms & Laundry",CLOTHING
Thanet District Council,12/07/2022,549753,725.1,,Steven Mayhew,MAY043,Deputy Chief Executive/S151,Revenue,Grants & Subscriptions,RENT DEPOSITS
Thanet District Council,12/07/2022,549754,750,,Steven Mayhew,MAY043,Deputy Chief Executive/S151,Revenue,Grants & Subscriptions,RENT DEPOSITS
Thanet District Council,12/07/2022,548887,1602.27,,The Oyster Partnership Ltd,OYS001,Director Of Corp Gov/Mon Off,Revenue,Services,HUMAN RESOURCES
Thanet District Council,12/07/2022,549750,1990,,Vibrant Group Yorkshire Limited,VIB001,Deputy Chief Executive/S151,Revenue,Services,RENT ALLOWANCES
Thanet District Council,12/07/2022,549751,1990,,Vibrant Group Yorkshire Limited,VIB001,Deputy Chief Executive/S151,Revenue,Services,RENT ALLOWANCES
Thanet District Council,14/07/2022,548893,3000,,Aaron Walder,WAL039,Deputy Chief Executive/S151,Revenue,Services,LEGAL SERVICES
Thanet District Council,14/07/2022,549421,2169.6,,Browne Jacobson Llp,BRO080,Director of Corporate Resources and S151,Balance Sheet,Provisions-Future Settlement,LEGAL SERVICES
Thanet District Council,14/07/2022,549473,20504.8,,Browne Jacobson Llp,BRO080,Director of Corporate Resources and S151,Balance Sheet,Provisions-Future Settlement,LEGAL SERVICES
Thanet District Council,14/07/2022,549738,5439,,Broxap Limited,BRO052,Director of Corporate Resources and S151,Balance Sheet,Other Land And Buildings-Hra,BUILDING CONSTRUCTION MATERIAL
Thanet District Council,14/07/2022,549926,7339,,Broxap Limited,BRO052,Director of Corporate Resources and S151,Balance Sheet,Other Land And Buildings-Hra,BUILDING CONSTRUCTION MATERIAL
Thanet District Council,14/07/2022,549964,2000,,Cedar Housing Solutions Limited,CED007,Deputy Chief Executive/S151,Revenue,Grants & Subscriptions,SPECIAL COMMUNITY CARE
Thanet District Council,14/07/2022,549264,538.75,,Corgi Technical Services Limited,COR009,Deputy Chief Executive/S151,Revenue,Communications & Computing,FINANCIAL SERVICES
Thanet District Council,14/07/2022,549237,4400,,Dentaid Limited,DEN016,Deputy Chief Executive/S151,Revenue,Grants & Subscriptions,GRANTS
Thanet District Council,14/07/2022,543598,764.67,,Ecotricity Limited,ECO008,Dir Ops/Commercial Serv,Revenue,Energy Costs,UTILITIES
Thanet District Council,14/07/2022,549441,962.93,,Ecotricity Limited,ECO008,Dir Ops/Commercial Serv,Revenue,Energy Costs,UTILITIES
Thanet District Council,14/07/2022,549468,959.38,,Ecotricity Limited,ECO008,Dir Ops/Commercial Serv,Revenue,Energy Costs,UTILITIES
Thanet District Council,14/07/2022,549668,1575.59,,Ecotricity Limited,ECO008,Dir Ops/Commercial Serv,Revenue,Energy Costs,UTILITIES
Thanet District Council,14/07/2022,549683,805.08,,Ecotricity Limited,ECO008,Dir Ops/Commercial Serv,Revenue,Energy Costs,UTILITIES
Thanet District Council,14/07/2022,549098,649.82,,Envirowaste Solutions Uk Ltd,ENV019,Dir Ops/Commercial Serv,Revenue,Services,HUMAN RESOURCES
Thanet District Council,14/07/2022,549960,10000,,F B Design & Renovation Limited,FBD001,Director of Corporate Resources and S151,Balance Sheet,Capital Exp-Non Council Assets,GRANTS
Thanet District Council,14/07/2022,549961,10000,,F B Design & Renovation Limited,FBD001,Director of Corporate Resources and S151,Balance Sheet,Capital Exp-Non Council Assets,GRANTS
Thanet District Council,14/07/2022,549667,1350,,Fuel Storage Systems Ltd,FSS001,Dir Ops/Commercial Serv,Revenue,"Equip, Furniture And Materials",MARITIME SERVICES
Thanet District Council,14/07/2022,549128,465,,Guard It Limited,GUA008,Dir Ops/Commercial Serv,Revenue,Services,FACILITIES AND MANGEMENT SERV
Thanet District Council,14/07/2022,547095,440.02,,Henry Sheach Lawnmower Services Ltd,SHE039,Dir Ops/Commercial Serv,Revenue,"Equip, Furniture And Materials",HORTICULTURAL
Thanet District Council,14/07/2022,549044,579.48,,Hilton Cabinet Co Ltd,HIL002,Dir Ops/Commercial Serv,Revenue,"Equip, Furniture And Materials",FURNITURE AND SOFT FURNISHINGS
Thanet District Council,14/07/2022,549608,2125.85,,Hr Go (Kent) Ltd,HRG001,Dir Ops/Commercial Serv,Revenue,Agency Staff,HUMAN RESOURCES
Thanet District Council,14/07/2022,549618,665.25,,Hr Go (Kent) Ltd,HRG001,Deputy Chief Executive/S151,Revenue,Agency Staff,HUMAN RESOURCES
Thanet District Council,14/07/2022,549957,1144.5,,John Gale,GAL001,Director of Corporate Resources and S151,Balance Sheet,Capital Exp-Non Council Assets,GRANTS
Thanet District Council,14/07/2022,549763,2500,,Kent County Council,KCC002,Director of Corporate Resources and S151,Balance Sheet,Other Land And Buildings-Hra,VARIOUS CATS-PUBLIC SECTOR
Thanet District Council,14/07/2022,549927,202465.16,,Kent County Council,KCC002,Director of Corporate Resources and S151,Balance Sheet,Capital Exp-Non Council Assets,VARIOUS CATS-PUBLIC SECTOR
Thanet District Council,14/07/2022,549764,1046.98,,Kew (Electrical Distributors) Ltd,KEW001,Dir Ops/Commercial Serv,Revenue,"Equip, Furniture And Materials",BUILDING CONSTRUCTION MATERIAL
Thanet District Council,14/07/2022,549764,326.98,,Kew (Electrical Distributors) Ltd,KEW001,Dir Ops/Commercial Serv,Revenue,"Repairs, Alter & Mtce - Build",BUILDING CONSTRUCTION MATERIAL
Thanet District Council,14/07/2022,549412,600,,Magdalena Cass,CAS027,Deputy Chief Executive/S151,Revenue,Services,LEGAL SERVICES
Thanet District Council,14/07/2022,549059,893.04,,Maitland Medical Service Limited,MAI010,Director Of Corp Gov/Mon Off,Revenue,Employee Related Schemes,HEALTHCARE
Thanet District Council,14/07/2022,549459,3600,,Mark Davies,DAV043,Deputy Chief Executive/S151,Revenue,Services,LEGAL SERVICES
Thanet District Council,14/07/2022,549427,519.7,,Mears Ltd,MEA003,Director Of Corp Gov/Mon Off,Revenue,"Repairs, Alter & Mtce - Build",CONSTRUCTION-REPAIR AND MAINT
Thanet District Council,14/07/2022,549544,3070.07,,Mears Ltd,MEA003,Deputy Chief Executive/S151,Revenue,"Repairs, Alter & Mtce - Build",CONSTRUCTION-REPAIR AND MAINT
Thanet District Council,14/07/2022,549644,505.69,,Mears Ltd,MEA003,Director Of Corp Gov/Mon Off,Revenue,"Repairs, Alter & Mtce - Build",CONSTRUCTION-REPAIR AND MAINT
Thanet District Council,14/07/2022,549644,574.73,,Mears Ltd,MEA003,Dir Ops/Commercial Serv,Revenue,"Repairs, Alter & Mtce - Build",CONSTRUCTION-REPAIR AND MAINT
Thanet District Council,14/07/2022,549265,5999.1,,Med Clean South Ltd,MED015,Dir Ops/Commercial Serv,Revenue,Cleaning & Domestic Supplies,CLEANING AND JANITORIAL
Thanet District Council,14/07/2022,549770,612,,Meter Macs Ltd,MET014,Dir Ops/Commercial Serv,Revenue,"Equip, Furniture And Materials",STREET AND TRAFFIC MANAGEMENT
Thanet District Council,14/07/2022,549662,1500,,Modus Construction Consultants Ltd,MOD007,Director of Corporate Resources and S151,Balance Sheet,Council Dwellings,CONSULTANCY
Thanet District Council,14/07/2022,545279,1070.07,,Ovenden Allworks Limited,OVE008,Dir Ops/Commercial Serv,Revenue,Services,CONSTRUCTION-REPAIR AND MAINT
Thanet District Council,14/07/2022,549962,1011.03,,P W Adaptions Ltd,PWA001,Director of Corporate Resources and S151,Balance Sheet,Capital Exp-Non Council Assets,GRANTS
Thanet District Council,14/07/2022,549965,2200,,P W Adaptions Ltd,PWA001,Director of Corporate Resources and S151,Balance Sheet,Capital Exp-Non Council Assets,GRANTS
Thanet District Council,14/07/2022,549327,490,,R Cannon,CAN007,Dir Ops/Commercial Serv,Revenue,Services,MARITIME SERVICES
Thanet District Council,14/07/2022,548894,1720.67,,Scottish Water Business Stream Ltd,SCO019,Director Of Corp Gov/Mon Off,Revenue,Water Services,UTILITIES
Thanet District Council,14/07/2022,549308,599.21,,Scottish Water Business Stream Ltd,SCO019,Dir Ops/Commercial Serv,Revenue,Water Services,UTILITIES
Thanet District Council,14/07/2022,549310,644.9,,Scottish Water Business Stream Ltd,SCO019,Dir Ops/Commercial Serv,Revenue,Water Services,UTILITIES
Thanet District Council,14/07/2022,549954,1500,,Simply Homes 4 U Ltd,SIM012,Deputy Chief Executive/S151,Revenue,Grants & Subscriptions,RENT DEPOSITS
Thanet District Council,14/07/2022,549329,1800,,Solent Marine Ltd,SOL011,Dir Ops/Commercial Serv,Revenue,"Repairs, Alter & Mtce - Build",MARITIME SERVICES
Thanet District Council,14/07/2022,549993,11445,,South East Building Company Limited,SEB001,Director of Corporate Resources and S151,Balance Sheet,Capital Exp-Non Council Assets,GRANTS
Thanet District Council,14/07/2022,548891,1000,,Stephen Pinder Employment Law Ltd,STE044,Director of Corporate Resources and S151,Balance Sheet,Provisions-Future Settlement,LEGAL SERVICES
Thanet District Council,14/07/2022,549776,4200,,The Crown Estate,CRO022,Director of Corporate Resources and S151,Balance Sheet,Plant And Equipment,GOVERNMENT AGENCIES
Thanet District Council,14/07/2022,549330,995,,The Knowledge Academy Limited,KNO007,Deputy Chief Executive/S151,Revenue,Training,HUMAN RESOURCES
Thanet District Council,14/07/2022,549270,1424.24,,The Oyster Partnership Ltd,OYS001,Director Of Corp Gov/Mon Off,Revenue,Services,HUMAN RESOURCES
Thanet District Council,14/07/2022,549041,827.99,,The Yaboo Company Limited,YAB001,Dir Ops/Commercial Serv,Revenue,"Equip, Furniture And Materials",DOMESTIC GOODS
Thanet District Council,14/07/2022,549959,594.09,,Town & Country Housing,TOW009,Director of Corporate Resources and S151,Balance Sheet,Capital Exp-Non Council Assets,GRANTS
Thanet District Council,14/07/2022,549510,2000,,Urban Surveying & Design Ltd,URB005,Deputy Chief Executive/S151,Revenue,Services,CONSULTANCY
Thanet District Council,14/07/2022,548892,989.99,,Wildy & Sons Ltd,WIL080,Director Of Corp Gov/Mon Off,Revenue,"Print, Stat And Gen Off Exps",FINANCIAL SERVICES
Thanet District Council,18/07/2022,550189,516.39,,Capita Business Services Ltd,CAP001,Deputy Chief Executive/S151,Revenue,Services,HUMAN RESOURCES
Thanet District Council,18/07/2022,550193,1220.59,,Capita Business Services Ltd,CAP001,Deputy Chief Executive/S151,Revenue,Services,HUMAN RESOURCES
Thanet District Council,18/07/2022,550182,2051.37,,Dochub Llc,DOC002,Deputy Chief Executive/S151,Revenue,Communications & Computing,ICT
Thanet District Council,18/07/2022,550177,771223,,Maidstone Borough Council,MAI002,Deputy Chief Executive/S151,Revenue,Revenue Financing,VARIOUS CATS-PUBLIC SECTOR
Thanet District Council,18/07/2022,550177,275637,,Maidstone Borough Council,MAI002,Director of Corporate Resources and S151,Balance Sheet,Collection Fund,VARIOUS CATS-PUBLIC SECTOR
Thanet District Council,18/07/2022,550175,3368.26,,Nat West Bank,NWE001,Deputy Chief Executive/S151,Revenue,Services,VARIOUS CATEGORIES
Thanet District Council,18/07/2022,550197,4523.75,,Worldpay Ltd,WOR008,Deputy Chief Executive/S151,Revenue,Services,FINANCIAL SERVICES
Thanet District Council,18/07/2022,550202,779.86,,Worldpay Ltd,WOR008,Dir Ops/Commercial Serv,Revenue,Services,FINANCIAL SERVICES
Thanet District Council,18/07/2022,550205,2835.81,,Worldpay Ltd,WOR008,Deputy Chief Executive/S151,Revenue,Services,FINANCIAL SERVICES
Thanet District Council,19/07/2022,548618,57035.61,,Advanced Business Solutions,COA011,Deputy Chief Executive/S151,Revenue,Communications & Computing,ICT
Thanet District Council,19/07/2022,550124,960,,Angelica Rokad,ROK002,Director Of Corp Gov/Mon Off,Revenue,Services,LEGAL SERVICES
Thanet District Council,19/07/2022,550278,2531,,Ascendit Lifts Ltd,ASC001,Director of Corporate Resources and S151,Balance Sheet,Capital Exp-Non Council Assets,GRANTS
Thanet District Council,19/07/2022,549267,475,,Ass Of Electoral Administrators,AEA001,Director Of Corp Gov/Mon Off,Revenue,Expenses,HUMAN RESOURCES
Thanet District Council,19/07/2022,549422,53996.16,,Certas Energy Uk Ltd,CER005,Dir Ops/Commercial Serv,Revenue,Direct Transport Costs,VEHICLE MANAGEMENT
Thanet District Council,19/07/2022,548968,2252,,Changing Minds (Kent) Cic,CHA072,Dir Ops/Commercial Serv,Revenue,Grants & Subscriptions,HUMAN RESOURCES
Thanet District Council,19/07/2022,549663,993,,Citb,CIT019,Deputy Chief Executive/S151,Revenue,Training,HUMAN RESOURCES
Thanet District Council,19/07/2022,549744,2908.3,,Dds (International) Limited,DDS002,Director of Corporate Resources and S151,Balance Sheet,Repairs And Mtce Holding A/C,CONSULTANCY
Thanet District Council,19/07/2022,550301,1300,,Denise Berry T/A Db Property Management,DEN018,Deputy Chief Executive/S151,Revenue,Grants & Subscriptions,RENT DEPOSITS
Thanet District Council,19/07/2022,549259,670.38,,Dennis Eagle Ltd,DEN005,Dir Ops/Commercial Serv,Revenue,Direct Transport Costs,VEHICLE MANAGEMENT
Thanet District Council,19/07/2022,547766,871.06,,Ecotricity Limited,ECO008,Deputy Chief Executive/S151,Revenue,Energy Costs,UTILITIES
Thanet District Council,19/07/2022,549470,1642.08,,Ecotricity Limited,ECO008,Dir Ops/Commercial Serv,Revenue,Energy Costs,UTILITIES
Thanet District Council,19/07/2022,549780,859.14,,Ecotricity Limited,ECO008,Dir Ops/Commercial Serv,Revenue,Energy Costs,UTILITIES
Thanet District Council,19/07/2022,549781,1279.58,,Ecotricity Limited,ECO008,Deputy Chief Executive/S151,Revenue,Energy Costs,UTILITIES
Thanet District Council,19/07/2022,549852,503.42,,Ecotricity Limited,ECO008,Deputy Chief Executive/S151,Revenue,Energy Costs,UTILITIES
Thanet District Council,19/07/2022,550284,838.73,,Ecotricity Limited,ECO008,Deputy Chief Executive/S151,Revenue,Energy Costs,UTILITIES
Thanet District Council,19/07/2022,550286,810.27,,Ecotricity Limited,ECO008,Deputy Chief Executive/S151,Revenue,Energy Costs,UTILITIES
Thanet District Council,19/07/2022,550288,837.33,,Ecotricity Limited,ECO008,Deputy Chief Executive/S151,Revenue,Energy Costs,UTILITIES
Thanet District Council,19/07/2022,550289,756.28,,Ecotricity Limited,ECO008,Deputy Chief Executive/S151,Revenue,Energy Costs,UTILITIES
Thanet District Council,19/07/2022,550290,922.96,,Ecotricity Limited,ECO008,Deputy Chief Executive/S151,Revenue,Energy Costs,UTILITIES
Thanet District Council,19/07/2022,550291,843.04,,Ecotricity Limited,ECO008,Deputy Chief Executive/S151,Revenue,Energy Costs,UTILITIES
Thanet District Council,19/07/2022,550207,1206.5,,E Saunders Margate Ltd,SAU001,Director Of Corp Gov/Mon Off,Revenue,"Repairs, Alter & Mtce - Build",CONSTRUCTION-REPAIR AND MAINT
Thanet District Council,19/07/2022,543156,11659.7,,Etec Contract Services Limited,ETE001,Director of Corporate Resources and S151,Balance Sheet,Other Land And Buildings-Hra,CONSTRUCTION-REPAIR AND MAINT
Thanet District Council,19/07/2022,546788,660,,Formation Scaffolding Solutions,BON007,Director of Corporate Resources and S151,Balance Sheet,Rechargeable Works,CONSTRUCTION-REPAIR AND MAINT
Thanet District Council,19/07/2022,549506,1228,,G4s Cash Solutions (Uk) Limited,G4S002,Dir Ops/Commercial Serv,Revenue,Services,FINANCIAL SERVICES
Thanet District Council,19/07/2022,548154,32866.35,,Gas Call Services Limited,GAS014,Director of Corporate Resources and S151,Balance Sheet,Repairs And Mtce Holding A/C,UTILITIES
Thanet District Council,19/07/2022,549661,20043.03,,Gas Call Services Limited,GAS014,Director of Corporate Resources and S151,Balance Sheet,Repairs And Mtce Holding A/C,UTILITIES
Thanet District Council,19/07/2022,549246,1041.67,,Halfords Limited,HAL018,Dir Ops/Commercial Serv,Revenue,"Equip, Furniture And Materials",VEHICLE MANAGEMENT
Thanet District Council,19/07/2022,549242,425,,Hi Way Services Ltd,HIW002,Dir Ops/Commercial Serv,Revenue,"Repairs, Alter & Mtce - Build",HIGHWAY EQUIPMENT AND MATERIAL
Thanet District Council,19/07/2022,549122,573.28,,Hr Go (Kent) Ltd,HRG001,Dir Ops/Commercial Serv,Revenue,Agency Staff,HUMAN RESOURCES
Thanet District Council,19/07/2022,549126,9564.26,,Hr Go (Kent) Ltd,HRG001,Dir Ops/Commercial Serv,Revenue,Agency Staff,HUMAN RESOURCES
Thanet District Council,19/07/2022,550277,8981,,Hubbard & Houghton Construction Ltd,HUB003,Director of Corporate Resources and S151,Balance Sheet,Capital Exp-Non Council Assets,GRANTS
Thanet District Council,19/07/2022,549332,5415.8,,Imperial Civil Enforcement Sols Ltd,IMP008,Dir Ops/Commercial Serv,Revenue,Services,STREET AND TRAFFIC MANAGEMENT
Thanet District Council,19/07/2022,549046,2095.5,,Jon Lambourne Arboricultural Consult,LAM015,Deputy Chief Executive/S151,Revenue,Services,CONSULTANCY
Thanet District Council,19/07/2022,549940,6510.28,,Kent County Council (Kcs),KCC003,Dir Ops/Commercial Serv,Revenue,Energy Costs,FACILITIES AND MANGEMENT SERV
Thanet District Council,19/07/2022,538476,34085.2,,Mears Ltd,MEA003,Director of Corporate Resources and S151,Balance Sheet,Repairs And Mtce Holding A/C,CONSTRUCTION-REPAIR AND MAINT
Thanet District Council,19/07/2022,548568,9389.47,,Mears Ltd,MEA003,Director of Corporate Resources and S151,Balance Sheet,Repairs And Mtce Holding A/C,CONSTRUCTION-REPAIR AND MAINT
Thanet District Council,19/07/2022,548569,11629.98,,Mears Ltd,MEA003,Director of Corporate Resources and S151,Balance Sheet,Repairs And Mtce Holding A/C,CONSTRUCTION-REPAIR AND MAINT
Thanet District Council,19/07/2022,549423,39308.93,,Mears Ltd,MEA003,Director of Corporate Resources and S151,Balance Sheet,Repairs And Mtce Holding A/C,CONSTRUCTION-REPAIR AND MAINT
Thanet District Council,19/07/2022,549424,14397.28,,Mears Ltd,MEA003,Director of Corporate Resources and S151,Balance Sheet,Repairs And Mtce Holding A/C,CONSTRUCTION-REPAIR AND MAINT
Thanet District Council,19/07/2022,549425,10552.82,,Mears Ltd,MEA003,Director of Corporate Resources and S151,Balance Sheet,Repairs And Mtce Holding A/C,CONSTRUCTION-REPAIR AND MAINT
Thanet District Council,19/07/2022,549428,784.56,,Mears Ltd,MEA003,Director Of Corp Gov/Mon Off,Revenue,"Repairs, Alter & Mtce - Build",CONSTRUCTION-REPAIR AND MAINT
Thanet District Council,19/07/2022,549437,11352.28,,Mears Ltd,MEA003,Director of Corporate Resources and S151,Balance Sheet,Repairs And Mtce Holding A/C,CONSTRUCTION-REPAIR AND MAINT
Thanet District Council,19/07/2022,549439,882.46,,Mears Ltd,MEA003,Director of Corporate Resources and S151,Balance Sheet,Repairs And Mtce Holding A/C,CONSTRUCTION-REPAIR AND MAINT
Thanet District Council,19/07/2022,549493,1158.32,,Mears Ltd,MEA003,Director Of Corp Gov/Mon Off,Revenue,"Repairs, Alter & Mtce - Build",CONSTRUCTION-REPAIR AND MAINT
Thanet District Council,19/07/2022,549495,550.39,,Mears Ltd,MEA003,Director Of Corp Gov/Mon Off,Revenue,"Repairs, Alter & Mtce - Build",CONSTRUCTION-REPAIR AND MAINT
Thanet District Council,19/07/2022,549624,3145.18,,Mears Ltd,MEA003,Director of Corporate Resources and S151,Balance Sheet,Repairs And Mtce Holding A/C,CONSTRUCTION-REPAIR AND MAINT
Thanet District Council,19/07/2022,549633,17837.23,,Mears Ltd,MEA003,Director of Corporate Resources and S151,Balance Sheet,Repairs And Mtce Holding A/C,CONSTRUCTION-REPAIR AND MAINT
Thanet District Council,19/07/2022,549634,3069.49,,Mears Ltd,MEA003,Director of Corporate Resources and S151,Balance Sheet,Repairs And Mtce Holding A/C,CONSTRUCTION-REPAIR AND MAINT
Thanet District Council,19/07/2022,549640,23909.02,,Mears Ltd,MEA003,Director of Corporate Resources and S151,Balance Sheet,Repairs And Mtce Holding A/C,CONSTRUCTION-REPAIR AND MAINT
Thanet District Council,19/07/2022,549641,602.59,,Mears Ltd,MEA003,Director of Corporate Resources and S151,Balance Sheet,Repairs And Mtce Holding A/C,CONSTRUCTION-REPAIR AND MAINT
Thanet District Council,19/07/2022,549642,11605.85,,Mears Ltd,MEA003,Director of Corporate Resources and S151,Balance Sheet,Repairs And Mtce Holding A/C,CONSTRUCTION-REPAIR AND MAINT
Thanet District Council,19/07/2022,549643,17044.57,,Mears Ltd,MEA003,Director of Corporate Resources and S151,Balance Sheet,Repairs And Mtce Holding A/C,CONSTRUCTION-REPAIR AND MAINT
Thanet District Council,19/07/2022,549646,758.25,,Mears Ltd,MEA003,Director of Corporate Resources and S151,Balance Sheet,Repairs And Mtce Holding A/C,CONSTRUCTION-REPAIR AND MAINT
Thanet District Council,19/07/2022,550002,22863.76,,Mears Ltd,MEA003,Director of Corporate Resources and S151,Balance Sheet,Repairs And Mtce Holding A/C,CONSTRUCTION-REPAIR AND MAINT
Thanet District Council,19/07/2022,548676,3159.35,,Michael Page Int Recruitment Ltd,PAG008,Deputy Chief Executive/S151,Revenue,Agency Staff,HUMAN RESOURCES
Thanet District Council,19/07/2022,549092,710.4,,Michael Page Int Recruitment Ltd,PAG008,Deputy Chief Executive/S151,Revenue,Agency Staff,HUMAN RESOURCES
Thanet District Council,19/07/2022,549773,5971.2,,Michael Page Int Recruitment Ltd,PAG008,Deputy Chief Executive/S151,Revenue,Agency Staff,HUMAN RESOURCES
Thanet District Council,19/07/2022,548920,1487.5,,Modus Construction Consultants Ltd,MOD007,Director of Corporate Resources and S151,Balance Sheet,Other Land And Buildings-Hra,CONSULTANCY
Thanet District Council,19/07/2022,549756,5685.6,,Moore Stephens Insight Limited,MOO013,Deputy Chief Executive/S151,Revenue,Services,CONSULTANCY
Thanet District Council,19/07/2022,549564,7060.18,,Ovenden Allworks Limited,OVE008,Dir Ops/Commercial Serv,Revenue,"Repairs, Alter & Mtce - Build",CONSTRUCTION-REPAIR AND MAINT
Thanet District Council,19/07/2022,549658,8592.3,,Pa Group Ltd,PAG011,Director of Corporate Resources and S151,Balance Sheet,Repairs And Mtce Holding A/C,ENVIRONMENTAL SERVICES
Thanet District Council,19/07/2022,549659,1041.2,,Pa Group Ltd,PAG011,Director of Corporate Resources and S151,Balance Sheet,Repairs And Mtce Holding A/C,ENVIRONMENTAL SERVICES
Thanet District Council,19/07/2022,550297,1100,,Prospects Assured Uk Ltd,PRO032,Deputy Chief Executive/S151,Revenue,Grants & Subscriptions,RENT DEPOSITS
Thanet District Council,19/07/2022,550280,18513.39,,P W Adaptions Ltd,PWA001,Director of Corporate Resources and S151,Balance Sheet,Capital Exp-Non Council Assets,GRANTS
Thanet District Council,19/07/2022,549693,12010.72,,Sbs Roofing Ltd,SBS001,Director of Corporate Resources and S151,Balance Sheet,Repairs And Mtce Holding A/C,BUILDING CONSTRUCTION MATERIAL
Thanet District Council,19/07/2022,550093,40733.06,,Sbs Roofing Ltd,SBS001,Director of Corporate Resources and S151,Balance Sheet,Repairs And Mtce Holding A/C,BUILDING CONSTRUCTION MATERIAL
Thanet District Council,19/07/2022,549679,1870.09,,Scottish Water Business Stream Ltd,SCO019,Director Of Corp Gov/Mon Off,Revenue,Water Services,UTILITIES
Thanet District Council,19/07/2022,549930,2620.45,,Scottish Water Business Stream Ltd,SCO019,Dir Ops/Commercial Serv,Revenue,Water Services,UTILITIES
Thanet District Council,19/07/2022,549254,4025,,Tetlow King Planning Limited,TET002,Deputy Chief Executive/S151,Revenue,Services,CONSULTANCY
Thanet District Council,19/07/2022,537285,1352,,Thanet Safe Limited,TSA004,Dir Ops/Commercial Serv,Revenue,Services,FACILITIES AND MANGEMENT SERV
Thanet District Council,19/07/2022,550281,2101.77,,Town & Country Housing,TOW009,Director of Corporate Resources and S151,Balance Sheet,Capital Exp-Non Council Assets,GRANTS
Thanet District Council,19/07/2022,550283,1057.91,,Town & Country Housing,TOW009,Director of Corporate Resources and S151,Balance Sheet,Capital Exp-Non Council Assets,GRANTS
Thanet District Council,19/07/2022,550282,8815.85,,Trueden Disability Adaptations Ltd,TRU012,Director of Corporate Resources and S151,Balance Sheet,Capital Exp-Non Council Assets,GRANTS
Thanet District Council,19/07/2022,549635,474.91,,Trustmarque Solutions Limited,TRU014,Deputy Chief Executive/S151,Revenue,"Equip, Furniture And Materials",ICT
Thanet District Council,19/07/2022,549923,459.95,,W G Burbridge,BUR016,Dir Ops/Commercial Serv,Revenue,"Equip, Furniture And Materials",BUILDING CONSTRUCTION MATERIAL
Thanet District Council,20/07/2022,550395,5341786,,Kent County Council,KCC002,Director of Corporate Resources and S151,Balance Sheet,Collection Fund,VARIOUS CATS-PUBLIC SECTOR
Thanet District Council,20/07/2022,550393,296783,,Kent & Medway Towns Fire Authority,KMT001,Director of Corporate Resources and S151,Balance Sheet,Collection Fund,VARIOUS CATS-PUBLIC SECTOR
Thanet District Council,20/07/2022,550394,846155,,Kent Police & Crime Commissioner,KPA003,Director of Corporate Resources and S151,Balance Sheet,Collection Fund,VARIOUS CATS-PUBLIC SECTOR
Thanet District Council,21/07/2022,550211,4139.95,,Access Intelligence Media & Comm Ltd,ALL036,Deputy Chief Executive/S151,Revenue,Services,ICT
Thanet District Council,21/07/2022,550432,4575,,Bond Turner Client Account,BON100,Deputy Chief Executive/S151,Revenue,Other Transfer Payments,NON TRADE PAYEE
Thanet District Council,21/07/2022,550241,1454.94,,Civica Uk Ltd,CIV003,East Kent Shared Services,Revenue,Communications & Computing,ICT
Thanet District Council,21/07/2022,550392,3733.8,,Civica Uk Ltd,CIV003,East Kent Shared Services,Revenue,Communications & Computing,ICT
Thanet District Council,21/07/2022,548617,434.48,,D J Invicta Supplies Ltd,DJI001,Dir Ops/Commercial Serv,Revenue,"Equip, Furniture And Materials",BUILDING CONSTRUCTION MATERIAL
Thanet District Council,21/07/2022,547585,1484.5,,Ecotricity Limited,ECO008,Dir Ops/Commercial Serv,Revenue,Energy Costs,UTILITIES
Thanet District Council,21/07/2022,550287,837.33,,Ecotricity Limited,ECO008,Deputy Chief Executive/S151,Revenue,Energy Costs,UTILITIES
Thanet District Council,21/07/2022,550389,591.11,,Ecotricity Limited,ECO008,Deputy Chief Executive/S151,Revenue,Energy Costs,UTILITIES
Thanet District Council,21/07/2022,550433,1250,,REDACTED,SUM008,Deputy Chief Executive/S151,Revenue,Grants & Subscriptions,RENT DEPOSITS
Thanet District Council,21/07/2022,549015,850,,Envirocure Ltd,ENV011,Director of Corporate Resources and S151,Balance Sheet,Repairs And Mtce Holding A/C,FACILITIES AND MANGEMENT SERV
Thanet District Council,21/07/2022,550384,3437.72,,Flowbird Smart City Uk Limited,FLO011,Dir Ops/Commercial Serv,Revenue,Communications & Computing,STREET AND TRAFFIC MANAGEMENT
Thanet District Council,21/07/2022,550298,1008.65,,Gee-Tech Fabrications Limited,GEE007,Dir Ops/Commercial Serv,Revenue,"Equip, Furniture And Materials",BUILDING CONSTRUCTION MATERIAL
Thanet District Council,21/07/2022,549143,658.12,,Gpm2 Design Ltd,GPM002,Director of Corporate Resources and S151,Balance Sheet,Other Land And Buildings-Hra,CONSULTANCY
Thanet District Council,21/07/2022,550094,2139.79,,Hr Go (Kent) Ltd,HRG001,Dir Ops/Commercial Serv,Revenue,Agency Staff,HUMAN RESOURCES
Thanet District Council,21/07/2022,550302,8067.6,,Jentex Fuel Oils,JEN005,Dir Ops/Commercial Serv,Revenue,"Equip, Furniture And Materials",UTILITIES
Thanet District Council,21/07/2022,550128,610.86,,Kent County Council (Kcs),KCC003,Dir Ops/Commercial Serv,Revenue,"Repairs, Alter & Mtce - Build",FACILITIES AND MANGEMENT SERV
Thanet District Council,21/07/2022,549560,773.66,,Lumens Technologies Uk Ltd,CEN021,Director of Corporate Resources and S151,Balance Sheet,Telephone Holding Account,ICT
Thanet District Council,21/07/2022,550003,35402.06,,Mears Ltd,MEA003,Director of Corporate Resources and S151,Balance Sheet,Repairs And Mtce Holding A/C,CONSTRUCTION-REPAIR AND MAINT
Thanet District Council,21/07/2022,550004,8705.21,,Mears Ltd,MEA003,Director of Corporate Resources and S151,Balance Sheet,Repairs And Mtce Holding A/C,CONSTRUCTION-REPAIR AND MAINT
Thanet District Council,21/07/2022,549772,6012,,Michael Page Int Recruitment Ltd,PAG008,Deputy Chief Executive/S151,Revenue,Agency Staff,HUMAN RESOURCES
Thanet District Council,21/07/2022,550013,6318.7,,Michael Page Int Recruitment Ltd,PAG008,Deputy Chief Executive/S151,Revenue,Agency Staff,HUMAN RESOURCES
Thanet District Council,21/07/2022,549708,442.9,,Newauto Limited,NEW046,Dir Ops/Commercial Serv,Revenue,"Equip, Furniture And Materials",VEHICLE MANAGEMENT
Thanet District Council,21/07/2022,550442,38772,,Paramount Ind Property Services Llp,PAR074,Deputy Chief Executive/S151,Revenue,Services,HOUSING MANAGEMENT
Thanet District Council,21/07/2022,550443,40428,,Paramount Ind Property Services Llp,PAR074,Deputy Chief Executive/S151,Revenue,Services,HOUSING MANAGEMENT
Thanet District Council,21/07/2022,550444,40463,,Paramount Ind Property Services Llp,PAR074,Deputy Chief Executive/S151,Revenue,Services,HOUSING MANAGEMENT
Thanet District Council,21/07/2022,550445,49310,,Paramount Ind Property Services Llp,PAR074,Deputy Chief Executive/S151,Revenue,Services,HOUSING MANAGEMENT
Thanet District Council,21/07/2022,550446,49372,,Paramount Ind Property Services Llp,PAR074,Deputy Chief Executive/S151,Revenue,Services,HOUSING MANAGEMENT
Thanet District Council,21/07/2022,550086,822.5,,R Cannon,CAN007,Dir Ops/Commercial Serv,Revenue,Services,MARITIME SERVICES
Thanet District Council,21/07/2022,549953,3025,,Shoreline Surveys Limited,SHO001,Director of Corporate Resources and S151,Balance Sheet,Plant And Equipment,MARITIME SERVICES
Thanet District Council,21/07/2022,549953,12480.25,,Shoreline Surveys Limited,SHO001,Dir Ops/Commercial Serv,Revenue,"Repairs, Alter & Mtce - Build",MARITIME SERVICES
Thanet District Council,21/07/2022,549152,2541.62,,Smi Int Group Ltd,SMI055,Dir Ops/Commercial Serv,Revenue,"Clothes, Uniforms & Laundry",CLOTHING
Thanet District Council,21/07/2022,550132,3847.98,,Tfa Fuel Services Ltd,TFA003,Dir Ops/Commercial Serv,Revenue,"Equip, Furniture And Materials",UTILITIES
Thanet District Council,21/07/2022,549952,1780.3,,The Oyster Partnership Ltd,OYS001,Director Of Corp Gov/Mon Off,Revenue,Services,HUMAN RESOURCES
Thanet District Council,21/07/2022,549994,492.8,,Trustmarque Solutions Limited,TRU014,Director of Corporate Resources and S151,Balance Sheet,Plant And Equipment,ICT
Thanet District Council,21/07/2022,550212,2814.5,,Trustmarque Solutions Limited,TRU014,Director of Corporate Resources and S151,Balance Sheet,Plant And Equipment,ICT
Thanet District Council,21/07/2022,550213,241.97,,Trustmarque Solutions Limited,TRU014,Deputy Chief Executive/S151,Revenue,Communications & Computing,ICT
Thanet District Council,21/07/2022,550213,241.97,,Trustmarque Solutions Limited,TRU014,Director Of Corp Gov/Mon Off,Revenue,"Equip, Furniture And Materials",ICT
Thanet District Council,26/07/2022,549056,1001.04,,Alks Ltd,ACC002,Dir Ops/Commercial Serv,Revenue,"Equip, Furniture And Materials",MARITIME SERVICES
Thanet District Council,26/07/2022,550304,1020,,Angelica Rokad,ROK002,Deputy Chief Executive/S151,Revenue,Services,LEGAL SERVICES
Thanet District Council,26/07/2022,549999,112976.94,,Bec Construction Limited,BEC007,Director of Corporate Resources and S151,Balance Sheet,Other Land And Buildings-Hra,BUILDING CONSTRUCTION MATERIAL
Thanet District Council,26/07/2022,546704,2119.9,,Boundary Gate And Barrier (Contracts) Ltd,BOU011,Dir Ops/Commercial Serv,Revenue,"Equip, Furniture And Materials",STREET AND TRAFFIC MANAGEMENT
Thanet District Council,26/07/2022,549251,17829.75,,British Telecommunications Plc,BTE005,Dir Ops/Commercial Serv,Revenue,Communications & Computing,ICT
Thanet District Council,26/07/2022,549253,1689.25,,British Telecommunications Plc,BTE005,Dir Ops/Commercial Serv,Revenue,Communications & Computing,ICT
Thanet District Council,26/07/2022,549925,11628,,Broxap Limited,BRO052,Dir Ops/Commercial Serv,Revenue,"Equip, Furniture And Materials",BUILDING CONSTRUCTION MATERIAL
Thanet District Council,26/07/2022,550125,3774,,Broxap Limited,BRO052,Director of Corporate Resources and S151,Balance Sheet,Other Land And Buildings-Hra,BUILDING CONSTRUCTION MATERIAL
Thanet District Council,26/07/2022,548986,949.91,,Dennis Eagle Limited,TER011,Dir Ops/Commercial Serv,Revenue,Direct Transport Costs,VEHICLE MANAGEMENT
Thanet District Council,26/07/2022,549258,2063.1,,Dennis Eagle Limited,TER011,Dir Ops/Commercial Serv,Revenue,Direct Transport Costs,VEHICLE MANAGEMENT
Thanet District Council,26/07/2022,547665,813.11,,Ecotricity Limited,ECO008,Deputy Chief Executive/S151,Revenue,Energy Costs,UTILITIES
Thanet District Council,26/07/2022,549845,512.19,,Ecotricity Limited,ECO008,Dir Ops/Commercial Serv,Revenue,Energy Costs,UTILITIES
Thanet District Council,26/07/2022,549907,499.93,,Ecotricity Limited,ECO008,Director Of Corp Gov/Mon Off,Revenue,Energy Costs,UTILITIES
Thanet District Council,26/07/2022,550616,3145.1,,Ecotricity Limited,ECO008,Dir Ops/Commercial Serv,Revenue,Energy Costs,UTILITIES
Thanet District Council,26/07/2022,550645,68.31,,Ecotricity Limited,ECO008,Deputy Chief Executive/S151,Revenue,Energy Costs,UTILITIES
Thanet District Council,26/07/2022,550645,7277.33,,Ecotricity Limited,ECO008,Dir Ops/Commercial Serv,Revenue,Energy Costs,UTILITIES
Thanet District Council,26/07/2022,550678,1785.75,,Ecotricity Limited,ECO008,Dir Ops/Commercial Serv,Revenue,Energy Costs,UTILITIES
Thanet District Council,26/07/2022,547333,2137.5,,E Saunders Margate Ltd,SAU001,Deputy Chief Executive/S151,Revenue,Services,CONSTRUCTION-REPAIR AND MAINT
Thanet District Council,26/07/2022,548687,15078,,Frankham Consultancy Group Limited,FRA019,Director of Corporate Resources and S151,Balance Sheet,Other Land And Buildings-Hra,MARITIME SERVICES
Thanet District Council,26/07/2022,549324,2257.92,,Hqn Limited,HQN001,Deputy Chief Executive/S151,Revenue,Training,HUMAN RESOURCES
Thanet District Council,26/07/2022,548270,6443.48,,Hr Go (Kent) Ltd,HRG001,Dir Ops/Commercial Serv,Revenue,Agency Staff,HUMAN RESOURCES
Thanet District Council,26/07/2022,548598,8182.3,,Hr Go (Kent) Ltd,HRG001,Dir Ops/Commercial Serv,Revenue,Agency Staff,HUMAN RESOURCES
Thanet District Council,26/07/2022,549118,8058.06,,Hr Go (Kent) Ltd,HRG001,Dir Ops/Commercial Serv,Revenue,Agency Staff,HUMAN RESOURCES
Thanet District Council,26/07/2022,549611,501.53,,Hr Go (Kent) Ltd,HRG001,Dir Ops/Commercial Serv,Revenue,Agency Staff,HUMAN RESOURCES
Thanet District Council,26/07/2022,549612,1140.2,,Hr Go (Kent) Ltd,HRG001,Dir Ops/Commercial Serv,Revenue,Agency Staff,HUMAN RESOURCES
Thanet District Council,26/07/2022,549614,2335.61,,Hr Go (Kent) Ltd,HRG001,Dir Ops/Commercial Serv,Revenue,Agency Staff,HUMAN RESOURCES
Thanet District Council,26/07/2022,549616,11496.69,,Hr Go (Kent) Ltd,HRG001,Dir Ops/Commercial Serv,Revenue,Agency Staff,HUMAN RESOURCES
Thanet District Council,26/07/2022,549617,10353.62,,Hr Go (Kent) Ltd,HRG001,Dir Ops/Commercial Serv,Revenue,Agency Staff,HUMAN RESOURCES
Thanet District Council,26/07/2022,549619,3083.35,,Hr Go (Kent) Ltd,HRG001,Dir Ops/Commercial Serv,Revenue,Agency Staff,HUMAN RESOURCES
Thanet District Council,26/07/2022,550095,1610.49,,Hr Go (Kent) Ltd,HRG001,Dir Ops/Commercial Serv,Revenue,Agency Staff,HUMAN RESOURCES
Thanet District Council,26/07/2022,550096,9069.54,,Hr Go (Kent) Ltd,HRG001,Dir Ops/Commercial Serv,Revenue,Agency Staff,HUMAN RESOURCES
Thanet District Council,26/07/2022,550097,2819.92,,Hr Go (Kent) Ltd,HRG001,Dir Ops/Commercial Serv,Revenue,Agency Staff,HUMAN RESOURCES
Thanet District Council,26/07/2022,550100,494.87,,Hr Go (Kent) Ltd,HRG001,Dir Ops/Commercial Serv,Revenue,Agency Staff,HUMAN RESOURCES
Thanet District Council,26/07/2022,550104,656.38,,Hr Go (Kent) Ltd,HRG001,Dir Ops/Commercial Serv,Revenue,Agency Staff,HUMAN RESOURCES
Thanet District Council,26/07/2022,549916,830.87,,Kent County Council (Kcs),KCC003,Director Of Corp Gov/Mon Off,Revenue,Energy Costs,FACILITIES AND MANGEMENT SERV
Thanet District Council,26/07/2022,549917,1533.78,,Kent County Council (Kcs),KCC003,Director Of Corp Gov/Mon Off,Revenue,Energy Costs,FACILITIES AND MANGEMENT SERV
Thanet District Council,26/07/2022,549918,1479.68,,Kent County Council (Kcs),KCC003,Deputy Chief Executive/S151,Revenue,Energy Costs,FACILITIES AND MANGEMENT SERV
Thanet District Council,26/07/2022,549922,1469.86,,Kent County Council (Kcs),KCC003,Dir Ops/Commercial Serv,Revenue,Energy Costs,FACILITIES AND MANGEMENT SERV
Thanet District Council,26/07/2022,550115,9525.61,,Kent County Council (Kcs),KCC003,Dir Ops/Commercial Serv,Revenue,Energy Costs,FACILITIES AND MANGEMENT SERV
Thanet District Council,26/07/2022,550116,4099.79,,Kent County Council (Kcs),KCC003,Dir Ops/Commercial Serv,Revenue,Energy Costs,FACILITIES AND MANGEMENT SERV
Thanet District Council,26/07/2022,550117,2764.27,,Kent County Council (Kcs),KCC003,Dir Ops/Commercial Serv,Revenue,Energy Costs,FACILITIES AND MANGEMENT SERV
Thanet District Council,26/07/2022,550118,11382.54,,Kent County Council (Kcs),KCC003,Director Of Corp Gov/Mon Off,Revenue,Energy Costs,FACILITIES AND MANGEMENT SERV
Thanet District Council,26/07/2022,550223,17238.44,,Kent County Council (Kcs),KCC003,Dir Ops/Commercial Serv,Revenue,Energy Costs,FACILITIES AND MANGEMENT SERV
Thanet District Council,26/07/2022,550399,2272.67,,Kent County Council (Kcs),KCC003,Dir Ops/Commercial Serv,Revenue,Energy Costs,FACILITIES AND MANGEMENT SERV
Thanet District Council,26/07/2022,550400,3202.6,,Kent County Council (Kcs),KCC003,Dir Ops/Commercial Serv,Revenue,Energy Costs,FACILITIES AND MANGEMENT SERV
Thanet District Council,26/07/2022,550401,27006.89,,Mears Ltd,MEA003,Director of Corporate Resources and S151,Balance Sheet,Repairs And Mtce Holding A/C,CONSTRUCTION-REPAIR AND MAINT
Thanet District Council,26/07/2022,549627,2017,,Med Clean South Ltd,MED015,Dir Ops/Commercial Serv,Revenue,"Repairs, Alter & Mtce - Build",CLEANING AND JANITORIAL
Thanet District Council,26/07/2022,550391,11000,,Mhr International Uk Limited,MID013,East Kent Shared Services,Revenue,Communications & Computing,ICT
Thanet District Council,26/07/2022,549245,1672,,M.T.S. Cleansing Services Ltd,MTS001,Dir Ops/Commercial Serv,Revenue,Cleaning & Domestic Supplies,ENVIRONMENTAL SERVICES
Thanet District Council,26/07/2022,550008,1824,,Nationwide Bark & Play Surfacing Llp,NAT042,Dir Ops/Commercial Serv,Revenue,"Repairs, Alter & Mtce - Build",SPORTS PLAYGROUND EQUIPMENT
Thanet District Council,26/07/2022,550454,4950,,Nec Software Solutions Uk Ltd,NOR018,Deputy Chief Executive/S151,Revenue,Communications & Computing,ICT
Thanet District Council,26/07/2022,550222,9120,,One 51 Es Plastics (Uk) Limited,ONE006,Dir Ops/Commercial Serv,Revenue,"Equip, Furniture And Materials",ENVIRONMENTAL SERVICES
Thanet District Council,26/07/2022,549626,14921.5,,Park Now Limited,COB002,Dir Ops/Commercial Serv,Revenue,Services,STREET AND TRAFFIC MANAGEMENT
Thanet District Council,26/07/2022,550437,114889.05,,Precision Lift Services Limited,PLS001,Director of Corporate Resources and S151,Balance Sheet,Repairs And Mtce Holding A/C,FACILITIES AND MANGEMENT SERV
Thanet District Council,26/07/2022,550190,10003.37,,Quadient Uk Ltd,NEO003,Director Of Corp Gov/Mon Off,Revenue,Communications & Computing,MAIL SERVICES
Thanet District Council,26/07/2022,550536,4386.39,,Scottish Water Business Stream Ltd,SCO019,Dir Ops/Commercial Serv,Revenue,Water Services,UTILITIES
Thanet District Council,26/07/2022,549025,16874,,Smart Property Professionals Ltd,SPP001,Deputy Chief Executive/S151,Revenue,Services,RENT DEPOSITS
Thanet District Council,26/07/2022,549928,1107,,S & S Plant Limited,S&S001,Dir Ops/Commercial Serv,Revenue,"Equip, Furniture And Materials",CONSTRUCTION-REPAIR AND MAINT
Thanet District Council,26/07/2022,550192,1425,,The Oyster Partnership Ltd,OYS001,Director Of Corp Gov/Mon Off,Revenue,Services,HUMAN RESOURCES
Thanet District Council,26/07/2022,549997,750,,Top Branch Tree Services,TOP012,Director of Corporate Resources and S151,Balance Sheet,Repairs And Mtce Holding A/C,HORTICULTURAL
Thanet District Council,26/07/2022,549628,12479.18,,Town & Country Cleaners Ltd,TOW002,Director of Corporate Resources and S151,Balance Sheet,Repairs And Mtce Holding A/C,CLEANING AND JANITORIAL
Thanet District Council,26/07/2022,549648,2797.2,,Tudor (Uk) Ltd,TUD005,Dir Ops/Commercial Serv,Revenue,"Equip, Furniture And Materials",HORTICULTURAL
Thanet District Council,26/07/2022,550234,483.32,,Watling Tyre Service Ltd,WAT003,Dir Ops/Commercial Serv,Revenue,"Equip, Furniture And Materials",VEHICLE MANAGEMENT
Thanet District Council,26/07/2022,550309,17552.82,,W W Martin Ltd,MAR003,Director of Corporate Resources and S151,Balance Sheet,Council Dwellings,CONSTRUCTION-REPAIR AND MAINT
Thanet District Council,27/07/2022,550091,671.67,,Allstar Business Solutions Ltd,ALL038,Dir Ops/Commercial Serv,Revenue,Direct Transport Costs,VEHICLE MANAGEMENT
Thanet District Council,28/07/2022,549127,15131,,24/7 Housing Limited T/A Cornerstone Property,247001,Deputy Chief Executive/S151,Revenue,Services,HOUSING MANAGEMENT
Thanet District Council,28/07/2022,550895,8314.2,,Acorn Maintenance Services Ltd,ACO010,Director of Corporate Resources and S151,Balance Sheet,Capital Exp-Non Council Assets,GRANTS
Thanet District Council,28/07/2022,550904,555.8,,Bond Turner Client Account,BON100,Deputy Chief Executive/S151,Revenue,Other Transfer Payments,NON TRADE PAYEE
Thanet District Council,28/07/2022,550897,16350,,Bramling Construction Ltd,BRA020,Director of Corporate Resources and S151,Balance Sheet,Capital Exp-Non Council Assets,GRANTS
Thanet District Council,28/07/2022,550899,2760,,Broadstairs Gas Services Ltd,BRO083,Director of Corporate Resources and S151,Balance Sheet,Capital Exp-Non Council Assets,GRANTS
Thanet District Council,28/07/2022,550640,749.5,,City Electrical Factors Ltd,CIT001,Director of Corporate Resources and S151,Balance Sheet,Rechargeable Works,BUILDING CONSTRUCTION MATERIAL
Thanet District Council,28/07/2022,550693,693.35,,Dennis Eagle Ltd,DEN005,Dir Ops/Commercial Serv,Revenue,Direct Transport Costs,VEHICLE MANAGEMENT
Thanet District Council,28/07/2022,549100,431.78,,East Kent Components Ltd,EKC006,Dir Ops/Commercial Serv,Revenue,Direct Transport Costs,VEHICLE MANAGEMENT
Thanet District Council,28/07/2022,550110,570,,East Kent Components Ltd,EKC006,Dir Ops/Commercial Serv,Revenue,Direct Transport Costs,VEHICLE MANAGEMENT
Thanet District Council,28/07/2022,549653,3415,,East Kent Training,EKT003,Dir Ops/Commercial Serv,Revenue,Training,HUMAN RESOURCES
Thanet District Council,28/07/2022,550797,2010,,Eclipse Automotive Technology Limited,ECL008,Dir Ops/Commercial Serv,Revenue,Direct Transport Costs,VEHICLE MANAGEMENT
Thanet District Council,28/07/2022,549419,649.82,,Envirowaste Solutions Uk Ltd,ENV019,Dir Ops/Commercial Serv,Revenue,Services,HUMAN RESOURCES
Thanet District Council,28/07/2022,549935,649.82,,Envirowaste Solutions Uk Ltd,ENV019,Dir Ops/Commercial Serv,Revenue,Services,HUMAN RESOURCES
Thanet District Council,28/07/2022,550423,649.82,,Envirowaste Solutions Uk Ltd,ENV019,Dir Ops/Commercial Serv,Revenue,Services,HUMAN RESOURCES
Thanet District Council,28/07/2022,550426,649.82,,Envirowaste Solutions Uk Ltd,ENV019,Dir Ops/Commercial Serv,Revenue,Services,HUMAN RESOURCES
Thanet District Council,28/07/2022,550868,4290,,Evermech Services Ltd,EVE011,Director of Corporate Resources and S151,Balance Sheet,Capital Exp-Non Council Assets,GRANTS
Thanet District Council,28/07/2022,550869,4500,,Evermech Services Ltd,EVE011,Director of Corporate Resources and S151,Balance Sheet,Capital Exp-Non Council Assets,GRANTS
Thanet District Council,28/07/2022,550901,6312,,Evermech Services Ltd,EVE011,Director of Corporate Resources and S151,Balance Sheet,Capital Exp-Non Council Assets,GRANTS
Thanet District Council,28/07/2022,550867,13468.35,,F B Design & Renovation Limited,FBD001,Director of Corporate Resources and S151,Balance Sheet,Capital Exp-Non Council Assets,GRANTS
Thanet District Council,28/07/2022,550870,11089.2,,F B Design & Renovation Limited,FBD001,Director of Corporate Resources and S151,Balance Sheet,Capital Exp-Non Council Assets,GRANTS
Thanet District Council,28/07/2022,550873,8622.42,,F B Design & Renovation Limited,FBD001,Director of Corporate Resources and S151,Balance Sheet,Capital Exp-Non Council Assets,GRANTS
Thanet District Council,28/07/2022,550883,3623.16,,F B Design & Renovation Limited,FBD001,Director of Corporate Resources and S151,Balance Sheet,Capital Exp-Non Council Assets,GRANTS
Thanet District Council,28/07/2022,550886,3674.08,,F B Design & Renovation Limited,FBD001,Director of Corporate Resources and S151,Balance Sheet,Capital Exp-Non Council Assets,GRANTS
Thanet District Council,28/07/2022,550888,9049.8,,F B Design & Renovation Limited,FBD001,Director of Corporate Resources and S151,Balance Sheet,Capital Exp-Non Council Assets,GRANTS
Thanet District Council,28/07/2022,550208,480,,Florence Court Hotel Ltd,FLO009,Deputy Chief Executive/S151,Revenue,Services,HOUSING MANAGEMENT
Thanet District Council,28/07/2022,550210,5465,,Florence Court Hotel Ltd,FLO009,Deputy Chief Executive/S151,Revenue,Services,HOUSING MANAGEMENT
Thanet District Council,28/07/2022,550682,2100,,Folkestone & Hythe District Council,FOL002,Deputy Chief Executive/S151,Revenue,Training,VARIOUS CATS-PUBLIC SECTOR
Thanet District Council,28/07/2022,549003,761.74,,Freight Transport Association,FRE007,Dir Ops/Commercial Serv,Revenue,Direct Transport Costs,HUMAN RESOURCES
Thanet District Council,28/07/2022,549125,1368.92,,Hr Go (Kent) Ltd,HRG001,Dir Ops/Commercial Serv,Revenue,Agency Staff,HUMAN RESOURCES
Thanet District Council,28/07/2022,549615,1454.1,,Hr Go (Kent) Ltd,HRG001,Dir Ops/Commercial Serv,Revenue,Agency Staff,HUMAN RESOURCES
Thanet District Council,28/07/2022,550580,11204.89,,Hr Go (Kent) Ltd,HRG001,Dir Ops/Commercial Serv,Revenue,Agency Staff,HUMAN RESOURCES
Thanet District Council,28/07/2022,550581,620.75,,Hr Go (Kent) Ltd,HRG001,Dir Ops/Commercial Serv,Revenue,Agency Staff,HUMAN RESOURCES
Thanet District Council,28/07/2022,550582,1328.37,,Hr Go (Kent) Ltd,HRG001,Dir Ops/Commercial Serv,Revenue,Agency Staff,HUMAN RESOURCES
Thanet District Council,28/07/2022,550583,1859.58,,Hr Go (Kent) Ltd,HRG001,Dir Ops/Commercial Serv,Revenue,Agency Staff,HUMAN RESOURCES
Thanet District Council,28/07/2022,550585,653.54,,Hr Go (Kent) Ltd,HRG001,Dir Ops/Commercial Serv,Revenue,Agency Staff,HUMAN RESOURCES
Thanet District Council,28/07/2022,550586,1519.76,,Hr Go (Kent) Ltd,HRG001,Dir Ops/Commercial Serv,Revenue,Agency Staff,HUMAN RESOURCES
Thanet District Council,28/07/2022,550891,10817.84,,Hubbard & Houghton Construction Ltd,HUB003,Director of Corporate Resources and S151,Balance Sheet,Capital Exp-Non Council Assets,GRANTS
Thanet District Council,28/07/2022,550880,805.5,,John Gale,GAL001,Director of Corporate Resources and S151,Balance Sheet,Capital Exp-Non Council Assets,GRANTS
Thanet District Council,28/07/2022,550007,823,,Land Use Consultants Limited,LAN032,Deputy Chief Executive/S151,Revenue,Services,CONSULTANCY
Thanet District Council,28/07/2022,550686,1512.5,,Luv Corp Ltd,LUV001,Deputy Chief Executive/S151,Revenue,Services,ICT
Thanet District Council,28/07/2022,550546,592.67,,Mc Truck & Bus Ltd,MCT002,Dir Ops/Commercial Serv,Revenue,Direct Transport Costs,VEHICLE MANAGEMENT
Thanet District Council,28/07/2022,550699,20175.64,,Mears Ltd,MEA003,Director of Corporate Resources and S151,Balance Sheet,Repairs And Mtce Holding A/C,CONSTRUCTION-REPAIR AND MAINT
Thanet District Council,28/07/2022,550700,22013.87,,Mears Ltd,MEA003,Director of Corporate Resources and S151,Balance Sheet,Repairs And Mtce Holding A/C,CONSTRUCTION-REPAIR AND MAINT
Thanet District Council,28/07/2022,550547,3159.35,,Michael Page Int Recruitment Ltd,PAG008,Deputy Chief Executive/S151,Revenue,Agency Staff,HUMAN RESOURCES
Thanet District Council,28/07/2022,541319,1482.24,,Npower Direct Limited,NPO005,Director Of Corp Gov/Mon Off,Revenue,Energy Costs,UTILITIES
Thanet District Council,28/07/2022,542245,1426.84,,Npower Direct Limited,NPO005,Director Of Corp Gov/Mon Off,Revenue,Energy Costs,UTILITIES
Thanet District Council,28/07/2022,544606,1419.01,,Npower Direct Limited,NPO005,Director Of Corp Gov/Mon Off,Revenue,Energy Costs,UTILITIES
Thanet District Council,28/07/2022,548959,4129.71,,Ntm-Gb Limited,NTM001,Dir Ops/Commercial Serv,Revenue,Direct Transport Costs,VEHICLE MANAGEMENT
Thanet District Council,28/07/2022,546323,2000,,Ovenden Allworks Limited,OVE008,Dir Ops/Commercial Serv,Revenue,"Equip, Furniture And Materials",CONSTRUCTION-REPAIR AND MAINT
Thanet District Council,28/07/2022,550808,813.21,,Ovenden Allworks Limited,OVE008,Dir Ops/Commercial Serv,Revenue,"Repairs, Alter & Mtce - Build",CONSTRUCTION-REPAIR AND MAINT
Thanet District Council,28/07/2022,550890,750,,Prospects Assured Uk Ltd,PRO032,Deputy Chief Executive/S151,Revenue,Grants & Subscriptions,RENT DEPOSITS
Thanet District Council,28/07/2022,549107,480.81,,Riukl Hygiene,INI004,Dir Ops/Commercial Serv,Revenue,Services,ENVIRONMENTAL SERVICES
Thanet District Council,28/07/2022,550907,65425.33,,Serveco Ltd,SER009,Deputy Chief Executive/S151,Revenue,Grants & Subscriptions,SPECIAL COMMUNITY CARE
Thanet District Council,28/07/2022,549736,6442.68,,Sixis Technology Limited,CUR001,Dir Ops/Commercial Serv,Revenue,"Equip, Furniture And Materials",ICT
Thanet District Council,28/07/2022,550877,8055,,South East Building Company Limited,SEB001,Director of Corporate Resources and S151,Balance Sheet,Capital Exp-Non Council Assets,GRANTS
Thanet District Council,28/07/2022,550884,1394.78,,Town & Country Housing,TOW009,Director of Corporate Resources and S151,Balance Sheet,Capital Exp-Non Council Assets,GRANTS
Thanet District Council,28/07/2022,550887,1644.89,,Town & Country Housing,TOW009,Director of Corporate Resources and S151,Balance Sheet,Capital Exp-Non Council Assets,GRANTS
Thanet District Council,28/07/2022,550889,1085.98,,Town & Country Housing,TOW009,Director of Corporate Resources and S151,Balance Sheet,Capital Exp-Non Council Assets,GRANTS
Thanet District Council,28/07/2022,550894,1302.14,,Town & Country Housing,TOW009,Director of Corporate Resources and S151,Balance Sheet,Capital Exp-Non Council Assets,GRANTS
Thanet District Council,28/07/2022,550896,997.7,,Town & Country Housing,TOW009,Director of Corporate Resources and S151,Balance Sheet,Capital Exp-Non Council Assets,GRANTS
Thanet District Council,28/07/2022,550898,1639,,Town & Country Housing,TOW009,Director of Corporate Resources and S151,Balance Sheet,Capital Exp-Non Council Assets,GRANTS
Thanet District Council,28/07/2022,550902,631.2,,Town & Country Housing,TOW009,Director of Corporate Resources and S151,Balance Sheet,Capital Exp-Non Council Assets,GRANTS
Thanet District Council,28/07/2022,550851,1850,,Travel Weekly Group Limited,TRA070,Director Of Corp Gov/Mon Off,Revenue,Miscellaneous Expenses,FACILITIES AND MANGEMENT SERV
Thanet District Council,28/07/2022,548927,6784.96,,Tructyre Fleet Management Ltd,TRU015,Dir Ops/Commercial Serv,Revenue,Direct Transport Costs,VEHICLE MANAGEMENT
Thanet District Council,28/07/2022,550618,3022.6,,Tudor (Uk) Ltd,TUD005,Dir Ops/Commercial Serv,Revenue,"Equip, Furniture And Materials",HORTICULTURAL
Thanet District Council,29/07/2022,550439,426.8,,Allstar Business Solutions Ltd,ALL038,Dir Ops/Commercial Serv,Revenue,Direct Transport Costs,VEHICLE MANAGEMENT
Thanet District Council,02/08/2022,551116,-962.93,,Ecotricity Limited,ECO008,Dir Ops/Commercial Serv,Revenue,Energy Costs,UTILITIES
Thanet District Council,11/08/2022,551512,-1690.22,,Ecotricity Limited,ECO008,Deputy Chief Executive/S151,Revenue,Energy Costs,UTILITIES
Thanet District Council,11/08/2022,551513,-1635.7,,Ecotricity Limited,ECO008,Deputy Chief Executive/S151,Revenue,Energy Costs,UTILITIES
Thanet District Council,11/08/2022,551514,-1279.58,,Ecotricity Limited,ECO008,Deputy Chief Executive/S151,Revenue,Energy Costs,UTILITIES
Thanet District Council,18/08/2022,551339,-3125,,Michael Page Int Recruitment Ltd,PAG008,Deputy Chief Executive/S151,Revenue,Agency Staff,HUMAN RESOURCES
Thanet District Council,25/08/2022,552602,-531.18,,Ecotricity Limited,ECO008,Deputy Chief Executive/S151,Revenue,Energy Costs,UTILITIES
Thanet District Council,02/08/2022,550012,5217.5,,Charles & Associate Consulting Engineers Ltd,CHA076,Chief Executive,Revenue,Services,CONSULTANCY
Thanet District Council,02/08/2022,550639,593.23,,City Electrical Factors Ltd,CIT001,Director of Corporate Resources and S151,Balance Sheet,Rechargeable Works,BUILDING CONSTRUCTION MATERIAL
Thanet District Council,02/08/2022,550687,7500,,Corstorphine & Wright Limited,COR026,Director of Corporate Resources and S151,Balance Sheet,Other Land And Buildings-Hra,CONSULTANCY
Thanet District Council,02/08/2022,550914,3000,,Crittenden Commercial Limited,CRI009,Director Of Corp Gov/Mon Off,Revenue,Services,CONSULTANCY
Thanet District Council,02/08/2022,549238,3602,,Doro Care (Uk) Ltd,DOR008,Dir Ops/Commercial Serv,Revenue,Services,SPECIAL COMMUNITY CARE
Thanet District Council,02/08/2022,551016,1152.53,,Ecotricity Limited,ECO008,Dir Ops/Commercial Serv,Revenue,Energy Costs,UTILITIES
Thanet District Council,02/08/2022,551017,1592.52,,Ecotricity Limited,ECO008,Deputy Chief Executive/S151,Revenue,Energy Costs,UTILITIES
Thanet District Council,02/08/2022,551028,3323.8,,Ecotricity Limited,ECO008,Dir Ops/Commercial Serv,Revenue,Energy Costs,UTILITIES
Thanet District Council,02/08/2022,551031,519.77,,Ecotricity Limited,ECO008,Deputy Chief Executive/S151,Revenue,Energy Costs,UTILITIES
Thanet District Council,02/08/2022,551032,1851.59,,Ecotricity Limited,ECO008,Deputy Chief Executive/S151,Revenue,Energy Costs,UTILITIES
Thanet District Council,02/08/2022,551033,639.07,,Ecotricity Limited,ECO008,Deputy Chief Executive/S151,Revenue,Energy Costs,UTILITIES
Thanet District Council,02/08/2022,549273,600,,Elinor Seath,SEA029,Chief Executive,Revenue,Services,CONSULTANCY
Thanet District Council,02/08/2022,550796,26602.6,,E Saunders Margate Ltd,SAU001,Director Of Corp Gov/Mon Off,Revenue,"Repairs, Alter & Mtce - Build",CONSTRUCTION-REPAIR AND MAINT
Thanet District Council,02/08/2022,550725,430,,Groundwise Searches Limited,GRO025,Director of Corporate Resources and S151,Balance Sheet,Council Dwellings,UTILITIES
Thanet District Council,02/08/2022,550102,665.25,,Hr Go (Kent) Ltd,HRG001,Deputy Chief Executive/S151,Revenue,Agency Staff,HUMAN RESOURCES
Thanet District Council,02/08/2022,550578,2146.76,,Hr Go (Kent) Ltd,HRG001,Dir Ops/Commercial Serv,Revenue,Agency Staff,HUMAN RESOURCES
Thanet District Council,02/08/2022,550587,443.5,,Hr Go (Kent) Ltd,HRG001,Dir Ops/Commercial Serv,Revenue,Services,HUMAN RESOURCES
Thanet District Council,02/08/2022,548612,23495,,Lister Wilder Limited,LIS002,Director of Corporate Resources and S151,Balance Sheet,Plant And Equipment,HORTICULTURAL
Thanet District Council,02/08/2022,551222,1000,,Lovetts Birchington Ltd,LOV006,Deputy Chief Executive/S151,Revenue,Grants & Subscriptions,RENT DEPOSITS
Thanet District Council,02/08/2022,551069,1250,,REDACTED,LAW027,Deputy Chief Executive/S151,Revenue,Grants & Subscriptions,RENT DEPOSITS
Thanet District Council,02/08/2022,550305,3572.02,,Mears Ltd,MEA003,Dir Ops/Commercial Serv,Revenue,"Repairs, Alter & Mtce - Build",CONSTRUCTION-REPAIR AND MAINT
Thanet District Council,02/08/2022,550402,1313.17,,Mears Ltd,MEA003,Dir Ops/Commercial Serv,Revenue,"Repairs, Alter & Mtce - Build",CONSTRUCTION-REPAIR AND MAINT
Thanet District Council,02/08/2022,550403,1923.8,,Mears Ltd,MEA003,Dir Ops/Commercial Serv,Revenue,"Repairs, Alter & Mtce - Build",CONSTRUCTION-REPAIR AND MAINT
Thanet District Council,02/08/2022,550404,766.94,,Mears Ltd,MEA003,Dir Ops/Commercial Serv,Revenue,"Repairs, Alter & Mtce - Build",CONSTRUCTION-REPAIR AND MAINT
Thanet District Council,02/08/2022,550405,1719.53,,Mears Ltd,MEA003,Dir Ops/Commercial Serv,Revenue,"Repairs, Alter & Mtce - Build",CONSTRUCTION-REPAIR AND MAINT
Thanet District Council,02/08/2022,551221,900,,Miles & Barr Property Mgmt & Lettings,MIL025,Deputy Chief Executive/S151,Revenue,Grants & Subscriptions,RENT DEPOSITS
Thanet District Council,02/08/2022,550550,1000,,Nec Software Solutions Uk Ltd,NOR018,Deputy Chief Executive/S151,Revenue,Communications & Computing,ICT
Thanet District Council,02/08/2022,550549,2806,,Nla Media Access Limited,NLA001,Deputy Chief Executive/S151,Revenue,Grants & Subscriptions,FACILITIES AND MANGEMENT SERV
Thanet District Council,02/08/2022,551200,43751,,Paramount Ind Property Services Llp,PAR074,Deputy Chief Executive/S151,Revenue,Services,HOUSING MANAGEMENT
Thanet District Council,02/08/2022,551201,44026,,Paramount Ind Property Services Llp,PAR074,Deputy Chief Executive/S151,Revenue,Services,HOUSING MANAGEMENT
Thanet District Council,02/08/2022,551202,40590,,Paramount Ind Property Services Llp,PAR074,Deputy Chief Executive/S151,Revenue,Services,HOUSING MANAGEMENT
Thanet District Council,02/08/2022,551203,51332,,Paramount Ind Property Services Llp,PAR074,Deputy Chief Executive/S151,Revenue,Services,HOUSING MANAGEMENT
Thanet District Council,02/08/2022,551204,49147,,Paramount Ind Property Services Llp,PAR074,Deputy Chief Executive/S151,Revenue,Services,HOUSING MANAGEMENT
Thanet District Council,02/08/2022,549651,11629,,Partnering Regeneration Development Ltd,PRD001,Chief Executive,Revenue,Services,CONSULTANCY
Thanet District Council,02/08/2022,550802,1224.5,,Phoenix Software Ltd,PHO002,East Kent Shared Services,Revenue,Communications & Computing,ICT
Thanet District Council,02/08/2022,550803,1224.5,,Phoenix Software Ltd,PHO002,East Kent Shared Services,Revenue,Communications & Computing,ICT
Thanet District Council,02/08/2022,550804,1224.5,,Phoenix Software Ltd,PHO002,East Kent Shared Services,Revenue,Communications & Computing,ICT
Thanet District Council,02/08/2022,550805,24490,,Phoenix Software Ltd,PHO002,East Kent Shared Services,Revenue,Communications & Computing,ICT
Thanet District Council,02/08/2022,550806,1224.5,,Phoenix Software Ltd,PHO002,East Kent Shared Services,Revenue,Communications & Computing,ICT
Thanet District Council,02/08/2022,550807,1224.5,,Phoenix Software Ltd,PHO002,East Kent Shared Services,Revenue,Communications & Computing,ICT
Thanet District Council,02/08/2022,551188,1446.97,,Profile Security Services Limited,PRO018,Director Of Corp Gov/Mon Off,Revenue,Services,FACILITIES AND MANGEMENT SERV
Thanet District Council,02/08/2022,550137,18375,,Ranjit Bhose Qc,BHO001,Deputy Chief Executive/S151,Revenue,Services,LEGAL SERVICES
Thanet District Council,02/08/2022,550691,3575,,Sellick Partnership Ltd,SEL011,Director Of Corp Gov/Mon Off,Revenue,Services,HUMAN RESOURCES
Thanet District Council,02/08/2022,549240,5833.33,,Social Enterprise Kent Cic,SEK001,Chief Executive,Revenue,Services,GRANTS
Thanet District Council,02/08/2022,550451,2851,,Stonaco Fabrications Ltd,STO002,Dir Ops/Commercial Serv,Revenue,"Repairs, Alter & Mtce - Build",CONSTRUCTION-REPAIR AND MAINT
Thanet District Council,02/08/2022,550427,1424.24,,The Oyster Partnership Ltd,OYS001,Director Of Corp Gov/Mon Off,Revenue,Services,HUMAN RESOURCES
Thanet District Council,02/08/2022,550690,3562.5,,The Oyster Partnership Ltd,OYS001,Director Of Corp Gov/Mon Off,Revenue,Services,HUMAN RESOURCES
Thanet District Council,02/08/2022,550127,650,,The Yaboo Company Limited,YAB001,Dir Ops/Commercial Serv,Revenue,"Equip, Furniture And Materials",DOMESTIC GOODS
Thanet District Council,02/08/2022,551177,11564,,Tricolor Limited,TRI020,Dir Ops/Commercial Serv,Revenue,Services,CONSULTANCY
Thanet District Council,02/08/2022,547520,1042,,Zwanny-Ltd,ZWA002,Dir Ops/Commercial Serv,Revenue,"Equip, Furniture And Materials",MARITIME SERVICES
Thanet District Council,04/08/2022,551135,2431.69,,Algeco Uk Limited,ELL015,Dir Ops/Commercial Serv,Revenue,"Equip, Furniture And Materials",FACILITIES AND MANGEMENT SERV
Thanet District Council,04/08/2022,551229,1225,,Arco Training Services Limited,ARC014,Dir Ops/Commercial Serv,Revenue,Training,HUMAN RESOURCES
Thanet District Council,04/08/2022,551347,5311,,Ascendit Lifts Ltd,ASC001,Director of Corporate Resources and S151,Balance Sheet,Capital Exp-Non Council Assets,GRANTS
Thanet District Council,04/08/2022,551401,7100,,Bamber & Co Solicitors Limited,BAM100,Deputy Chief Executive/S151,Revenue,Other Transfer Payments,NON TRADE PAYEE
Thanet District Council,04/08/2022,551127,8388,,Bartec Municipal Technologies Limited,BAR070,Dir Ops/Commercial Serv,Revenue,"Equip, Furniture And Materials",ENVIRONMENTAL SERVICES
Thanet District Council,04/08/2022,550909,2500,,Bcp Council,BOU010,Dir Ops/Commercial Serv,Revenue,Grants & Subscriptions,FACILITIES AND MANGEMENT SERV
Thanet District Council,04/08/2022,549769,924,,British Parking Association,BPA001,Dir Ops/Commercial Serv,Revenue,Grants & Subscriptions,HUMAN RESOURCES
Thanet District Council,04/08/2022,551350,1961.44,,Bt Payment Services Ltd,BTE003,Director of Corporate Resources and S151,Balance Sheet,Telephone Holding Account,ICT
Thanet District Council,04/08/2022,548152,4200,,Ceas Kent Ltd,CEA001,Director of Corporate Resources and S151,Balance Sheet,Repairs And Mtce Holding A/C,FACILITIES AND MANGEMENT SERV
Thanet District Council,04/08/2022,550917,51326.27,,Certas Energy Uk Ltd,CER005,Dir Ops/Commercial Serv,Revenue,Direct Transport Costs,VEHICLE MANAGEMENT
Thanet District Council,04/08/2022,550306,525.1,,Channel Commercials Plc,CCO001,Dir Ops/Commercial Serv,Revenue,Direct Transport Costs,VEHICLE MANAGEMENT
Thanet District Council,04/08/2022,550844,797.76,,Channel Commercials Plc,CCO001,Dir Ops/Commercial Serv,Revenue,Direct Transport Costs,VEHICLE MANAGEMENT
Thanet District Council,04/08/2022,549652,722,,Disclosure And Barring Service,DIS017,Dir Ops/Commercial Serv,Revenue,"Equip, Furniture And Materials",HUMAN RESOURCES
Thanet District Council,04/08/2022,543846,650,,Dover Counselling Centre,DOV014,Director Of Corp Gov/Mon Off,Revenue,Services,HEALTHCARE
Thanet District Council,04/08/2022,551136,618.27,,East Kent Components Ltd,EKC006,Dir Ops/Commercial Serv,Revenue,Direct Transport Costs,VEHICLE MANAGEMENT
Thanet District Council,04/08/2022,549105,1272.92,,Edf Energy Customers Plc,SEE014,Director Of Corp Gov/Mon Off,Revenue,Energy Costs,UTILITIES
Thanet District Council,04/08/2022,551298,649.82,,Envirowaste Solutions Uk Ltd,ENV019,Dir Ops/Commercial Serv,Revenue,Services,HUMAN RESOURCES
Thanet District Council,04/08/2022,551349,12223.43,,F B Design & Renovation Limited,FBD001,Director of Corporate Resources and S151,Balance Sheet,Capital Exp-Non Council Assets,GRANTS
Thanet District Council,04/08/2022,550636,695,,First Advanced Construction Training Ltd,FIR019,Dir Ops/Commercial Serv,Revenue,Training,HUMAN RESOURCES
Thanet District Council,04/08/2022,549666,2273.78,,Gas Call Services Limited,GAS014,Director of Corporate Resources and S151,Balance Sheet,Repairs And Mtce Holding A/C,UTILITIES
Thanet District Council,04/08/2022,550988,1125,,Generator Support Services Ltd,GEN014,Dir Ops/Commercial Serv,Revenue,"Repairs, Alter & Mtce - Build",MARITIME SERVICES
Thanet District Council,04/08/2022,550299,2556.06,,Glasdon Uk Ltd,GLA001,Dir Ops/Commercial Serv,Revenue,"Repairs, Alter & Mtce - Build",ENVIRONMENTAL SERVICES
Thanet District Council,04/08/2022,551061,648.48,,Henry Gordon,GOR010,Deputy Chief Executive/S151,Revenue,Services,LEGAL SERVICES
Thanet District Council,04/08/2022,551049,2346.66,,Hr Go (Kent) Ltd,HRG001,Dir Ops/Commercial Serv,Revenue,Agency Staff,HUMAN RESOURCES
Thanet District Council,04/08/2022,550308,757,,Hydraulic & Engineering Servs Ltd,HYD011,Dir Ops/Commercial Serv,Revenue,"Repairs, Alter & Mtce - Build",VEHICLE MANAGEMENT
Thanet District Council,04/08/2022,551034,768,,Hydraulic & Engineering Servs Ltd,HYD011,Dir Ops/Commercial Serv,Revenue,"Repairs, Alter & Mtce - Build",VEHICLE MANAGEMENT
Thanet District Council,04/08/2022,550913,16219.39,,Kent County Council,KCC002,Director Of Corp Gov/Mon Off,Revenue,Rents,VARIOUS CATS-PUBLIC SECTOR
Thanet District Council,04/08/2022,551233,1000,,Kent County Council,KCC031,Deputy Chief Executive/S151,Revenue,Grants & Subscriptions,VARIOUS CATS-PUBLIC SECTOR
Thanet District Council,04/08/2022,551235,1394,,Kent County Council,KCC031,Deputy Chief Executive/S151,Revenue,Grants & Subscriptions,VARIOUS CATS-PUBLIC SECTOR
Thanet District Council,04/08/2022,550864,1137.62,,Kent County Council (Kcs),KCC003,Dir Ops/Commercial Serv,Revenue,Energy Costs,FACILITIES AND MANGEMENT SERV
Thanet District Council,04/08/2022,551071,600,,Krystelle Wass,WAS007,Director Of Corp Gov/Mon Off,Revenue,Services,LEGAL SERVICES
Thanet District Council,04/08/2022,551070,10800,,Llewellyn Culver Evans,CUL011,Director Of Corp Gov/Mon Off,Revenue,Services,LEGAL SERVICES
Thanet District Council,04/08/2022,551102,1528,,Luv Corp Ltd,LUV001,Director of Corporate Resources and S151,Balance Sheet,Plant And Equipment,ICT
Thanet District Council,04/08/2022,551131,572.16,,Maitland Medical Service Limited,MAI010,Director Of Corp Gov/Mon Off,Revenue,Employee Related Schemes,HEALTHCARE
Thanet District Council,04/08/2022,551133,1187.09,,Maitland Medical Service Limited,MAI010,Director Of Corp Gov/Mon Off,Revenue,Employee Related Schemes,HEALTHCARE
Thanet District Council,04/08/2022,549647,21600,,Mears Ltd,MEA003,Director of Corporate Resources and S151,Balance Sheet,Repairs And Mtce Holding A/C,CONSTRUCTION-REPAIR AND MAINT
Thanet District Council,04/08/2022,550577,388.08,,Mears Ltd,MEA003,Director Of Corp Gov/Mon Off,Revenue,"Repairs, Alter & Mtce - Build",CONSTRUCTION-REPAIR AND MAINT
Thanet District Council,04/08/2022,550577,312.06,,Mears Ltd,MEA003,Dir Ops/Commercial Serv,Revenue,"Repairs, Alter & Mtce - Build",CONSTRUCTION-REPAIR AND MAINT
Thanet District Council,04/08/2022,551074,26611.97,,Mears Ltd,MEA003,Director of Corporate Resources and S151,Balance Sheet,Repairs And Mtce Holding A/C,CONSTRUCTION-REPAIR AND MAINT
Thanet District Council,04/08/2022,551075,12662.8,,Mears Ltd,MEA003,Director of Corporate Resources and S151,Balance Sheet,Repairs And Mtce Holding A/C,CONSTRUCTION-REPAIR AND MAINT
Thanet District Council,04/08/2022,551037,4355.45,,Mhr International Uk Limited,MID013,East Kent Shared Services,Revenue,Communications & Computing,ICT
Thanet District Council,04/08/2022,551309,500,,Mhr International Uk Limited,MID013,East Kent Shared Services,Revenue,Services,ICT
Thanet District Council,04/08/2022,551092,1420.8,,Michael Page Int Recruitment Ltd,PAG008,Deputy Chief Executive/S151,Revenue,Agency Staff,HUMAN RESOURCES
Thanet District Council,04/08/2022,551345,2250,,Mtap Gas Ltd,MTA001,Director of Corporate Resources and S151,Balance Sheet,Capital Exp-Non Council Assets,UTILITIES
Thanet District Council,04/08/2022,551187,20801.94,,Profile Security Services Limited,PRO018,Dir Ops/Commercial Serv,Revenue,Services,FACILITIES AND MANGEMENT SERV
Thanet District Council,04/08/2022,551039,490.57,,Quadient Uk Ltd,NEO003,Director Of Corp Gov/Mon Off,Revenue,"Equip, Furniture And Materials",MAIL SERVICES
Thanet District Council,04/08/2022,550990,910,,R Cannon,CAN007,Dir Ops/Commercial Serv,Revenue,Services,MARITIME SERVICES
Thanet District Council,04/08/2022,551224,815.23,,Safetyshop,SAF010,Dir Ops/Commercial Serv,Revenue,"Repairs, Alter & Mtce - Build",HEALTH AND SAFETY
Thanet District Council,04/08/2022,551085,1500,,Sami Ur Rahman,RAH003,Deputy Chief Executive/S151,Revenue,Services,LEGAL SERVICES
Thanet District Council,04/08/2022,551206,4852.34,,Scottish Water Business Stream Ltd,SCO019,Dir Ops/Commercial Serv,Revenue,Water Services,UTILITIES
Thanet District Council,04/08/2022,551125,3575,,Sellick Partnership Ltd,SEL011,Director Of Corp Gov/Mon Off,Revenue,Services,HUMAN RESOURCES
Thanet District Council,04/08/2022,549475,65309.25,,Serveco Ltd,SER009,Deputy Chief Executive/S151,Revenue,Services,SPECIAL COMMUNITY CARE
Thanet District Council,04/08/2022,551296,2512,,Sharpe Pritchard Llp,SHA030,Director Of Corp Gov/Mon Off,Revenue,Services,LEGAL SERVICES
Thanet District Council,04/08/2022,551297,8766.52,,Sharpe Pritchard Llp,SHA030,Director Of Corp Gov/Mon Off,Revenue,Services,LEGAL SERVICES
Thanet District Council,04/08/2022,550705,1374.5,,Smi Int Group Ltd,SMI055,Dir Ops/Commercial Serv,Revenue,"Clothes, Uniforms & Laundry",CLOTHING
Thanet District Council,04/08/2022,551352,750,,Steven Mayhew,MAY043,Deputy Chief Executive/S151,Revenue,Grants & Subscriptions,RENT DEPOSITS
Thanet District Council,04/08/2022,551353,725.1,,Steven Mayhew,MAY043,Deputy Chief Executive/S151,Revenue,Grants & Subscriptions,RENT DEPOSITS
Thanet District Council,04/08/2022,551351,1750,,Tee2 Property Solutions,TEE001,Deputy Chief Executive/S151,Revenue,Grants & Subscriptions,RENT DEPOSITS
Thanet District Council,04/08/2022,550858,1780.3,,The Oyster Partnership Ltd,OYS001,Director Of Corp Gov/Mon Off,Revenue,Services,HUMAN RESOURCES
Thanet District Council,04/08/2022,551348,10000,,Town & Country Housing,TOW009,Director of Corporate Resources and S151,Balance Sheet,Capital Exp-Non Council Assets,GRANTS
Thanet District Council,04/08/2022,551044,2071.22,,Trustmarque Solutions Limited,TRU014,Director of Corporate Resources and S151,Balance Sheet,Plant And Equipment,ICT
Thanet District Council,04/08/2022,551223,459.6,,Tudor (Uk) Ltd,TUD005,Dir Ops/Commercial Serv,Revenue,"Equip, Furniture And Materials",HORTICULTURAL
Thanet District Council,04/08/2022,550665,700,,Ws Cole & Sons Limited,WSC001,Dir Ops/Commercial Serv,Revenue,Services,CEMETERY AND CREMATORIUM
Thanet District Council,04/08/2022,550666,700,,Ws Cole & Sons Limited,WSC001,Dir Ops/Commercial Serv,Revenue,Services,CEMETERY AND CREMATORIUM
Thanet District Council,04/08/2022,550667,700,,Ws Cole & Sons Limited,WSC001,Dir Ops/Commercial Serv,Revenue,Services,CEMETERY AND CREMATORIUM
Thanet District Council,04/08/2022,550668,700,,Ws Cole & Sons Limited,WSC001,Dir Ops/Commercial Serv,Revenue,Services,CEMETERY AND CREMATORIUM
Thanet District Council,05/08/2022,551545,517.93,,Capita Business Services Ltd,CAP001,Deputy Chief Executive/S151,Revenue,Services,HUMAN RESOURCES
Thanet District Council,05/08/2022,551299,15800,,Public Works Loan Board,PWL001,Director of Corporate Resources and S151,Balance Sheet,Debit Interest And Expenses,INVESTMENTS AND LOANS
Thanet District Council,05/08/2022,551300,373.1,,Public Works Loan Board,PWL001,Director of Corporate Resources and S151,Balance Sheet,Borrowing Repayable>1 Yr,INVESTMENTS AND LOANS
Thanet District Council,05/08/2022,551300,995.22,,Public Works Loan Board,PWL001,Director of Corporate Resources and S151,Balance Sheet,Debit Interest And Expenses,INVESTMENTS AND LOANS
Thanet District Council,09/08/2022,551703,1725,,Bptw Llp,BPT002,Deputy Chief Executive/S151,Revenue,Services,HUMAN RESOURCES
Thanet District Council,09/08/2022,551308,900.5,,Doro Care (Uk) Ltd,DOR008,Dir Ops/Commercial Serv,Revenue,Services,SPECIAL COMMUNITY CARE
Thanet District Council,09/08/2022,549145,850,,Envirocure Ltd,ENV011,Director of Corporate Resources and S151,Balance Sheet,Repairs And Mtce Holding A/C,FACILITIES AND MANGEMENT SERV
Thanet District Council,09/08/2022,550835,795,,Formation Scaffolding Solutions,BON007,Director of Corporate Resources and S151,Balance Sheet,Rechargeable Works,CONSTRUCTION-REPAIR AND MAINT
Thanet District Council,09/08/2022,551147,930,,Four Jays Ltd,FOU007,Dir Ops/Commercial Serv,Revenue,Services,ARTS AND LEISURE SERVICES
Thanet District Council,09/08/2022,551148,470,,Four Jays Ltd,FOU007,Dir Ops/Commercial Serv,Revenue,Services,ARTS AND LEISURE SERVICES
Thanet District Council,09/08/2022,551149,1010,,Four Jays Ltd,FOU007,Dir Ops/Commercial Serv,Revenue,Services,ARTS AND LEISURE SERVICES
Thanet District Council,09/08/2022,551150,515,,Four Jays Ltd,FOU007,Dir Ops/Commercial Serv,Revenue,Services,ARTS AND LEISURE SERVICES
Thanet District Council,09/08/2022,551151,544,,Four Jays Ltd,FOU007,Dir Ops/Commercial Serv,Revenue,Services,ARTS AND LEISURE SERVICES
Thanet District Council,09/08/2022,551153,544,,Four Jays Ltd,FOU007,Dir Ops/Commercial Serv,Revenue,Services,ARTS AND LEISURE SERVICES
Thanet District Council,09/08/2022,551155,544,,Four Jays Ltd,FOU007,Dir Ops/Commercial Serv,Revenue,Services,ARTS AND LEISURE SERVICES
Thanet District Council,09/08/2022,551157,544,,Four Jays Ltd,FOU007,Dir Ops/Commercial Serv,Revenue,Services,ARTS AND LEISURE SERVICES
Thanet District Council,09/08/2022,551192,798,,Four Jays Ltd,FOU007,Dir Ops/Commercial Serv,Revenue,Services,ARTS AND LEISURE SERVICES
Thanet District Council,09/08/2022,551193,462,,Four Jays Ltd,FOU007,Dir Ops/Commercial Serv,Revenue,Services,ARTS AND LEISURE SERVICES
Thanet District Council,09/08/2022,551143,1406,,Gas Contract Services Ltd,GAS004,Director of Corporate Resources and S151,Balance Sheet,Repairs And Mtce Holding A/C,CONSTRUCTION-REPAIR AND MAINT
Thanet District Council,09/08/2022,550409,788.81,,Hi Way Services Ltd,HIW002,Dir Ops/Commercial Serv,Revenue,"Repairs, Alter & Mtce - Build",HIGHWAY EQUIPMENT AND MATERIAL
Thanet District Council,09/08/2022,550101,998.1,,Hr Go (Kent) Ltd,HRG001,Dir Ops/Commercial Serv,Revenue,Agency Staff,HUMAN RESOURCES
Thanet District Council,09/08/2022,551051,3429.12,,Hr Go (Kent) Ltd,HRG001,Dir Ops/Commercial Serv,Revenue,Agency Staff,HUMAN RESOURCES
Thanet District Council,09/08/2022,551052,1194.31,,Hr Go (Kent) Ltd,HRG001,Dir Ops/Commercial Serv,Revenue,Agency Staff,HUMAN RESOURCES
Thanet District Council,09/08/2022,551054,508.61,,Hr Go (Kent) Ltd,HRG001,Dir Ops/Commercial Serv,Revenue,Agency Staff,HUMAN RESOURCES
Thanet District Council,09/08/2022,551055,443.5,,Hr Go (Kent) Ltd,HRG001,Dir Ops/Commercial Serv,Revenue,Services,HUMAN RESOURCES
Thanet District Council,09/08/2022,551057,656.38,,Hr Go (Kent) Ltd,HRG001,Dir Ops/Commercial Serv,Revenue,Agency Staff,HUMAN RESOURCES
Thanet District Council,09/08/2022,551058,548.25,,Hr Go (Kent) Ltd,HRG001,Dir Ops/Commercial Serv,Revenue,Agency Staff,HUMAN RESOURCES
Thanet District Council,09/08/2022,551198,3467.75,,Jon Lambourne Arboricultural Consult,LAM015,Deputy Chief Executive/S151,Revenue,Services,CONSULTANCY
Thanet District Council,09/08/2022,551540,906.42,,Lumens Technologies Uk Ltd,CEN021,Director of Corporate Resources and S151,Balance Sheet,Telephone Holding Account,ICT
Thanet District Council,09/08/2022,551164,1505.71,,Mark One Hire Ltd,MAR121,Dir Ops/Commercial Serv,Revenue,"Equip, Furniture And Materials",HORTICULTURAL
Thanet District Council,09/08/2022,549636,587.3,,Mears Ltd,MEA003,Director of Corporate Resources and S151,Balance Sheet,Repairs And Mtce Holding A/C,CONSTRUCTION-REPAIR AND MAINT
Thanet District Council,09/08/2022,549637,587.3,,Mears Ltd,MEA003,Director of Corporate Resources and S151,Balance Sheet,Repairs And Mtce Holding A/C,CONSTRUCTION-REPAIR AND MAINT
Thanet District Council,09/08/2022,550843,2161.45,,Ovenden Allworks Limited,OVE008,Dir Ops/Commercial Serv,Revenue,"Equip, Furniture And Materials",CONSTRUCTION-REPAIR AND MAINT
Thanet District Council,09/08/2022,550631,6825,,Paygate Solutions Limited,COR025,Deputy Chief Executive/S151,Revenue,Communications & Computing,ICT
Thanet District Council,09/08/2022,551060,2201.71,,Posturite Ltd,POS010,Dir Ops/Commercial Serv,Revenue,"Equip, Furniture And Materials",HEALTH AND SAFETY
Thanet District Council,09/08/2022,548885,628,,Precision Lift Services Limited,PLS001,Director of Corporate Resources and S151,Balance Sheet,Repairs And Mtce Holding A/C,FACILITIES AND MANGEMENT SERV
Thanet District Council,09/08/2022,551566,83757.88,,Premier Roofing And Construction Ltd,PRE039,Director of Corporate Resources and S151,Balance Sheet,Repairs And Mtce Holding A/C,CONSTRUCTION-REPAIR AND MAINT
Thanet District Council,09/08/2022,551701,1884.61,,Prospects Assured Uk Ltd,PRO032,Deputy Chief Executive/S151,Revenue,Grants & Subscriptions,RENT DEPOSITS
Thanet District Council,09/08/2022,551046,480.81,,Riukl Hygiene,INI004,Dir Ops/Commercial Serv,Revenue,Services,ENVIRONMENTAL SERVICES
Thanet District Council,09/08/2022,551549,555.04,,Scottish Water Business Stream Ltd,SCO019,Dir Ops/Commercial Serv,Revenue,Water Services,UTILITIES
Thanet District Council,09/08/2022,551558,631.84,,Scottish Water Business Stream Ltd,SCO019,Dir Ops/Commercial Serv,Revenue,Water Services,UTILITIES
Thanet District Council,09/08/2022,550417,631,,Signway Supplies (Datchet) Limited,SIG013,Dir Ops/Commercial Serv,Revenue,"Repairs, Alter & Mtce - Build",HIGHWAY EQUIPMENT AND MATERIAL
Thanet District Council,09/08/2022,547263,5961.15,,Sureserve Fire & Electrical,ALL049,Director of Corporate Resources and S151,Balance Sheet,Repairs And Mtce Holding A/C,CONSTRUCTION-REPAIR AND MAINT
Thanet District Council,09/08/2022,549654,4768.92,,Sureserve Fire & Electrical,ALL049,Director of Corporate Resources and S151,Balance Sheet,Repairs And Mtce Holding A/C,CONSTRUCTION-REPAIR AND MAINT
Thanet District Council,09/08/2022,551310,4768.92,,Sureserve Fire & Electrical,ALL049,Director of Corporate Resources and S151,Balance Sheet,Repairs And Mtce Holding A/C,CONSTRUCTION-REPAIR AND MAINT
Thanet District Council,09/08/2022,551179,500,,Top Branch Tree Services,TOP012,Director of Corporate Resources and S151,Balance Sheet,Repairs And Mtce Holding A/C,HORTICULTURAL
Thanet District Council,09/08/2022,551180,500,,Top Branch Tree Services,TOP012,Director of Corporate Resources and S151,Balance Sheet,Repairs And Mtce Holding A/C,HORTICULTURAL
Thanet District Council,09/08/2022,550861,3235.3,,Total Supplies Ltd,TOT009,Dir Ops/Commercial Serv,Revenue,"Equip, Furniture And Materials",CLEANING AND JANITORIAL
Thanet District Council,09/08/2022,551212,12479.18,,Town & Country Cleaners Ltd,TOW002,Director of Corporate Resources and S151,Balance Sheet,Repairs And Mtce Holding A/C,CLEANING AND JANITORIAL
Thanet District Council,11/08/2022,551564,688,,Browne Jacobson Llp,BRO080,Director of Corporate Resources and S151,Balance Sheet,Provisions-Future Settlement,LEGAL SERVICES
Thanet District Council,11/08/2022,551894,1500,,Cipfa Business Ltd,CIP008,Deputy Chief Executive/S151,Revenue,Training,FINANCIAL SERVICES
Thanet District Council,11/08/2022,551900,4954.83,,Civica Uk Ltd,CIV003,East Kent Shared Services,Revenue,Communications & Computing,ICT
Thanet District Council,11/08/2022,551506,1085.06,,Crystal Facilities Management Services,CRY003,Director Of Corp Gov/Mon Off,Revenue,Cleaning & Domestic Supplies,CLEANING AND JANITORIAL
Thanet District Council,11/08/2022,551593,520.68,,Ecotricity Limited,ECO008,Dir Ops/Commercial Serv,Revenue,Energy Costs,UTILITIES
Thanet District Council,11/08/2022,551660,898.03,,Ecotricity Limited,ECO008,Dir Ops/Commercial Serv,Revenue,Energy Costs,UTILITIES
Thanet District Council,11/08/2022,551661,641.89,,Ecotricity Limited,ECO008,Dir Ops/Commercial Serv,Revenue,Energy Costs,UTILITIES
Thanet District Council,11/08/2022,551670,746.5,,Ecotricity Limited,ECO008,Deputy Chief Executive/S151,Revenue,Energy Costs,UTILITIES
Thanet District Council,11/08/2022,551673,616.43,,Ecotricity Limited,ECO008,Deputy Chief Executive/S151,Revenue,Energy Costs,UTILITIES
Thanet District Council,11/08/2022,551537,491.67,,First Intuition Limited,FIR018,Director Of Corp Gov/Mon Off,Revenue,Training,HUMAN RESOURCES
Thanet District Council,11/08/2022,551330,600,,Henry Gordon,GOR010,Dir Ops/Commercial Serv,Revenue,Services,LEGAL SERVICES
Thanet District Council,11/08/2022,550575,7323.62,,Jentex Fuel Oils,JEN005,Dir Ops/Commercial Serv,Revenue,"Equip, Furniture And Materials",UTILITIES
Thanet District Council,11/08/2022,551161,4001.6,,Jentex Fuel Oils,JEN005,Dir Ops/Commercial Serv,Revenue,"Equip, Furniture And Materials",UTILITIES
Thanet District Council,11/08/2022,551162,4125,,Jentex Fuel Oils,JEN005,Dir Ops/Commercial Serv,Revenue,"Equip, Furniture And Materials",UTILITIES
Thanet District Council,11/08/2022,551163,7026,,Jentex Fuel Oils,JEN005,Dir Ops/Commercial Serv,Revenue,"Equip, Furniture And Materials",UTILITIES
Thanet District Council,11/08/2022,551337,3798.48,,Jentex Fuel Oils,JEN005,Dir Ops/Commercial Serv,Revenue,"Equip, Furniture And Materials",UTILITIES
Thanet District Council,11/08/2022,551338,6438.39,,Jentex Fuel Oils,JEN005,Dir Ops/Commercial Serv,Revenue,"Equip, Furniture And Materials",UTILITIES
Thanet District Council,11/08/2022,551830,6065.32,,Jentex Fuel Oils,JEN005,Dir Ops/Commercial Serv,Revenue,"Equip, Furniture And Materials",UTILITIES
Thanet District Council,11/08/2022,551539,574.7,,Maitland Medical Service Limited,MAI010,Director Of Corp Gov/Mon Off,Revenue,Employee Related Schemes,HEALTHCARE
Thanet District Council,11/08/2022,551952,800,,Oakwood Homes Estate Agents Ltd,OAK007,Deputy Chief Executive/S151,Revenue,Grants & Subscriptions,RENT DEPOSITS
Thanet District Council,11/08/2022,551692,1450,,Page Plan Prints,PAG009,Deputy Chief Executive/S151,Revenue,"Print, Stat And Gen Off Exps",FACILITIES AND MANGEMENT SERV
Thanet District Council,11/08/2022,551906,3074.16,,Peter Mant,MAN034,Director of Corporate Resources and S151,Balance Sheet,Provisions-Future Settlement,LEGAL SERVICES
Thanet District Council,11/08/2022,551555,4543.44,,Scottish Water Business Stream Ltd,SCO019,Dir Ops/Commercial Serv,Revenue,Water Services,UTILITIES
Thanet District Council,11/08/2022,551557,4788.31,,Scottish Water Business Stream Ltd,SCO019,Dir Ops/Commercial Serv,Revenue,Water Services,UTILITIES
Thanet District Council,11/08/2022,551693,4987.02,,Scottish Water Business Stream Ltd,SCO019,Dir Ops/Commercial Serv,Revenue,Water Services,UTILITIES
Thanet District Council,11/08/2022,551648,3575,,Sellick Partnership Ltd,SEL011,Director Of Corp Gov/Mon Off,Revenue,Services,HUMAN RESOURCES
Thanet District Council,11/08/2022,551810,2500,,Sibley Pares (Taylor Riley) Ltd,SIB001,Director Of Corp Gov/Mon Off,Revenue,Services,CONSULTANCY
Thanet District Council,11/08/2022,551565,1969.39,,Steelcase (South - East) Limited,STE045,Dir Ops/Commercial Serv,Revenue,"Equip, Furniture And Materials",FURNITURE AND SOFT FURNISHINGS
Thanet District Council,11/08/2022,551325,1780.3,,The Oyster Partnership Ltd,OYS001,Director Of Corp Gov/Mon Off,Revenue,Services,HUMAN RESOURCES
Thanet District Council,12/08/2022,551941,1227.31,,Capita Business Services Ltd,CAP001,Deputy Chief Executive/S151,Revenue,Services,HUMAN RESOURCES
Thanet District Council,16/08/2022,551099,540.82,,Castle Automotive & Eng Supp Ltd,CAS024,Dir Ops/Commercial Serv,Revenue,"Equip, Furniture And Materials",VEHICLE MANAGEMENT
Thanet District Council,16/08/2022,551103,8760.5,,Ccs Media Limited,CCS003,Deputy Chief Executive/S151,Revenue,Communications & Computing,ICT
Thanet District Council,16/08/2022,551103,5840.34,,Ccs Media Limited,CCS003,East Kent Shared Services,Revenue,Communications & Computing,ICT
Thanet District Council,16/08/2022,550696,3787.75,,Donald Insall Associates Ltd,DON001,Director of Corporate Resources and S151,Balance Sheet,Capital Exp-Non Council Assets,CONSTRUCTION-REPAIR AND MAINT
Thanet District Council,16/08/2022,551606,531.18,,Ecotricity Limited,ECO008,Deputy Chief Executive/S151,Revenue,Energy Costs,UTILITIES
Thanet District Council,16/08/2022,551654,1679.04,,Ecotricity Limited,ECO008,Deputy Chief Executive/S151,Revenue,Energy Costs,UTILITIES
Thanet District Council,16/08/2022,551750,668,,Ecotricity Limited,ECO008,Deputy Chief Executive/S151,Revenue,Energy Costs,UTILITIES
Thanet District Council,16/08/2022,551769,543.44,,Ecotricity Limited,ECO008,Deputy Chief Executive/S151,Revenue,Energy Costs,UTILITIES
Thanet District Council,16/08/2022,551899,649.82,,Envirowaste Solutions Uk Ltd,ENV019,Dir Ops/Commercial Serv,Revenue,Services,HUMAN RESOURCES
Thanet District Council,16/08/2022,551883,487.05,,Hands On Suppliers Ltd,HAN007,Dir Ops/Commercial Serv,Revenue,"Equip, Furniture And Materials",CLOTHING
Thanet District Council,16/08/2022,551056,11628.51,,Hr Go (Kent) Ltd,HRG001,Dir Ops/Commercial Serv,Revenue,Agency Staff,HUMAN RESOURCES
Thanet District Council,16/08/2022,551526,559.22,,Hr Go (Kent) Ltd,HRG001,Dir Ops/Commercial Serv,Revenue,Agency Staff,HUMAN RESOURCES
Thanet District Council,16/08/2022,551527,1278.57,,Hr Go (Kent) Ltd,HRG001,Dir Ops/Commercial Serv,Revenue,Agency Staff,HUMAN RESOURCES
Thanet District Council,16/08/2022,551528,656.38,,Hr Go (Kent) Ltd,HRG001,Dir Ops/Commercial Serv,Revenue,Agency Staff,HUMAN RESOURCES
Thanet District Council,16/08/2022,551529,443.5,,Hr Go (Kent) Ltd,HRG001,Dir Ops/Commercial Serv,Revenue,Services,HUMAN RESOURCES
Thanet District Council,16/08/2022,551530,10937.94,,Hr Go (Kent) Ltd,HRG001,Dir Ops/Commercial Serv,Revenue,Agency Staff,HUMAN RESOURCES
Thanet District Council,16/08/2022,551532,2845.62,,Hr Go (Kent) Ltd,HRG001,Dir Ops/Commercial Serv,Revenue,Agency Staff,HUMAN RESOURCES
Thanet District Council,16/08/2022,551355,361252.79,,Kent County Council,KCC002,Director of Corporate Resources and S151,Balance Sheet,Capital Exp-Non Council Assets,VARIOUS CATS-PUBLIC SECTOR
Thanet District Council,16/08/2022,551889,979.32,,Kent County Council (Kcs),KCC003,Dir Ops/Commercial Serv,Revenue,Energy Costs,FACILITIES AND MANGEMENT SERV
Thanet District Council,16/08/2022,550729,14617.93,,Kompan Ltd,KOM001,Director of Corporate Resources and S151,Balance Sheet,Plant And Equipment,SPORTS PLAYGROUND EQUIPMENT
Thanet District Council,16/08/2022,551357,515.36,,Mc Truck & Bus Ltd,MCT002,Dir Ops/Commercial Serv,Revenue,Direct Transport Costs,VEHICLE MANAGEMENT
Thanet District Council,16/08/2022,551536,516.12,,Mc Truck & Bus Ltd,MCT002,Dir Ops/Commercial Serv,Revenue,Direct Transport Costs,VEHICLE MANAGEMENT
Thanet District Council,16/08/2022,552038,16031.83,,Mears Ltd,MEA003,Director of Corporate Resources and S151,Balance Sheet,Repairs And Mtce Holding A/C,CONSTRUCTION-REPAIR AND MAINT
Thanet District Council,16/08/2022,552039,19183.71,,Mears Ltd,MEA003,Director of Corporate Resources and S151,Balance Sheet,Repairs And Mtce Holding A/C,CONSTRUCTION-REPAIR AND MAINT
Thanet District Council,16/08/2022,552040,19024.56,,Mears Ltd,MEA003,Director of Corporate Resources and S151,Balance Sheet,Repairs And Mtce Holding A/C,CONSTRUCTION-REPAIR AND MAINT
Thanet District Council,16/08/2022,552041,5001.21,,Mears Ltd,MEA003,Director of Corporate Resources and S151,Balance Sheet,Repairs And Mtce Holding A/C,CONSTRUCTION-REPAIR AND MAINT
Thanet District Council,16/08/2022,551742,3471,,Med Clean South Ltd,MED015,Dir Ops/Commercial Serv,Revenue,"Repairs, Alter & Mtce - Build",CLEANING AND JANITORIAL
Thanet District Council,16/08/2022,552141,1250,,Miles & Barr Property Mgmt & Lettings,MIL025,Deputy Chief Executive/S151,Revenue,Grants & Subscriptions,RENT DEPOSITS
Thanet District Council,16/08/2022,552140,1250,,Mr Re And Mrs C Glover,GLO021,Deputy Chief Executive/S151,Revenue,Grants & Subscriptions,RENT DEPOSITS
Thanet District Council,16/08/2022,550836,2940,,Munihire Limited,MUN012,Dir Ops/Commercial Serv,Revenue,Cont Hire & Operating Lease,VEHICLE MANAGEMENT
Thanet District Council,16/08/2022,550703,646.11,,Ncc Mechanical Services Limited,NCC006,Director Of Corp Gov/Mon Off,Revenue,"Repairs, Alter & Mtce - Build",CONSTRUCTION-REPAIR AND MAINT
Thanet District Council,16/08/2022,551542,18032.21,,Ovenden Allworks Limited,OVE008,Director of Corporate Resources and S151,Balance Sheet,Infrastructure,CONSTRUCTION-REPAIR AND MAINT
Thanet District Council,16/08/2022,551406,2205,,Probe Limited,PRO040,Dir Ops/Commercial Serv,Revenue,Agency Staff,STREET AND TRAFFIC MANAGEMENT
Thanet District Council,16/08/2022,551407,420,,Probe Limited,PRO040,Dir Ops/Commercial Serv,Revenue,Agency Staff,STREET AND TRAFFIC MANAGEMENT
Thanet District Council,16/08/2022,552142,1250,,Prospects Assured Uk Ltd,PRO032,Deputy Chief Executive/S151,Revenue,Grants & Subscriptions,RENT DEPOSITS
Thanet District Council,16/08/2022,551887,2950,,Sitech Surveying Services Limited,SIT008,Director of Corporate Resources and S151,Balance Sheet,Council Dwellings,CONSTRUCTION-REPAIR AND MAINT
Thanet District Council,16/08/2022,551073,3562.5,,The Oyster Partnership Ltd,OYS001,Director Of Corp Gov/Mon Off,Revenue,Services,HUMAN RESOURCES
Thanet District Council,16/08/2022,551314,3562.5,,The Oyster Partnership Ltd,OYS001,Director Of Corp Gov/Mon Off,Revenue,Services,HUMAN RESOURCES
Thanet District Council,16/08/2022,551712,452.63,,Watling Jcb Limited,WAT024,Dir Ops/Commercial Serv,Revenue,Direct Transport Costs,VEHICLE MANAGEMENT
Thanet District Council,18/08/2022,551175,16739,,24/7 Housing Limited T/A Cornerstone Property,247001,Deputy Chief Executive/S151,Revenue,Services,HOUSING MANAGEMENT
Thanet District Council,18/08/2022,551915,7427.8,,Browne Jacobson Llp,BRO080,Director of Corporate Resources and S151,Balance Sheet,Provisions-Future Settlement,LEGAL SERVICES
Thanet District Council,18/08/2022,552091,64895,,Civica Uk Ltd,CIV003,Deputy Chief Executive/S151,Revenue,Services,ICT
Thanet District Council,18/08/2022,552148,19584,,Civica Uk Ltd,CIV003,East Kent Shared Services,Revenue,Services,ICT
Thanet District Council,18/08/2022,552149,66021,,Civica Uk Ltd,CIV003,East Kent Shared Services,Revenue,Grants & Subscriptions,ICT
Thanet District Council,18/08/2022,551601,1636.47,,Ecotricity Limited,ECO008,Dir Ops/Commercial Serv,Revenue,Energy Costs,UTILITIES
Thanet District Council,18/08/2022,551805,1952.11,,Ecotricity Limited,ECO008,Deputy Chief Executive/S151,Revenue,Energy Costs,UTILITIES
Thanet District Council,18/08/2022,551821,2612.8,,Ecotricity Limited,ECO008,Deputy Chief Executive/S151,Revenue,Energy Costs,UTILITIES
Thanet District Council,18/08/2022,552010,3079.95,,Ecotricity Limited,ECO008,Dir Ops/Commercial Serv,Revenue,Energy Costs,UTILITIES
Thanet District Council,18/08/2022,552013,548.55,,Ecotricity Limited,ECO008,Dir Ops/Commercial Serv,Revenue,Energy Costs,UTILITIES
Thanet District Council,18/08/2022,552015,5675.35,,Ecotricity Limited,ECO008,Dir Ops/Commercial Serv,Revenue,Energy Costs,UTILITIES
Thanet District Council,18/08/2022,552019,3855.38,,Ecotricity Limited,ECO008,Dir Ops/Commercial Serv,Revenue,Energy Costs,UTILITIES
Thanet District Council,18/08/2022,552129,7533.38,,Ecotricity Limited,ECO008,Dir Ops/Commercial Serv,Revenue,Energy Costs,UTILITIES
Thanet District Council,18/08/2022,552250,552.68,,Ecotricity Limited,ECO008,Deputy Chief Executive/S151,Revenue,Energy Costs,UTILITIES
Thanet District Council,18/08/2022,552267,4720,,Evermech Services Ltd,EVE011,Director of Corporate Resources and S151,Balance Sheet,Capital Exp-Non Council Assets,GRANTS
Thanet District Council,18/08/2022,552268,9980,,Evermech Services Ltd,EVE011,Director of Corporate Resources and S151,Balance Sheet,Capital Exp-Non Council Assets,GRANTS
Thanet District Council,18/08/2022,552269,6850,,Evermech Services Ltd,EVE011,Director of Corporate Resources and S151,Balance Sheet,Capital Exp-Non Council Assets,GRANTS
Thanet District Council,18/08/2022,552276,16385,,Evermech Services Ltd,EVE011,Director of Corporate Resources and S151,Balance Sheet,Capital Exp-Non Council Assets,GRANTS
Thanet District Council,18/08/2022,552281,6201.52,,Evermech Services Ltd,EVE011,Director of Corporate Resources and S151,Balance Sheet,Capital Exp-Non Council Assets,GRANTS
Thanet District Council,18/08/2022,552270,9000,,F B Design & Renovation Limited,FBD001,Director of Corporate Resources and S151,Balance Sheet,Capital Exp-Non Council Assets,GRANTS
Thanet District Council,18/08/2022,552279,8834.09,,F B Design & Renovation Limited,FBD001,Director of Corporate Resources and S151,Balance Sheet,Capital Exp-Non Council Assets,GRANTS
Thanet District Council,18/08/2022,552285,7000,,F B Design & Renovation Limited,FBD001,Director of Corporate Resources and S151,Balance Sheet,Capital Exp-Non Council Assets,GRANTS
Thanet District Council,18/08/2022,552231,40000,,Grant Thornton Uk Llp,GRA048,Deputy Chief Executive/S151,Revenue,Services,FINANCIAL SERVICES
Thanet District Council,18/08/2022,552232,5000,,Grant Thornton Uk Llp,GRA048,Deputy Chief Executive/S151,Revenue,Services,FINANCIAL SERVICES
Thanet District Council,18/08/2022,552266,6150,,Higher Elevation Limited,HIG010,Director of Corporate Resources and S151,Balance Sheet,Capital Exp-Non Council Assets,GRANTS
Thanet District Council,18/08/2022,550099,5456.91,,Hr Go (Kent) Ltd,HRG001,Dir Ops/Commercial Serv,Revenue,Agency Staff,HUMAN RESOURCES
Thanet District Council,18/08/2022,550103,10338.31,,Hr Go (Kent) Ltd,HRG001,Dir Ops/Commercial Serv,Revenue,Agency Staff,HUMAN RESOURCES
Thanet District Council,18/08/2022,550584,7175.17,,Hr Go (Kent) Ltd,HRG001,Dir Ops/Commercial Serv,Revenue,Agency Staff,HUMAN RESOURCES
Thanet District Council,18/08/2022,550588,9600.63,,Hr Go (Kent) Ltd,HRG001,Dir Ops/Commercial Serv,Revenue,Agency Staff,HUMAN RESOURCES
Thanet District Council,18/08/2022,551050,6003.19,,Hr Go (Kent) Ltd,HRG001,Dir Ops/Commercial Serv,Revenue,Agency Staff,HUMAN RESOURCES
Thanet District Council,18/08/2022,551053,1055.07,,Hr Go (Kent) Ltd,HRG001,Dir Ops/Commercial Serv,Revenue,Agency Staff,HUMAN RESOURCES
Thanet District Council,18/08/2022,551059,10934.06,,Hr Go (Kent) Ltd,HRG001,Dir Ops/Commercial Serv,Revenue,Agency Staff,HUMAN RESOURCES
Thanet District Council,18/08/2022,551523,1178.8,,Hr Go (Kent) Ltd,HRG001,Dir Ops/Commercial Serv,Revenue,Agency Staff,HUMAN RESOURCES
Thanet District Council,18/08/2022,551524,11496.41,,Hr Go (Kent) Ltd,HRG001,Dir Ops/Commercial Serv,Revenue,Agency Staff,HUMAN RESOURCES
Thanet District Council,18/08/2022,551525,5002.41,,Hr Go (Kent) Ltd,HRG001,Dir Ops/Commercial Serv,Revenue,Agency Staff,HUMAN RESOURCES
Thanet District Council,18/08/2022,552275,1024.5,,John Gale,GAL001,Director of Corporate Resources and S151,Balance Sheet,Capital Exp-Non Council Assets,GRANTS
Thanet District Council,18/08/2022,552278,1001.7,,John Gale,GAL001,Director of Corporate Resources and S151,Balance Sheet,Capital Exp-Non Council Assets,GRANTS
Thanet District Council,18/08/2022,552026,1470,,Kent County Council,KCC002,Director Of Corp Gov/Mon Off,Revenue,Services,VARIOUS CATS-PUBLIC SECTOR
Thanet District Council,18/08/2022,552102,5341786,,Kent County Council,KCC002,Director of Corporate Resources and S151,Balance Sheet,Collection Fund,VARIOUS CATS-PUBLIC SECTOR
Thanet District Council,18/08/2022,551888,1461.44,,Kent County Council (Kcs),KCC003,Director Of Corp Gov/Mon Off,Revenue,Energy Costs,FACILITIES AND MANGEMENT SERV
Thanet District Council,18/08/2022,551890,563.59,,Kent County Council (Kcs),KCC003,Dir Ops/Commercial Serv,Revenue,Energy Costs,FACILITIES AND MANGEMENT SERV
Thanet District Council,18/08/2022,551891,1970.2,,Kent County Council (Kcs),KCC003,Deputy Chief Executive/S151,Revenue,Energy Costs,FACILITIES AND MANGEMENT SERV
Thanet District Council,18/08/2022,551904,7121.21,,Kent County Council (Kcs),KCC003,Dir Ops/Commercial Serv,Revenue,Energy Costs,FACILITIES AND MANGEMENT SERV
Thanet District Council,18/08/2022,552159,2350.4,,Kent County Council (Kcs),KCC003,Dir Ops/Commercial Serv,Revenue,Energy Costs,FACILITIES AND MANGEMENT SERV
Thanet District Council,18/08/2022,552160,3323.47,,Kent County Council (Kcs),KCC003,Dir Ops/Commercial Serv,Revenue,Energy Costs,FACILITIES AND MANGEMENT SERV
Thanet District Council,18/08/2022,552161,8783.58,,Kent County Council (Kcs),KCC003,Dir Ops/Commercial Serv,Revenue,Energy Costs,FACILITIES AND MANGEMENT SERV
Thanet District Council,18/08/2022,552162,2671.42,,Kent County Council (Kcs),KCC003,Dir Ops/Commercial Serv,Revenue,Energy Costs,FACILITIES AND MANGEMENT SERV
Thanet District Council,18/08/2022,552163,5679.07,,Kent County Council (Kcs),KCC003,Dir Ops/Commercial Serv,Revenue,Energy Costs,FACILITIES AND MANGEMENT SERV
Thanet District Council,18/08/2022,552238,18335.37,,Kent County Council (Kcs),KCC003,Dir Ops/Commercial Serv,Revenue,Energy Costs,FACILITIES AND MANGEMENT SERV
Thanet District Council,18/08/2022,552242,11943.24,,Kent County Council (Kcs),KCC003,Director Of Corp Gov/Mon Off,Revenue,Energy Costs,FACILITIES AND MANGEMENT SERV
Thanet District Council,18/08/2022,552101,296783,,Kent & Medway Towns Fire Authority,KMT001,Director of Corporate Resources and S151,Balance Sheet,Collection Fund,VARIOUS CATS-PUBLIC SECTOR
Thanet District Council,18/08/2022,551965,2206.27,,Kent Police & Crime Commissioner,KPC002,Director Of Corp Gov/Mon Off,Revenue,Services,FACILITIES AND MANGEMENT SERV
Thanet District Council,18/08/2022,552100,846155,,Kent Police & Crime Commissioner,KPA003,Director of Corporate Resources and S151,Balance Sheet,Collection Fund,VARIOUS CATS-PUBLIC SECTOR
Thanet District Council,18/08/2022,552033,706.2,,Mears Ltd,MEA003,Director of Corporate Resources and S151,Balance Sheet,Other Land And Buildings-Hra,CONSTRUCTION-REPAIR AND MAINT
Thanet District Council,18/08/2022,551093,1128,,Michael Page Int Recruitment Ltd,PAG008,Deputy Chief Executive/S151,Revenue,Agency Staff,HUMAN RESOURCES
Thanet District Council,18/08/2022,551719,710.4,,Michael Page Int Recruitment Ltd,PAG008,Deputy Chief Executive/S151,Revenue,Agency Staff,HUMAN RESOURCES
Thanet District Council,18/08/2022,552024,8846.18,,Michael Page Int Recruitment Ltd,PAG008,Deputy Chief Executive/S151,Revenue,Agency Staff,HUMAN RESOURCES
Thanet District Council,18/08/2022,551040,9120,,One 51 Es Plastics (Uk) Limited,ONE006,Dir Ops/Commercial Serv,Revenue,"Equip, Furniture And Materials",ENVIRONMENTAL SERVICES
Thanet District Council,18/08/2022,552246,2220,,Phillips Blinds,PHI002,Director Of Corp Gov/Mon Off,Revenue,"Repairs, Alter & Mtce - Build",FACILITIES AND MANGEMENT SERV
Thanet District Council,18/08/2022,552287,1250,,Prospects Assured Uk Ltd,PRO032,Deputy Chief Executive/S151,Revenue,Grants & Subscriptions,RENT DEPOSITS
Thanet District Council,18/08/2022,552283,4069.76,,P W Adaptions Ltd,PWA001,Director of Corporate Resources and S151,Balance Sheet,Capital Exp-Non Council Assets,GRANTS
Thanet District Council,18/08/2022,552045,774.65,,Scottish Water Business Stream Ltd,SCO019,Dir Ops/Commercial Serv,Revenue,Water Services,UTILITIES
Thanet District Council,18/08/2022,552131,905.33,,Scottish Water Business Stream Ltd,SCO019,Dir Ops/Commercial Serv,Revenue,Water Services,UTILITIES
Thanet District Council,18/08/2022,552132,832.02,,Scottish Water Business Stream Ltd,SCO019,Dir Ops/Commercial Serv,Revenue,Water Services,UTILITIES
Thanet District Council,18/08/2022,552227,794.3,,Scottish Water Business Stream Ltd,SCO019,Dir Ops/Commercial Serv,Revenue,Water Services,UTILITIES
Thanet District Council,18/08/2022,552228,2726.1,,Scottish Water Business Stream Ltd,SCO019,Dir Ops/Commercial Serv,Revenue,Water Services,UTILITIES
Thanet District Council,18/08/2022,552118,3575,,Sellick Partnership Ltd,SEL011,Director Of Corp Gov/Mon Off,Revenue,Services,HUMAN RESOURCES
Thanet District Council,18/08/2022,551696,66619,,Serveco Ltd,SER009,Deputy Chief Executive/S151,Revenue,Services,SPECIAL COMMUNITY CARE
Thanet District Council,18/08/2022,551172,20815,,Smart Property Professionals Ltd,SPP001,Deputy Chief Executive/S151,Revenue,Services,RENT DEPOSITS
Thanet District Council,18/08/2022,552274,10245,,South East Building Company Limited,SEB001,Director of Corporate Resources and S151,Balance Sheet,Capital Exp-Non Council Assets,GRANTS
Thanet District Council,18/08/2022,551928,1424.24,,The Oyster Partnership Ltd,OYS001,Director Of Corp Gov/Mon Off,Revenue,Services,HUMAN RESOURCES
Thanet District Council,18/08/2022,551931,3562.5,,The Oyster Partnership Ltd,OYS001,Director Of Corp Gov/Mon Off,Revenue,Services,HUMAN RESOURCES
Thanet District Council,18/08/2022,552280,940.09,,Town & Country Housing,TOW009,Director of Corporate Resources and S151,Balance Sheet,Capital Exp-Non Council Assets,GRANTS
Thanet District Council,18/08/2022,552282,2011.78,,Town & Country Housing,TOW009,Director of Corporate Resources and S151,Balance Sheet,Capital Exp-Non Council Assets,GRANTS
Thanet District Council,18/08/2022,552284,756.38,,Town & Country Housing,TOW009,Director of Corporate Resources and S151,Balance Sheet,Capital Exp-Non Council Assets,GRANTS
Thanet District Council,18/08/2022,552286,2054.7,,Town & Country Housing,TOW009,Director of Corporate Resources and S151,Balance Sheet,Capital Exp-Non Council Assets,GRANTS
Thanet District Council,18/08/2022,552271,9386.05,,Trueden Disability Adaptations Ltd,TRU012,Director of Corporate Resources and S151,Balance Sheet,Capital Exp-Non Council Assets,GRANTS
Thanet District Council,18/08/2022,552277,10017,,Trueden Disability Adaptations Ltd,TRU012,Director of Corporate Resources and S151,Balance Sheet,Capital Exp-Non Council Assets,GRANTS
Thanet District Council,23/08/2022,552461,4200,,Broadstairs Gas Services Ltd,BRO083,Director of Corporate Resources and S151,Balance Sheet,Capital Exp-Non Council Assets,GRANTS
Thanet District Council,23/08/2022,550850,1485,,Bureau Veritas Uk Ltd,BUR022,Dir Ops/Commercial Serv,Revenue,Services,CONSULTANCY
Thanet District Council,23/08/2022,552152,615,,City Electrical Factors Ltd,CIT001,Dir Ops/Commercial Serv,Revenue,"Repairs, Alter & Mtce - Build",BUILDING CONSTRUCTION MATERIAL
Thanet District Council,23/08/2022,551326,538.75,,Corgi Technical Services Limited,COR009,Deputy Chief Executive/S151,Revenue,Communications & Computing,FINANCIAL SERVICES
Thanet District Council,23/08/2022,552164,2158,,Creekside Construction Limited,CRE019,Dir Ops/Commercial Serv,Revenue,"Repairs, Alter & Mtce - Build",HIGHWAY EQUIPMENT AND MATERIAL
Thanet District Council,23/08/2022,545776,1142.56,,Ecotricity Limited,ECO008,Deputy Chief Executive/S151,Revenue,Energy Costs,UTILITIES
Thanet District Council,23/08/2022,551956,538,,Edge Enviro Services Ltd,EDG001,Dir Ops/Commercial Serv,Revenue,Training,HUMAN RESOURCES
Thanet District Council,23/08/2022,552497,3000,,H M Revenue & Customs,HMR004,Director of Corporate Resources and S151,Balance Sheet,Council Dwellings,GOVERNMENT AGENCIES
Thanet District Council,23/08/2022,551522,2151.5,,Hr Go (Kent) Ltd,HRG001,Dir Ops/Commercial Serv,Revenue,Agency Staff,HUMAN RESOURCES
Thanet District Council,23/08/2022,552114,2016.84,,Hr Go (Kent) Ltd,HRG001,Dir Ops/Commercial Serv,Revenue,Agency Staff,HUMAN RESOURCES
Thanet District Council,23/08/2022,552120,653.54,,Hr Go (Kent) Ltd,HRG001,Dir Ops/Commercial Serv,Revenue,Agency Staff,HUMAN RESOURCES
Thanet District Council,23/08/2022,552121,9425.14,,Hr Go (Kent) Ltd,HRG001,Dir Ops/Commercial Serv,Revenue,Agency Staff,HUMAN RESOURCES
Thanet District Council,23/08/2022,552122,443.5,,Hr Go (Kent) Ltd,HRG001,Dir Ops/Commercial Serv,Revenue,Services,HUMAN RESOURCES
Thanet District Council,23/08/2022,552123,4452.21,,Hr Go (Kent) Ltd,HRG001,Dir Ops/Commercial Serv,Revenue,Agency Staff,HUMAN RESOURCES
Thanet District Council,23/08/2022,552124,1369.81,,Hr Go (Kent) Ltd,HRG001,Dir Ops/Commercial Serv,Revenue,Agency Staff,HUMAN RESOURCES
Thanet District Council,23/08/2022,552125,3528.68,,Hr Go (Kent) Ltd,HRG001,Dir Ops/Commercial Serv,Revenue,Agency Staff,HUMAN RESOURCES
Thanet District Council,23/08/2022,552126,438.6,,Hr Go (Kent) Ltd,HRG001,Dir Ops/Commercial Serv,Revenue,Agency Staff,HUMAN RESOURCES
Thanet District Council,23/08/2022,552127,11168.25,,Hr Go (Kent) Ltd,HRG001,Dir Ops/Commercial Serv,Revenue,Agency Staff,HUMAN RESOURCES
Thanet District Council,23/08/2022,552119,6771,,Jentex Fuel Oils,JEN005,Dir Ops/Commercial Serv,Revenue,"Equip, Furniture And Materials",UTILITIES
Thanet District Council,23/08/2022,552135,3487.5,,Jentex Fuel Oils,JEN005,Dir Ops/Commercial Serv,Revenue,"Equip, Furniture And Materials",UTILITIES
Thanet District Council,23/08/2022,551238,1254.4,,Kompan Ltd,KOM001,Dir Ops/Commercial Serv,Revenue,"Equip, Furniture And Materials",SPORTS PLAYGROUND EQUIPMENT
Thanet District Council,23/08/2022,551688,910,,Ling Metals Limited,LIN004,Dir Ops/Commercial Serv,Revenue,Cleaning & Domestic Supplies,ENVIRONMENTAL SERVICES
Thanet District Council,23/08/2022,550701,5530.55,,Mears Ltd,MEA003,Dir Ops/Commercial Serv,Revenue,"Repairs, Alter & Mtce - Build",CONSTRUCTION-REPAIR AND MAINT
Thanet District Council,23/08/2022,551924,3070.07,,Mears Ltd,MEA003,Deputy Chief Executive/S151,Revenue,"Repairs, Alter & Mtce - Build",CONSTRUCTION-REPAIR AND MAINT
Thanet District Council,23/08/2022,551927,110145.66,,Mears Ltd,MEA003,Deputy Chief Executive/S151,Revenue,"Repairs, Alter & Mtce - Build",CONSTRUCTION-REPAIR AND MAINT
Thanet District Council,23/08/2022,551322,5999.1,,Med Clean South Ltd,MED015,Dir Ops/Commercial Serv,Revenue,Cleaning & Domestic Supplies,CLEANING AND JANITORIAL
Thanet District Council,23/08/2022,551376,450,,Med Clean South Ltd,MED015,Dir Ops/Commercial Serv,Revenue,Cleaning & Domestic Supplies,CLEANING AND JANITORIAL
Thanet District Council,23/08/2022,552481,1250,,Miles & Barr Property Mgmt & Lettings,MIL025,Deputy Chief Executive/S151,Revenue,Grants & Subscriptions,RENT DEPOSITS
Thanet District Council,23/08/2022,551042,9120,,One 51 Es Plastics (Uk) Limited,ONE006,Dir Ops/Commercial Serv,Revenue,"Equip, Furniture And Materials",ENVIRONMENTAL SERVICES
Thanet District Council,23/08/2022,551043,8857.6,,One 51 Es Plastics (Uk) Limited,ONE006,Dir Ops/Commercial Serv,Revenue,"Equip, Furniture And Materials",ENVIRONMENTAL SERVICES
Thanet District Council,23/08/2022,552239,442,,Ovenden Allworks Limited,OVE008,Dir Ops/Commercial Serv,Revenue,"Repairs, Alter & Mtce - Build",CONSTRUCTION-REPAIR AND MAINT
Thanet District Council,23/08/2022,552240,424,,Ovenden Allworks Limited,OVE008,Dir Ops/Commercial Serv,Revenue,"Repairs, Alter & Mtce - Build",CONSTRUCTION-REPAIR AND MAINT
Thanet District Council,23/08/2022,552049,914.29,,Overton (Uk) Ltd,OVE004,Dir Ops/Commercial Serv,Revenue,Direct Transport Costs,VEHICLE MANAGEMENT
Thanet District Council,23/08/2022,552078,420,,Probe Limited,PRO040,Dir Ops/Commercial Serv,Revenue,Agency Staff,STREET AND TRAFFIC MANAGEMENT
Thanet District Council,23/08/2022,551340,2677.5,,Profile Security Services Limited,PRO018,Dir Ops/Commercial Serv,Revenue,Services,FACILITIES AND MANGEMENT SERV
Thanet District Council,23/08/2022,542250,825,,Royal Mail,ROY004,Director Of Corp Gov/Mon Off,Revenue,Communications & Computing,MAIL SERVICES
Thanet District Council,23/08/2022,550303,2098.52,,Satisnet Limited,SAT002,East Kent Shared Services,Revenue,Communications & Computing,ICT
Thanet District Council,23/08/2022,552425,2585.41,,Scottish Water Business Stream Ltd,SCO019,Dir Ops/Commercial Serv,Revenue,Water Services,UTILITIES
Thanet District Council,23/08/2022,552090,485.98,,Seasafe Systems Ltd,SEA004,Dir Ops/Commercial Serv,Revenue,"Clothes, Uniforms & Laundry",CLOTHING
Thanet District Council,23/08/2022,552134,2420,,Sitech Surveying Services Limited,SIT008,Dir Ops/Commercial Serv,Revenue,Services,CONSTRUCTION-REPAIR AND MAINT
Thanet District Council,23/08/2022,551323,884,,Smi Int Group Ltd,SMI055,Dir Ops/Commercial Serv,Revenue,"Clothes, Uniforms & Laundry",CLOTHING
Thanet District Council,23/08/2022,552025,2980,,Sports Connect Community Cic,SPO009,Dir Ops/Commercial Serv,Revenue,Services,HEALTHCARE
Thanet District Council,23/08/2022,552147,1340,,Tek Seating Ltd,TEK002,Dir Ops/Commercial Serv,Revenue,"Equip, Furniture And Materials",VEHICLE MANAGEMENT
Thanet District Council,23/08/2022,551948,1021.49,,Tennants Distribution Limited,TEN005,Dir Ops/Commercial Serv,Revenue,Direct Transport Costs,VEHICLE MANAGEMENT
Thanet District Council,23/08/2022,552495,950,,Thanet Removals Limited,THA041,Deputy Chief Executive/S151,Revenue,"Repairs, Alter & Mtce - Build",FACILITIES AND MANGEMENT SERV
Thanet District Council,23/08/2022,549148,17644.48,,Thanet Waste Services Ltd,TWA001,Dir Ops/Commercial Serv,Revenue,Services,ENVIRONMENTAL SERVICES
Thanet District Council,23/08/2022,551316,18478.32,,Thanet Waste Services Ltd,TWA001,Dir Ops/Commercial Serv,Revenue,Services,ENVIRONMENTAL SERVICES
Thanet District Council,23/08/2022,552028,25264.75,,The Crown Estate,CRO022,Dir Ops/Commercial Serv,Revenue,Rents,GOVERNMENT AGENCIES
Thanet District Council,23/08/2022,552029,31450.25,,The Crown Estate,CRO022,Dir Ops/Commercial Serv,Revenue,Rents,GOVERNMENT AGENCIES
Thanet District Council,23/08/2022,552030,4877.5,,The Crown Estate,CRO022,Dir Ops/Commercial Serv,Revenue,Rents,GOVERNMENT AGENCIES
Thanet District Council,23/08/2022,551563,1385,,Watling Jcb Limited,WAT024,Dir Ops/Commercial Serv,Revenue,Direct Transport Costs,VEHICLE MANAGEMENT
Thanet District Council,25/08/2022,552623,2531,,Ascendit Lifts Ltd,ASC001,Director of Corporate Resources and S151,Balance Sheet,Capital Exp-Non Council Assets,GRANTS
Thanet District Council,25/08/2022,552508,2500,,Bcp Council,BOU010,Dir Ops/Commercial Serv,Revenue,Miscellaneous Expenses,FACILITIES AND MANGEMENT SERV
Thanet District Council,25/08/2022,552004,750,,Bk Fire Limited,BKF001,Director of Corporate Resources and S151,Balance Sheet,Repairs And Mtce Holding A/C,HEALTH AND SAFETY
Thanet District Council,25/08/2022,551234,1579,,Campbell Associates Limited,CAM011,Dir Ops/Commercial Serv,Revenue,Services,ENVIRONMENTAL SERVICES
Thanet District Council,25/08/2022,552465,14545,,Canterbury City Council,CAN004,East Kent Shared Services,Revenue,Grants & Subscriptions,VARIOUS CATS-PUBLIC SECTOR
Thanet District Council,25/08/2022,552259,609.25,,Caravan Park Elec Services Limited,CAR048,Dir Ops/Commercial Serv,Revenue,"Equip, Furniture And Materials",BUILDING CONSTRUCTION MATERIAL
Thanet District Council,25/08/2022,551909,962.73,,Ccs Media Limited,CCS003,Director of Corporate Resources and S151,Balance Sheet,Plant And Equipment,ICT
Thanet District Council,25/08/2022,552421,720,,Ceas Kent Ltd,CEA001,Dir Ops/Commercial Serv,Revenue,"Repairs, Alter & Mtce - Build",FACILITIES AND MANGEMENT SERV
Thanet District Council,25/08/2022,552464,10084,,Civica Uk Ltd,CIV003,East Kent Shared Services,Revenue,Services,ICT
Thanet District Council,25/08/2022,552430,9814.99,,Cloud Technology Solutions Ltd,CLO006,Director of Corporate Resources and S151,Balance Sheet,Plant And Equipment,ICT
Thanet District Council,25/08/2022,552588,3250,,Design Quarter Uk Ltd,DES011,Director of Corporate Resources and S151,Balance Sheet,Repairs And Mtce Holding A/C,CONSULTANCY
Thanet District Council,25/08/2022,552517,1299.64,,Envirowaste Solutions Uk Ltd,ENV019,Dir Ops/Commercial Serv,Revenue,Services,HUMAN RESOURCES
Thanet District Council,25/08/2022,552621,8074,,Evermech Services Ltd,EVE011,Director of Corporate Resources and S151,Balance Sheet,Capital Exp-Non Council Assets,GRANTS
Thanet District Council,25/08/2022,552625,8422.71,,F B Design & Renovation Limited,FBD001,Director of Corporate Resources and S151,Balance Sheet,Capital Exp-Non Council Assets,GRANTS
Thanet District Council,25/08/2022,551505,1617,,G4s Cash Solutions (Uk) Limited,G4S002,Dir Ops/Commercial Serv,Revenue,Services,FINANCIAL SERVICES
Thanet District Council,25/08/2022,552308,29409.79,,Gas Call Services Limited,GAS014,Director of Corporate Resources and S151,Balance Sheet,Repairs And Mtce Holding A/C,UTILITIES
Thanet District Council,25/08/2022,552438,1300,,Grammer & Company Limited,GRA024,Dir Ops/Commercial Serv,Revenue,Miscellaneous Expenses,FACILITIES AND MANGEMENT SERV
Thanet District Council,25/08/2022,552407,656.38,,Hr Go (Kent) Ltd,HRG001,Dir Ops/Commercial Serv,Revenue,Agency Staff,HUMAN RESOURCES
Thanet District Council,25/08/2022,552408,5527.26,,Hr Go (Kent) Ltd,HRG001,Dir Ops/Commercial Serv,Revenue,Agency Staff,HUMAN RESOURCES
Thanet District Council,25/08/2022,552409,3501.64,,Hr Go (Kent) Ltd,HRG001,Dir Ops/Commercial Serv,Revenue,Agency Staff,HUMAN RESOURCES
Thanet District Council,25/08/2022,552410,2139.79,,Hr Go (Kent) Ltd,HRG001,Dir Ops/Commercial Serv,Revenue,Agency Staff,HUMAN RESOURCES
Thanet District Council,25/08/2022,552414,1130.32,,Hr Go (Kent) Ltd,HRG001,Dir Ops/Commercial Serv,Revenue,Agency Staff,HUMAN RESOURCES
Thanet District Council,25/08/2022,552416,11195.65,,Hr Go (Kent) Ltd,HRG001,Dir Ops/Commercial Serv,Revenue,Agency Staff,HUMAN RESOURCES
Thanet District Council,25/08/2022,552293,4690,,Hydro Descaling Limited,HYD019,Director of Corporate Resources and S151,Balance Sheet,Council Dwellings,FACILITIES AND MANGEMENT SERV
Thanet District Council,25/08/2022,551390,5573.2,,Imperial Civil Enforcement Sols Ltd,IMP008,Dir Ops/Commercial Serv,Revenue,Services,STREET AND TRAFFIC MANAGEMENT
Thanet District Council,25/08/2022,552103,8020,,Inovem Limited,INO001,Deputy Chief Executive/S151,Revenue,Communications & Computing,ICT
Thanet District Council,25/08/2022,552618,1223.54,,John Gale,GAL001,Director of Corporate Resources and S151,Balance Sheet,Capital Exp-Non Council Assets,GRANTS
Thanet District Council,25/08/2022,552624,1835,,John Gale,GAL001,Director of Corporate Resources and S151,Balance Sheet,Capital Exp-Non Council Assets,GRANTS
Thanet District Council,25/08/2022,552462,494.67,,Machine Mart Ltd,MAC003,Dir Ops/Commercial Serv,Revenue,"Equip, Furniture And Materials",VEHICLE MANAGEMENT
Thanet District Council,25/08/2022,549431,26834.58,,Mears Ltd,MEA003,Director of Corporate Resources and S151,Balance Sheet,Repairs And Mtce Holding A/C,CONSTRUCTION-REPAIR AND MAINT
Thanet District Council,25/08/2022,549631,3024,,Mears Ltd,MEA003,Director of Corporate Resources and S151,Balance Sheet,Repairs And Mtce Holding A/C,CONSTRUCTION-REPAIR AND MAINT
Thanet District Council,25/08/2022,552420,3159.35,,Michael Page Int Recruitment Ltd,PAG008,Deputy Chief Executive/S151,Revenue,Agency Staff,HUMAN RESOURCES
Thanet District Council,25/08/2022,552445,710.4,,Michael Page Int Recruitment Ltd,PAG008,Deputy Chief Executive/S151,Revenue,Agency Staff,HUMAN RESOURCES
Thanet District Council,25/08/2022,552597,3125,,Michael Page Int Recruitment Ltd,PAG008,Deputy Chief Executive/S151,Revenue,Agency Staff,HUMAN RESOURCES
Thanet District Council,25/08/2022,552626,1300,,Miles & Barr Property Mgmt & Lettings,MIL025,Deputy Chief Executive/S151,Revenue,Grants & Subscriptions,RENT DEPOSITS
Thanet District Council,25/08/2022,551137,743.75,,Modus Construction Consultants Ltd,MOD007,Director of Corporate Resources and S151,Balance Sheet,Other Land And Buildings-Hra,CONSULTANCY
Thanet District Council,25/08/2022,551913,3720,,Overbury Estates (Kent) Limited,OVE011,Director of Corporate Resources and S151,Balance Sheet,Repairs And Mtce Holding A/C,CONSTRUCTION-REPAIR AND MAINT
Thanet District Council,25/08/2022,551766,4104.44,,Pa Group Ltd,PAG011,Director of Corporate Resources and S151,Balance Sheet,Repairs And Mtce Holding A/C,ENVIRONMENTAL SERVICES
Thanet District Council,25/08/2022,551767,4043.5,,Pa Group Ltd,PAG011,Director of Corporate Resources and S151,Balance Sheet,Repairs And Mtce Holding A/C,ENVIRONMENTAL SERVICES
Thanet District Council,25/08/2022,552096,73613.22,,Precision Lift Services Limited,PLS001,Director of Corporate Resources and S151,Balance Sheet,Repairs And Mtce Holding A/C,FACILITIES AND MANGEMENT SERV
Thanet District Council,25/08/2022,552619,17823.49,,P W Adaptions Ltd,PWA001,Director of Corporate Resources and S151,Balance Sheet,Capital Exp-Non Council Assets,GRANTS
Thanet District Council,25/08/2022,552428,1015,,R Cannon,CAN007,Dir Ops/Commercial Serv,Revenue,Services,MARITIME SERVICES
Thanet District Council,25/08/2022,552496,3575,,Sellick Partnership Ltd,SEL011,Director Of Corp Gov/Mon Off,Revenue,Services,HUMAN RESOURCES
Thanet District Council,25/08/2022,552494,2038.4,,Softcat Plc,SOF003,Director of Corporate Resources and S151,Balance Sheet,Plant And Equipment,ICT
Thanet District Council,25/08/2022,552173,7552.26,,Sureserve Fire & Electrical,ALL049,Director of Corporate Resources and S151,Balance Sheet,Repairs And Mtce Holding A/C,CONSTRUCTION-REPAIR AND MAINT
Thanet District Council,25/08/2022,552295,1780.3,,The Oyster Partnership Ltd,OYS001,Director Of Corp Gov/Mon Off,Revenue,Services,HUMAN RESOURCES
Thanet District Council,25/08/2022,552309,3562.5,,The Oyster Partnership Ltd,OYS001,Director Of Corp Gov/Mon Off,Revenue,Services,HUMAN RESOURCES
Thanet District Council,25/08/2022,552620,2696.98,,Town & Country Housing,TOW009,Director of Corporate Resources and S151,Balance Sheet,Capital Exp-Non Council Assets,GRANTS
Thanet District Council,25/08/2022,552617,13622,,Trueden Disability Adaptations Ltd,TRU012,Director of Corporate Resources and S151,Balance Sheet,Capital Exp-Non Council Assets,GRANTS
Thanet District Council,25/08/2022,552622,17219,,Trueden Disability Adaptations Ltd,TRU012,Director of Corporate Resources and S151,Balance Sheet,Capital Exp-Non Council Assets,GRANTS
Thanet District Council,30/08/2022,552299,5400,,Bartec Municipal Technologies Limited,BAR070,Dir Ops/Commercial Serv,Revenue,"Equip, Furniture And Materials",ENVIRONMENTAL SERVICES
Thanet District Council,30/08/2022,552792,3749,,District Councils Network,DIS016,Deputy Chief Executive/S151,Revenue,Grants & Subscriptions,HUMAN RESOURCES
Thanet District Council,30/08/2022,552258,9.76,,Ecotricity Limited,ECO008,Deputy Chief Executive/S151,Revenue,Energy Costs,UTILITIES
Thanet District Council,30/08/2022,552258,1039.62,,Ecotricity Limited,ECO008,Dir Ops/Commercial Serv,Revenue,Energy Costs,UTILITIES
Thanet District Council,30/08/2022,552415,443.5,,Hr Go (Kent) Ltd,HRG001,Dir Ops/Commercial Serv,Revenue,Services,HUMAN RESOURCES
Thanet District Council,30/08/2022,552754,2400,,I-On-Asia Limited,ION001,Director Of Corp Gov/Mon Off,Revenue,Services,ICT
Thanet District Council,30/08/2022,552824,685532,,Maidstone Borough Council,MAI002,Deputy Chief Executive/S151,Revenue,Revenue Financing,VARIOUS CATS-PUBLIC SECTOR
Thanet District Council,30/08/2022,552824,245010,,Maidstone Borough Council,MAI002,Director of Corporate Resources and S151,Balance Sheet,Collection Fund,VARIOUS CATS-PUBLIC SECTOR
Thanet District Council,30/08/2022,552819,5100,,Necessary Furniture,NEC004,Dir Ops/Commercial Serv,Revenue,Grants & Subscriptions,GRANTS
Thanet District Council,30/08/2022,552300,475,,Safety & Management Solutions Ltd,SAF013,Dir Ops/Commercial Serv,Revenue,Training,HEALTH AND SAFETY
Thanet District Council,30/08/2022,552767,5889.65,,Visit Kent Ltd,VIS005,Dir Ops/Commercial Serv,Revenue,Grants & Subscriptions,ARTS AND LEISURE SERVICES
Thanet District Council,31/08/2022,552830,2854.52,,Worldpay Ltd,WOR008,Deputy Chief Executive/S151,Revenue,Services,FINANCIAL SERVICES
Thanet District Council,31/08/2022,552833,4286.32,,Worldpay Ltd,WOR008,Deputy Chief Executive/S151,Revenue,Services,FINANCIAL SERVICES
Thanet District Council,19/08/2022,Payroll,504.84,,Redacted,N/A,Deputy Chief Executive/S151,Revenue,Expenses,TRAVEL & EXPENSES
Thanet District Council,06/09/2022,553146,1250,,Anaya Assets Limited,ANA006,Deputy Chief Executive/S151,Revenue,Grants & Subscriptions,RENT ALLOWANCES
Thanet District Council,06/09/2022,552225,495,,Andrews & Elliott Limited,AND001,Dir Ops/Commercial Serv,Revenue,"Repairs, Alter & Mtce - Build",CEMETERY AND CREMATORIUM
Thanet District Council,06/09/2022,552167,101688.8,,Bec Construction Limited,BEC007,Director of Corporate Resources and S151,Balance Sheet,Other Land And Buildings-Hra,BUILDING CONSTRUCTION MATERIAL
Thanet District Council,06/09/2022,552894,1008,,Bowman Maintenance Contracting,BMC001,Dir Ops/Commercial Serv,Revenue,"Repairs, Alter & Mtce - Build",BUILDING CONSTRUCTION MATERIAL
Thanet District Council,06/09/2022,552795,1718.19,,Bt Payment Services Ltd,BTE003,Director of Corporate Resources and S151,Balance Sheet,Telephone Holding Account,ICT
Thanet District Council,06/09/2022,552803,2500,,Concrete & Corrosion Cons Prac Ltd,CON049,Dir Ops/Commercial Serv,Revenue,"Repairs, Alter & Mtce - Build",CONSTRUCTION-REPAIR AND MAINT
Thanet District Council,06/09/2022,553144,1750,,Cts Property Limited,CTS001,Deputy Chief Executive/S151,Revenue,Grants & Subscriptions,RENT DEPOSITS
Thanet District Council,06/09/2022,551895,1716,,Dds (International) Limited,DDS002,Director of Corporate Resources and S151,Balance Sheet,Repairs And Mtce Holding A/C,CONSULTANCY
Thanet District Council,06/09/2022,552598,2315.4,,Dennis Eagle Limited,TER011,Dir Ops/Commercial Serv,Revenue,Direct Transport Costs,VEHICLE MANAGEMENT
Thanet District Council,06/09/2022,551294,912,,Disclosure And Barring Service,DIS017,Dir Ops/Commercial Serv,Revenue,"Equip, Furniture And Materials",HUMAN RESOURCES
Thanet District Council,06/09/2022,551720,1616.5,,Dr S Khemani,KHE001,Dir Ops/Commercial Serv,Revenue,Services,HEALTHCARE
Thanet District Council,06/09/2022,552291,3700,,Eastwell Ironworks Ltd,EAS031,Dir Ops/Commercial Serv,Revenue,"Repairs, Alter & Mtce - Build",CEMETERY AND CREMATORIUM
Thanet District Council,06/09/2022,552913,7055.66,,Ecotricity Limited,ECO008,Dir Ops/Commercial Serv,Revenue,Energy Costs,UTILITIES
Thanet District Council,06/09/2022,553049,662.19,,Ecotricity Limited,ECO008,Dir Ops/Commercial Serv,Revenue,Energy Costs,UTILITIES
Thanet District Council,06/09/2022,553052,1612.04,,Ecotricity Limited,ECO008,Dir Ops/Commercial Serv,Revenue,Energy Costs,UTILITIES
Thanet District Council,06/09/2022,552895,600,,Elinor Seath,SEA029,Chief Executive,Revenue,Services,CONSULTANCY
Thanet District Council,06/09/2022,549147,2666.67,,Envirocure Ltd,ENV011,Director of Corporate Resources and S151,Balance Sheet,Repairs And Mtce Holding A/C,FACILITIES AND MANGEMENT SERV
Thanet District Council,06/09/2022,552739,37488.93,,Gas Call Services Limited,GAS014,Director of Corporate Resources and S151,Balance Sheet,Repairs And Mtce Holding A/C,UTILITIES
Thanet District Council,06/09/2022,552740,2304.35,,Gas Call Services Limited,GAS014,Director of Corporate Resources and S151,Balance Sheet,Repairs And Mtce Holding A/C,UTILITIES
Thanet District Council,06/09/2022,552909,950,,Gas Contract Services Ltd,GAS004,Director of Corporate Resources and S151,Balance Sheet,Repairs And Mtce Holding A/C,CONSTRUCTION-REPAIR AND MAINT
Thanet District Council,06/09/2022,553141,1900,,Halfords Limited,HAL018,Director of Corporate Resources and S151,Balance Sheet,Salary Control Acccount,VEHICLE MANAGEMENT
Thanet District Council,06/09/2022,552756,2129.24,,Hr Go (Kent) Ltd,HRG001,Dir Ops/Commercial Serv,Revenue,Agency Staff,HUMAN RESOURCES
Thanet District Council,06/09/2022,552760,656.38,,Hr Go (Kent) Ltd,HRG001,Dir Ops/Commercial Serv,Revenue,Agency Staff,HUMAN RESOURCES
Thanet District Council,06/09/2022,552762,6360.81,,Hr Go (Kent) Ltd,HRG001,Dir Ops/Commercial Serv,Revenue,Agency Staff,HUMAN RESOURCES
Thanet District Council,06/09/2022,552764,10527.23,,Hr Go (Kent) Ltd,HRG001,Dir Ops/Commercial Serv,Revenue,Agency Staff,HUMAN RESOURCES
Thanet District Council,06/09/2022,552766,2146.76,,Hr Go (Kent) Ltd,HRG001,Dir Ops/Commercial Serv,Revenue,Agency Staff,HUMAN RESOURCES
Thanet District Council,06/09/2022,551295,3071.88,,Jenner (Contractors) Ltd,JEN002,Director of Corporate Resources and S151,Balance Sheet,Council Dwellings,CONSTRUCTION-REPAIR AND MAINT
Thanet District Council,06/09/2022,552610,5626.13,,Jentex Fuel Oils,JEN005,Dir Ops/Commercial Serv,Revenue,"Equip, Furniture And Materials",UTILITIES
Thanet District Council,06/09/2022,552660,4506.4,,Jentex Fuel Oils,JEN005,Dir Ops/Commercial Serv,Revenue,"Equip, Furniture And Materials",UTILITIES
Thanet District Council,06/09/2022,552815,3593.75,,Jentex Fuel Oils,JEN005,Dir Ops/Commercial Serv,Revenue,"Equip, Furniture And Materials",UTILITIES
Thanet District Council,06/09/2022,552816,5739.78,,Jentex Fuel Oils,JEN005,Dir Ops/Commercial Serv,Revenue,"Equip, Furniture And Materials",UTILITIES
Thanet District Council,06/09/2022,552457,2100,,Kent County Council,KCC002,Dir Ops/Commercial Serv,Revenue,Grants & Subscriptions,VARIOUS CATS-PUBLIC SECTOR
Thanet District Council,06/09/2022,552654,1512,,Kent County Council,KCC002,Director Of Corp Gov/Mon Off,Revenue,Services,VARIOUS CATS-PUBLIC SECTOR
Thanet District Council,06/09/2022,552916,2150,,Lee Evans Partnership Llp,LEE007,Director of Corporate Resources and S151,Balance Sheet,Other Land And Buildings-Hra,CONSULTANCY
Thanet District Council,06/09/2022,552917,1950,,Lee Evans Partnership Llp,LEE007,Director of Corporate Resources and S151,Balance Sheet,Other Land And Buildings-Hra,CONSULTANCY
Thanet District Council,06/09/2022,549432,781.92,,Mears Ltd,MEA003,Director of Corporate Resources and S151,Balance Sheet,Repairs And Mtce Holding A/C,CONSTRUCTION-REPAIR AND MAINT
Thanet District Council,06/09/2022,549546,6646.4,,Mears Ltd,MEA003,Director of Corporate Resources and S151,Balance Sheet,Repairs And Mtce Holding A/C,CONSTRUCTION-REPAIR AND MAINT
Thanet District Council,06/09/2022,551916,704.34,,Mears Ltd,MEA003,Director of Corporate Resources and S151,Balance Sheet,Repairs And Mtce Holding A/C,CONSTRUCTION-REPAIR AND MAINT
Thanet District Council,06/09/2022,551926,6646.4,,Mears Ltd,MEA003,Director of Corporate Resources and S151,Balance Sheet,Repairs And Mtce Holding A/C,CONSTRUCTION-REPAIR AND MAINT
Thanet District Council,06/09/2022,552600,135588,,Michael Polak,POL005,Director Of Corp Gov/Mon Off,Revenue,Services,LEGAL SERVICES
Thanet District Council,06/09/2022,552607,3220,,Munihire Limited,MUN012,Dir Ops/Commercial Serv,Revenue,Cont Hire & Operating Lease,VEHICLE MANAGEMENT
Thanet District Council,06/09/2022,551957,11629,,Partnering Regeneration Development Ltd,PRD001,Chief Executive,Revenue,Services,CONSULTANCY
Thanet District Council,06/09/2022,551400,846,,Powermain Ltd,POW001,Dir Ops/Commercial Serv,Revenue,"Repairs, Alter & Mtce - Build",BUILDING CONSTRUCTION MATERIAL
Thanet District Council,06/09/2022,552914,20801.94,,Profile Security Services Limited,PRO018,Dir Ops/Commercial Serv,Revenue,Services,FACILITIES AND MANGEMENT SERV
Thanet District Council,06/09/2022,552915,1446.97,,Profile Security Services Limited,PRO018,Director Of Corp Gov/Mon Off,Revenue,Services,FACILITIES AND MANGEMENT SERV
Thanet District Council,06/09/2022,553145,750,,Prospects Assured Uk Ltd,PRO032,Deputy Chief Executive/S151,Revenue,Grants & Subscriptions,RENT DEPOSITS
Thanet District Council,06/09/2022,553147,1250,,Prospects Assured Uk Ltd,PRO032,Deputy Chief Executive/S151,Revenue,Grants & Subscriptions,RENT DEPOSITS
Thanet District Council,06/09/2022,553148,1000,,Prospects Assured Uk Ltd,PRO032,Deputy Chief Executive/S151,Revenue,Grants & Subscriptions,RENT DEPOSITS
Thanet District Council,06/09/2022,553256,750,,Prospects Assured Uk Ltd,PRO032,Deputy Chief Executive/S151,Revenue,Grants & Subscriptions,RENT DEPOSITS
Thanet District Council,06/09/2022,552812,462.73,,Puls Global Ltd,PUL006,Dir Ops/Commercial Serv,Revenue,"Repairs, Alter & Mtce - Build",FACILITIES AND MANGEMENT SERV
Thanet District Council,06/09/2022,552813,550,,Puls Global Ltd,PUL006,Dir Ops/Commercial Serv,Revenue,"Repairs, Alter & Mtce - Build",FACILITIES AND MANGEMENT SERV
Thanet District Council,06/09/2022,552814,525,,Puls Global Ltd,PUL006,Dir Ops/Commercial Serv,Revenue,"Equip, Furniture And Materials",FACILITIES AND MANGEMENT SERV
Thanet District Council,06/09/2022,552905,770,,R Cannon,CAN007,Dir Ops/Commercial Serv,Revenue,Services,MARITIME SERVICES
Thanet District Council,06/09/2022,552906,1312.5,,R Cannon,CAN007,Dir Ops/Commercial Serv,Revenue,Services,MARITIME SERVICES
Thanet District Council,06/09/2022,552611,6000,,R N Cannon & Sons Limited,RNC001,Dir Ops/Commercial Serv,Revenue,"Equip, Furniture And Materials",MARITIME SERVICES
Thanet District Council,06/09/2022,552613,2400,,R N Cannon & Sons Limited,RNC001,Director of Corporate Resources and S151,Balance Sheet,Rechargeable Works,MARITIME SERVICES
Thanet District Council,06/09/2022,552743,16122.1,,Sbs Roofing Ltd,SBS001,Director of Corporate Resources and S151,Balance Sheet,Repairs And Mtce Holding A/C,BUILDING CONSTRUCTION MATERIAL
Thanet District Council,06/09/2022,552910,10976.05,,Scottish Water Business Stream Ltd,SCO019,Dir Ops/Commercial Serv,Revenue,Water Services,UTILITIES
Thanet District Council,06/09/2022,552798,3575,,Sellick Partnership Ltd,SEL011,Director Of Corp Gov/Mon Off,Revenue,Services,HUMAN RESOURCES
Thanet District Council,06/09/2022,552292,1900,,Solent Marine Ltd,SOL011,Dir Ops/Commercial Serv,Revenue,"Repairs, Alter & Mtce - Build",MARITIME SERVICES
Thanet District Council,06/09/2022,552946,744.3,,Ssl247 Ltd,SSL001,Deputy Chief Executive/S151,Revenue,Communications & Computing,ICT
Thanet District Council,06/09/2022,552456,1964.5,,Teleshore (Uk) Ltd,TEL003,Dir Ops/Commercial Serv,Revenue,"Equip, Furniture And Materials",CEMETERY AND CREMATORIUM
Thanet District Council,06/09/2022,552459,3703.83,,Tfa Fuel Services Ltd,TFA003,Dir Ops/Commercial Serv,Revenue,"Equip, Furniture And Materials",UTILITIES
Thanet District Council,06/09/2022,552608,1780.3,,The Oyster Partnership Ltd,OYS001,Director Of Corp Gov/Mon Off,Revenue,Services,HUMAN RESOURCES
Thanet District Council,06/09/2022,552609,3562.5,,The Oyster Partnership Ltd,OYS001,Director Of Corp Gov/Mon Off,Revenue,Services,HUMAN RESOURCES
Thanet District Council,06/09/2022,551096,420,,The Yaboo Company Limited,YAB001,Dir Ops/Commercial Serv,Revenue,"Equip, Furniture And Materials",DOMESTIC GOODS
Thanet District Council,06/09/2022,552784,884.88,,Trustmarque Solutions Limited,TRU014,Director of Corporate Resources and S151,Balance Sheet,Plant And Equipment,ICT
Thanet District Council,06/09/2022,553249,3847.8,,Victoria Flooring Ltd,VIC001,Dir Ops/Commercial Serv,Revenue,"Repairs, Alter & Mtce - Build",FURNITURE AND SOFT FURNISHINGS
Thanet District Council,06/09/2022,553048,9417.57,,Vodafone Limited,VOD001,Director of Corporate Resources and S151,Balance Sheet,Mobile Phone Holding A/C,ICT
Thanet District Council,06/09/2022,552492,1027.6,,Wasteparts Uk Ltd,WAS006,Dir Ops/Commercial Serv,Revenue,Direct Transport Costs,VEHICLE MANAGEMENT
Thanet District Council,06/09/2022,552288,62500,,Wyre Marine Services Limited,WYR001,Director of Corporate Resources and S151,Balance Sheet,Plant And Equipment,MARITIME SERVICES
Thanet District Council,06/09/2022,552288,54000,,Wyre Marine Services Limited,WYR001,Dir Ops/Commercial Serv,Revenue,"Repairs, Alter & Mtce - Build",MARITIME SERVICES
Thanet District Council,06/09/2022,553259,14466.22,,Zurich Insurance Plc,ZUR007,Director of Corporate Resources and S151,Balance Sheet,Insurance Holding Account,FINANCIAL SERVICES
Thanet District Council,08/09/2022,552801,2431.69,,Algeco Uk Limited,ELL015,Dir Ops/Commercial Serv,Revenue,"Equip, Furniture And Materials",FACILITIES AND MANGEMENT SERV
Thanet District Council,08/09/2022,552615,11765,,Andrew Lane,LAN037,Dir Ops/Commercial Serv,Revenue,Services,LEGAL SERVICES
Thanet District Council,08/09/2022,552746,13560.4,,British Polythene Ltd T/A Berry Bpi Recycled,BPI002,Dir Ops/Commercial Serv,Revenue,"Equip, Furniture And Materials",ENVIRONMENTAL SERVICES
Thanet District Council,08/09/2022,552800,2399,,British Polythene Ltd T/A Berry Bpi Recycled,BPI002,Dir Ops/Commercial Serv,Revenue,"Equip, Furniture And Materials",ENVIRONMENTAL SERVICES
Thanet District Council,08/09/2022,553496,2200,,Broadstairs Gas Services Ltd,BRO083,Director of Corporate Resources and S151,Balance Sheet,Capital Exp-Non Council Assets,GRANTS
Thanet District Council,08/09/2022,553062,2299.19,,Canon (Uk) Ltd,CAN021,Director Of Corp Gov/Mon Off,Revenue,"Equip, Furniture And Materials",FACILITIES AND MANGEMENT SERV
Thanet District Council,08/09/2022,552656,50716.2,,Certas Energy Uk Ltd,CER005,Dir Ops/Commercial Serv,Revenue,Direct Transport Costs,VEHICLE MANAGEMENT
Thanet District Council,08/09/2022,552782,700,,Channel Commercials Plc,CCO001,Dir Ops/Commercial Serv,Revenue,Direct Transport Costs,VEHICLE MANAGEMENT
Thanet District Council,08/09/2022,553078,9625,,Container Care Solutions Ltd,CON056,Dir Ops/Commercial Serv,Revenue,"Equip, Furniture And Materials",FURNITURE AND SOFT FURNISHINGS
Thanet District Council,08/09/2022,553202,2075.2,,Ecotricity Limited,ECO008,Dir Ops/Commercial Serv,Revenue,Energy Costs,UTILITIES
Thanet District Council,08/09/2022,553321,713.73,,Ecotricity Limited,ECO008,Dir Ops/Commercial Serv,Revenue,Energy Costs,UTILITIES
Thanet District Council,08/09/2022,553486,12438.29,,F B Design & Renovation Limited,FBD001,Director of Corporate Resources and S151,Balance Sheet,Capital Exp-Non Council Assets,GRANTS
Thanet District Council,08/09/2022,553488,4580,,F B Design & Renovation Limited,FBD001,Director of Corporate Resources and S151,Balance Sheet,Capital Exp-Non Council Assets,GRANTS
Thanet District Council,08/09/2022,553490,7000,,F B Design & Renovation Limited,FBD001,Director of Corporate Resources and S151,Balance Sheet,Capital Exp-Non Council Assets,GRANTS
Thanet District Council,08/09/2022,553492,10000,,F B Design & Renovation Limited,FBD001,Director of Corporate Resources and S151,Balance Sheet,Capital Exp-Non Council Assets,GRANTS
Thanet District Council,08/09/2022,553494,3000,,F B Design & Renovation Limited,FBD001,Director of Corporate Resources and S151,Balance Sheet,Capital Exp-Non Council Assets,GRANTS
Thanet District Council,08/09/2022,553498,7943.52,,F B Design & Renovation Limited,FBD001,Director of Corporate Resources and S151,Balance Sheet,Capital Exp-Non Council Assets,GRANTS
Thanet District Council,08/09/2022,552776,3623.5,,Flowbird Smart City Uk Limited,FLO011,Dir Ops/Commercial Serv,Revenue,Communications & Computing,STREET AND TRAFFIC MANAGEMENT
Thanet District Council,08/09/2022,552961,715,,Formation Scaffolding Solutions,BON007,Director of Corporate Resources and S151,Balance Sheet,Rechargeable Works,CONSTRUCTION-REPAIR AND MAINT
Thanet District Council,08/09/2022,551324,461,,Hqn Limited,HQN001,Deputy Chief Executive/S151,Revenue,Training,HUMAN RESOURCES
Thanet District Council,08/09/2022,552417,9847.07,,Hr Go (Kent) Ltd,HRG001,Dir Ops/Commercial Serv,Revenue,Agency Staff,HUMAN RESOURCES
Thanet District Council,08/09/2022,552757,8419.43,,Hr Go (Kent) Ltd,HRG001,Dir Ops/Commercial Serv,Revenue,Agency Staff,HUMAN RESOURCES
Thanet District Council,08/09/2022,552759,1077.74,,Hr Go (Kent) Ltd,HRG001,Dir Ops/Commercial Serv,Revenue,Agency Staff,HUMAN RESOURCES
Thanet District Council,08/09/2022,552761,516.66,,Hr Go (Kent) Ltd,HRG001,Dir Ops/Commercial Serv,Revenue,Agency Staff,HUMAN RESOURCES
Thanet District Council,08/09/2022,552763,3713.39,,Hr Go (Kent) Ltd,HRG001,Dir Ops/Commercial Serv,Revenue,Agency Staff,HUMAN RESOURCES
Thanet District Council,08/09/2022,553087,532.2,,Hr Go (Kent) Ltd,HRG001,Dir Ops/Commercial Serv,Revenue,Agency Staff,HUMAN RESOURCES
Thanet District Council,08/09/2022,553106,1626,,Hydrosphere Uk Limited,HYD009,Dir Ops/Commercial Serv,Revenue,"Equip, Furniture And Materials",VEHICLE MANAGEMENT
Thanet District Council,08/09/2022,553110,1360,,Luv Corp Ltd,LUV001,Director of Corporate Resources and S151,Balance Sheet,Plant And Equipment,ICT
Thanet District Council,08/09/2022,552744,2006.5,,Marine Management Organisation,MAR088,Director of Corporate Resources and S151,Balance Sheet,Plant And Equipment,MARITIME SERVICES
Thanet District Council,08/09/2022,553011,505.69,,Mears Ltd,MEA003,Director Of Corp Gov/Mon Off,Revenue,"Repairs, Alter & Mtce - Build",CONSTRUCTION-REPAIR AND MAINT
Thanet District Council,08/09/2022,553011,574.73,,Mears Ltd,MEA003,Dir Ops/Commercial Serv,Revenue,"Repairs, Alter & Mtce - Build",CONSTRUCTION-REPAIR AND MAINT
Thanet District Council,08/09/2022,553026,1748.6,,Mears Ltd,MEA003,Director of Corporate Resources and S151,Balance Sheet,Repairs And Mtce Holding A/C,CONSTRUCTION-REPAIR AND MAINT
Thanet District Council,08/09/2022,553027,27075.06,,Mears Ltd,MEA003,Director of Corporate Resources and S151,Balance Sheet,Repairs And Mtce Holding A/C,CONSTRUCTION-REPAIR AND MAINT
Thanet District Council,08/09/2022,553028,5552.08,,Mears Ltd,MEA003,Director of Corporate Resources and S151,Balance Sheet,Repairs And Mtce Holding A/C,CONSTRUCTION-REPAIR AND MAINT
Thanet District Council,08/09/2022,553029,15230.21,,Mears Ltd,MEA003,Director of Corporate Resources and S151,Balance Sheet,Repairs And Mtce Holding A/C,CONSTRUCTION-REPAIR AND MAINT
Thanet District Council,08/09/2022,553030,23938.93,,Mears Ltd,MEA003,Director of Corporate Resources and S151,Balance Sheet,Repairs And Mtce Holding A/C,CONSTRUCTION-REPAIR AND MAINT
Thanet District Council,08/09/2022,553031,17247.13,,Mears Ltd,MEA003,Director of Corporate Resources and S151,Balance Sheet,Repairs And Mtce Holding A/C,CONSTRUCTION-REPAIR AND MAINT
Thanet District Council,08/09/2022,553032,4931.6,,Mears Ltd,MEA003,Director of Corporate Resources and S151,Balance Sheet,Repairs And Mtce Holding A/C,CONSTRUCTION-REPAIR AND MAINT
Thanet District Council,08/09/2022,553033,5581.54,,Mears Ltd,MEA003,Director of Corporate Resources and S151,Balance Sheet,Repairs And Mtce Holding A/C,CONSTRUCTION-REPAIR AND MAINT
Thanet District Council,08/09/2022,553034,5813.68,,Mears Ltd,MEA003,Director of Corporate Resources and S151,Balance Sheet,Repairs And Mtce Holding A/C,CONSTRUCTION-REPAIR AND MAINT
Thanet District Council,08/09/2022,553035,9464.37,,Mears Ltd,MEA003,Director of Corporate Resources and S151,Balance Sheet,Repairs And Mtce Holding A/C,CONSTRUCTION-REPAIR AND MAINT
Thanet District Council,08/09/2022,553036,34576,,Mears Ltd,MEA003,Director of Corporate Resources and S151,Balance Sheet,Repairs And Mtce Holding A/C,CONSTRUCTION-REPAIR AND MAINT
Thanet District Council,08/09/2022,553037,10551.21,,Mears Ltd,MEA003,Director of Corporate Resources and S151,Balance Sheet,Repairs And Mtce Holding A/C,CONSTRUCTION-REPAIR AND MAINT
Thanet District Council,08/09/2022,553038,40883,,Mears Ltd,MEA003,Director of Corporate Resources and S151,Balance Sheet,Repairs And Mtce Holding A/C,CONSTRUCTION-REPAIR AND MAINT
Thanet District Council,08/09/2022,553092,1296.33,,Mears Ltd,MEA003,Dir Ops/Commercial Serv,Revenue,"Repairs, Alter & Mtce - Build",CONSTRUCTION-REPAIR AND MAINT
Thanet District Council,08/09/2022,553095,447.28,,Mears Ltd,MEA003,Director of Corporate Resources and S151,Balance Sheet,Repairs And Mtce Holding A/C,CONSTRUCTION-REPAIR AND MAINT
Thanet District Council,08/09/2022,553096,1366.23,,Mears Ltd,MEA003,Director of Corporate Resources and S151,Balance Sheet,Repairs And Mtce Holding A/C,CONSTRUCTION-REPAIR AND MAINT
Thanet District Council,08/09/2022,553001,5999.1,,Med Clean South Ltd,MED015,Dir Ops/Commercial Serv,Revenue,Cleaning & Domestic Supplies,CLEANING AND JANITORIAL
Thanet District Council,08/09/2022,552601,7375.11,,Molyneux Rose Ltd Cl Acc-I/S R'Gate,MOL003,Dir Ops/Commercial Serv,Revenue,Rents,FACILITIES AND MANGEMENT SERV
Thanet District Council,08/09/2022,553042,1046.3,,National Express Ltd,NAT010,Dir Ops/Commercial Serv,Revenue,Services,AGENCY PAYMENTS
Thanet District Council,08/09/2022,553481,25000,,Premier Flooring (Thanet) Limited,PRE041,Deputy Chief Executive/S151,Revenue,Grants & Subscriptions,GRANTS
Thanet District Council,08/09/2022,553484,750,,Prospects Assured Uk Ltd,PRO032,Deputy Chief Executive/S151,Revenue,Grants & Subscriptions,RENT DEPOSITS
Thanet District Council,08/09/2022,551681,11592.6,,Robert West Consulting Ltd,WES057,Director of Corporate Resources and S151,Balance Sheet,Plant And Equipment,MARITIME SERVICES
Thanet District Council,08/09/2022,553079,1424.24,,The Oyster Partnership Ltd,OYS001,Director Of Corp Gov/Mon Off,Revenue,Services,HUMAN RESOURCES
Thanet District Council,08/09/2022,552599,2098.05,,Total Merchandise Ltd,TOT012,Dir Ops/Commercial Serv,Revenue,"Equip, Furniture And Materials",STATIONERY
Thanet District Council,08/09/2022,552403,2205.2,,Total Supplies Ltd,TOT009,Dir Ops/Commercial Serv,Revenue,"Equip, Furniture And Materials",CLEANING AND JANITORIAL
Thanet District Council,08/09/2022,552404,1500,,Total Supplies Ltd,TOT009,Dir Ops/Commercial Serv,Revenue,"Equip, Furniture And Materials",CLEANING AND JANITORIAL
Thanet District Council,08/09/2022,552900,1743.06,,Total Supplies Ltd,TOT009,Dir Ops/Commercial Serv,Revenue,"Equip, Furniture And Materials",CLEANING AND JANITORIAL
Thanet District Council,08/09/2022,553487,1492.6,,Town & Country Housing,TOW009,Director of Corporate Resources and S151,Balance Sheet,Capital Exp-Non Council Assets,GRANTS
Thanet District Council,08/09/2022,553489,1462,,Town & Country Housing,TOW009,Director of Corporate Resources and S151,Balance Sheet,Capital Exp-Non Council Assets,GRANTS
Thanet District Council,08/09/2022,553491,2310.81,,Town & Country Housing,TOW009,Director of Corporate Resources and S151,Balance Sheet,Capital Exp-Non Council Assets,GRANTS
Thanet District Council,08/09/2022,553493,2696.21,,Town & Country Housing,TOW009,Director of Corporate Resources and S151,Balance Sheet,Capital Exp-Non Council Assets,GRANTS
Thanet District Council,08/09/2022,553495,2521.02,,Town & Country Housing,TOW009,Director of Corporate Resources and S151,Balance Sheet,Capital Exp-Non Council Assets,GRANTS
Thanet District Council,08/09/2022,553499,1780.54,,Town & Country Housing,TOW009,Director of Corporate Resources and S151,Balance Sheet,Capital Exp-Non Council Assets,GRANTS
Thanet District Council,09/09/2022,553650,545.37,,Capita Business Services Ltd,CAP001,Deputy Chief Executive/S151,Revenue,Services,HUMAN RESOURCES
Thanet District Council,09/09/2022,553655,1229.2,,Capita Business Services Ltd,CAP001,Deputy Chief Executive/S151,Revenue,Services,HUMAN RESOURCES
Thanet District Council,09/09/2022,553647,-62230,,Secretary Of State,SEC003,Deputy Chief Executive/S151,Revenue,Revenue Financing,GOVERNMENT AGENCIES
Thanet District Council,09/09/2022,553647,985968,,Secretary Of State,SEC003,Director of Corporate Resources and S151,Balance Sheet,Collection Fund,GOVERNMENT AGENCIES
Thanet District Council,12/09/2022,553690,20000,,Age Uk Thanet Limited,AGE002,Dir Ops/Commercial Serv,Revenue,Grants & Subscriptions,GRANTS
Thanet District Council,12/09/2022,553689,725.1,,Steven Mayhew,MAY043,Deputy Chief Executive/S151,Revenue,Grants & Subscriptions,RENT DEPOSITS
Thanet District Council,12/09/2022,553687,1165,,Your Move.Co.Uk Ltd,YOU021,Deputy Chief Executive/S151,Revenue,Grants & Subscriptions,RENT DEPOSITS
Thanet District Council,13/09/2022,552998,2708.96,,Channel Commercials Plc,CCO001,Dir Ops/Commercial Serv,Revenue,Direct Transport Costs,VEHICLE MANAGEMENT
Thanet District Council,13/09/2022,552999,770,,Channel Commercials Plc,CCO001,Dir Ops/Commercial Serv,Revenue,Direct Transport Costs,VEHICLE MANAGEMENT
Thanet District Council,13/09/2022,553807,135000,,Charis Grant Limited Online Shop,CHA079,Deputy Chief Executive/S151,Revenue,Grants & Subscriptions,GRANTS
Thanet District Council,13/09/2022,553808,90000,,Charis Grant Limited Online Shop,CHA079,Dir Ops/Commercial Serv,Revenue,Grants & Subscriptions,GRANTS
Thanet District Council,13/09/2022,551967,2637.25,,Charles & Associate Consulting Engineers Ltd,CHA076,Chief Executive,Revenue,Services,CONSULTANCY
Thanet District Council,13/09/2022,552505,5856.5,,Constantine Limited,CON058,Director Of Corp Gov/Mon Off,Revenue,Services,ARTS AND LEISURE SERVICES
Thanet District Council,13/09/2022,553018,538.75,,Corgi Technical Services Limited,COR009,Deputy Chief Executive/S151,Revenue,Communications & Computing,FINANCIAL SERVICES
Thanet District Council,13/09/2022,553449,3687.5,,Creekside Construction Limited,CRE019,Dir Ops/Commercial Serv,Revenue,"Repairs, Alter & Mtce - Build",HIGHWAY EQUIPMENT AND MATERIAL
Thanet District Council,13/09/2022,553000,1085.06,,Crystal Facilities Management Services,CRY003,Director Of Corp Gov/Mon Off,Revenue,Cleaning & Domestic Supplies,CLEANING AND JANITORIAL
Thanet District Council,13/09/2022,550633,3000,,Design South East Limited,NKA001,Deputy Chief Executive/S151,Revenue,"Equip, Furniture And Materials",FINANCIAL SERVICES
Thanet District Council,13/09/2022,553105,900.5,,Doro Care (Uk) Ltd,DOR008,Dir Ops/Commercial Serv,Revenue,Services,SPECIAL COMMUNITY CARE
Thanet District Council,13/09/2022,553232,984.28,,Ecotricity Limited,ECO008,Dir Ops/Commercial Serv,Revenue,Energy Costs,UTILITIES
Thanet District Council,13/09/2022,553241,991.97,,Ecotricity Limited,ECO008,Dir Ops/Commercial Serv,Revenue,Energy Costs,UTILITIES
Thanet District Council,13/09/2022,553297,598.61,,Ecotricity Limited,ECO008,Deputy Chief Executive/S151,Revenue,Energy Costs,UTILITIES
Thanet District Council,13/09/2022,553313,697.84,,Ecotricity Limited,ECO008,Deputy Chief Executive/S151,Revenue,Energy Costs,UTILITIES
Thanet District Council,13/09/2022,551160,465,,Guard It Limited,GUA008,Dir Ops/Commercial Serv,Revenue,Services,FACILITIES AND MANGEMENT SERV
Thanet District Council,13/09/2022,553065,450,,Guard It Limited,GUA008,Dir Ops/Commercial Serv,Revenue,Services,FACILITIES AND MANGEMENT SERV
Thanet District Council,13/09/2022,552806,2200,,Harmer & Sons Grounds Maiint Ltd,HAR074,Dir Ops/Commercial Serv,Revenue,Services,VEHICLE MANAGEMENT
Thanet District Council,13/09/2022,553080,515.78,,Hr Go (Kent) Ltd,HRG001,Dir Ops/Commercial Serv,Revenue,Agency Staff,HUMAN RESOURCES
Thanet District Council,13/09/2022,553081,1533.4,,Hr Go (Kent) Ltd,HRG001,Dir Ops/Commercial Serv,Revenue,Agency Staff,HUMAN RESOURCES
Thanet District Council,13/09/2022,553082,9842.26,,Hr Go (Kent) Ltd,HRG001,Dir Ops/Commercial Serv,Revenue,Agency Staff,HUMAN RESOURCES
Thanet District Council,13/09/2022,553083,5793.75,,Hr Go (Kent) Ltd,HRG001,Dir Ops/Commercial Serv,Revenue,Agency Staff,HUMAN RESOURCES
Thanet District Council,13/09/2022,553084,845.22,,Hr Go (Kent) Ltd,HRG001,Dir Ops/Commercial Serv,Revenue,Agency Staff,HUMAN RESOURCES
Thanet District Council,13/09/2022,553085,1128.45,,Hr Go (Kent) Ltd,HRG001,Dir Ops/Commercial Serv,Revenue,Agency Staff,HUMAN RESOURCES
Thanet District Council,13/09/2022,553086,3605.35,,Hr Go (Kent) Ltd,HRG001,Dir Ops/Commercial Serv,Revenue,Agency Staff,HUMAN RESOURCES
Thanet District Council,13/09/2022,553088,466.99,,Hr Go (Kent) Ltd,HRG001,Dir Ops/Commercial Serv,Revenue,Agency Staff,HUMAN RESOURCES
Thanet District Council,13/09/2022,553089,1095.73,,Hr Go (Kent) Ltd,HRG001,Dir Ops/Commercial Serv,Revenue,Agency Staff,HUMAN RESOURCES
Thanet District Council,13/09/2022,553090,10314.13,,Hr Go (Kent) Ltd,HRG001,Dir Ops/Commercial Serv,Revenue,Agency Staff,HUMAN RESOURCES
Thanet District Council,13/09/2022,553716,5559,,J Breheny Contractors Ltd,BRE002,Director of Corporate Resources and S151,Balance Sheet,Infrastructure,CONSTRUCTION-REPAIR AND MAINT
Thanet District Council,13/09/2022,552036,845.02,,Mears Ltd,MEA003,Deputy Chief Executive/S151,Revenue,"Repairs, Alter & Mtce - Build",CONSTRUCTION-REPAIR AND MAINT
Thanet District Council,13/09/2022,553057,3070.07,,Mears Ltd,MEA003,Deputy Chief Executive/S151,Revenue,"Repairs, Alter & Mtce - Build",CONSTRUCTION-REPAIR AND MAINT
Thanet District Council,13/09/2022,552805,710.4,,Michael Page Int Recruitment Ltd,PAG008,Deputy Chief Executive/S151,Revenue,Agency Staff,HUMAN RESOURCES
Thanet District Council,13/09/2022,553806,1250,,Miles & Barr Property Mgmt & Lettings,MIL025,Deputy Chief Executive/S151,Revenue,Grants & Subscriptions,RENT DEPOSITS
Thanet District Council,13/09/2022,552592,1500,,Omega Geomatics Limited,OME003,Director of Corporate Resources and S151,Balance Sheet,Capital Exp-Non Council Assets,CONSTRUCTION-REPAIR AND MAINT
Thanet District Council,13/09/2022,552774,700,,Operator Training Services Limited,OPE004,Dir Ops/Commercial Serv,Revenue,"Equip, Furniture And Materials",HUMAN RESOURCES
Thanet District Council,13/09/2022,553669,420,,Phillips Blinds,PHI002,Deputy Chief Executive/S151,Revenue,"Equip, Furniture And Materials",FACILITIES AND MANGEMENT SERV
Thanet District Council,13/09/2022,553672,7996.8,,Profile Security Services Limited,PRO018,Dir Ops/Commercial Serv,Revenue,Services,FACILITIES AND MANGEMENT SERV
Thanet District Council,13/09/2022,553124,469.1,,Sixis Technology Limited,CUR001,Dir Ops/Commercial Serv,Revenue,"Equip, Furniture And Materials",ICT
Thanet District Council,13/09/2022,552945,2391,,Smi Int Group Ltd,SMI055,Dir Ops/Commercial Serv,Revenue,"Clothes, Uniforms & Laundry",CLOTHING
Thanet District Council,15/09/2022,552868,4754.5,,Acol Parish Council,ACO001,Director of Corporate Resources and S151,Balance Sheet,Collection Fund,VARIOUS CATS-PUBLIC SECTOR
Thanet District Council,15/09/2022,552868,135.5,,Acol Parish Council,ACO001,Dir Ops/Commercial Serv,Revenue,Other Local Authorities,VARIOUS CATS-PUBLIC SECTOR
Thanet District Council,15/09/2022,553665,56018.95,,Aj Cordon & Jo Everist Ips Re Dcb (Kent) Ltd,COR027,Director of Corporate Resources and S151,Balance Sheet,Repairs And Mtce Holding A/C,CONSTRUCTION-REPAIR AND MAINT
Thanet District Council,15/09/2022,553666,2559.98,,Aj Cordon & Jo Everist Ips Re Dcb (Kent) Ltd,COR027,Director of Corporate Resources and S151,Balance Sheet,Repairs And Mtce Holding A/C,CONSTRUCTION-REPAIR AND MAINT
Thanet District Council,15/09/2022,553668,18538.04,,Aj Cordon & Jo Everist Ips Re Dcb (Kent) Ltd,COR027,Director of Corporate Resources and S151,Balance Sheet,Repairs And Mtce Holding A/C,CONSTRUCTION-REPAIR AND MAINT
Thanet District Council,15/09/2022,553121,1491.48,,Ashford Borough Council,ASH001,Dir Ops/Commercial Serv,Revenue,Grants & Subscriptions,VARIOUS CATS-PUBLIC SECTOR
Thanet District Council,15/09/2022,552869,68888.5,,Birchington Parish Council,BIR001,Director of Corporate Resources and S151,Balance Sheet,Collection Fund,VARIOUS CATS-PUBLIC SECTOR
Thanet District Council,15/09/2022,553918,2016,,Blaze Signs Ltd,BLA012,Dir Ops/Commercial Serv,Revenue,"Repairs, Alter & Mtce - Build",BUILDING CONSTRUCTION MATERIAL
Thanet District Council,15/09/2022,553990,2500,,Bond Turner Client Account,BON100,Deputy Chief Executive/S151,Revenue,Other Transfer Payments,NON TRADE PAYEE
Thanet District Council,15/09/2022,553971,3283,,Broadstairs Gas Services Ltd,BRO083,Director of Corporate Resources and S151,Balance Sheet,Capital Exp-Non Council Assets,GRANTS
Thanet District Council,15/09/2022,552871,346862,,Broadstairs & St Peters Town Council,BRO005,Director of Corporate Resources and S151,Balance Sheet,Collection Fund,VARIOUS CATS-PUBLIC SECTOR
Thanet District Council,15/09/2022,553919,731.5,,Capita Business Services Ltd,CAP001,Deputy Chief Executive/S151,Revenue,Communications & Computing,HUMAN RESOURCES
Thanet District Council,15/09/2022,553476,1813951.99,,Civica Uk Ltd,CIV003,East Kent Shared Services,Revenue,Private Contractors,ICT
Thanet District Council,15/09/2022,552872,8695.5,,Cliffsend Parish Council,CLI015,Director of Corporate Resources and S151,Balance Sheet,Collection Fund,VARIOUS CATS-PUBLIC SECTOR
Thanet District Council,15/09/2022,553071,798,,Disclosure And Barring Service,DIS017,Dir Ops/Commercial Serv,Revenue,"Equip, Furniture And Materials",HUMAN RESOURCES
Thanet District Council,15/09/2022,553786,736.86,,Ecotricity Limited,ECO008,Deputy Chief Executive/S151,Revenue,Energy Costs,UTILITIES
Thanet District Council,15/09/2022,553066,560.66,,Elec-Sec Ltd,ELE014,Dir Ops/Commercial Serv,Revenue,Services,BUILDING CONSTRUCTION MATERIAL
Thanet District Council,15/09/2022,551076,2666.67,,Envirocure Ltd,ENV011,Director of Corporate Resources and S151,Balance Sheet,Repairs And Mtce Holding A/C,FACILITIES AND MANGEMENT SERV
Thanet District Council,15/09/2022,552507,15145,,Florence Court Hotel Ltd,FLO009,Deputy Chief Executive/S151,Revenue,Services,HOUSING MANAGEMENT
Thanet District Council,15/09/2022,552984,744,,Four Jays Ltd,FOU007,Dir Ops/Commercial Serv,Revenue,Services,ARTS AND LEISURE SERVICES
Thanet District Council,15/09/2022,552986,808,,Four Jays Ltd,FOU007,Dir Ops/Commercial Serv,Revenue,Services,ARTS AND LEISURE SERVICES
Thanet District Council,15/09/2022,552988,680,,Four Jays Ltd,FOU007,Dir Ops/Commercial Serv,Revenue,Services,ARTS AND LEISURE SERVICES
Thanet District Council,15/09/2022,552989,483,,Four Jays Ltd,FOU007,Dir Ops/Commercial Serv,Revenue,Services,ARTS AND LEISURE SERVICES
Thanet District Council,15/09/2022,552990,680,,Four Jays Ltd,FOU007,Dir Ops/Commercial Serv,Revenue,Services,ARTS AND LEISURE SERVICES
Thanet District Council,15/09/2022,552992,680,,Four Jays Ltd,FOU007,Dir Ops/Commercial Serv,Revenue,Services,ARTS AND LEISURE SERVICES
Thanet District Council,15/09/2022,552994,544,,Four Jays Ltd,FOU007,Dir Ops/Commercial Serv,Revenue,Services,ARTS AND LEISURE SERVICES
Thanet District Council,15/09/2022,553016,950,,Four Jays Ltd,FOU007,Dir Ops/Commercial Serv,Revenue,Services,ARTS AND LEISURE SERVICES
Thanet District Council,15/09/2022,553017,638,,Four Jays Ltd,FOU007,Dir Ops/Commercial Serv,Revenue,Services,ARTS AND LEISURE SERVICES
Thanet District Council,15/09/2022,553730,8138.68,,Gas Call Services Limited,GAS014,Director of Corporate Resources and S151,Balance Sheet,Repairs And Mtce Holding A/C,UTILITIES
Thanet District Council,15/09/2022,551142,550,,Gas Contract Services Ltd,GAS004,Director of Corporate Resources and S151,Balance Sheet,Repairs And Mtce Holding A/C,CONSTRUCTION-REPAIR AND MAINT
Thanet District Council,15/09/2022,553992,5171,,Hubbard & Houghton Construction Ltd,HUB003,Director of Corporate Resources and S151,Balance Sheet,Capital Exp-Non Council Assets,GRANTS
Thanet District Council,15/09/2022,553749,2000,,Independent Reviews Ltd,IND013,Deputy Chief Executive/S151,Revenue,Services,CONSULTANCY
Thanet District Council,15/09/2022,553973,2142.5,,John Gale,GAL001,Director of Corporate Resources and S151,Balance Sheet,Capital Exp-Non Council Assets,GRANTS
Thanet District Council,15/09/2022,553707,300000,,Kent County Council,KCC032,Director of Corporate Resources and S151,Balance Sheet,Capital Exp-Non Council Assets,FINANCIAL SERVICES
Thanet District Council,15/09/2022,553966,600000,,Kent County Council,KCC032,Director of Corporate Resources and S151,Balance Sheet,Capital Exp-Non Council Assets,FINANCIAL SERVICES
Thanet District Council,15/09/2022,553957,2149,,Lanes (South East) Ltd,LAN033,Director Of Corp Gov/Mon Off,Revenue,Services,FACILITIES AND MANGEMENT SERV
Thanet District Council,15/09/2022,552873,10497.5,,Manston Parish Council,MAN001,Director of Corporate Resources and S151,Balance Sheet,Collection Fund,VARIOUS CATS-PUBLIC SECTOR
Thanet District Council,15/09/2022,552873,866.5,,Manston Parish Council,MAN001,Dir Ops/Commercial Serv,Revenue,Other Local Authorities,VARIOUS CATS-PUBLIC SECTOR
Thanet District Council,15/09/2022,552874,70674.5,,Margate Charter Trustees,MCT001,Director of Corporate Resources and S151,Balance Sheet,Collection Fund,VARIOUS CATS-PUBLIC SECTOR
Thanet District Council,15/09/2022,553006,1547.14,,Mark One Hire Ltd,MAR121,Dir Ops/Commercial Serv,Revenue,"Equip, Furniture And Materials",HORTICULTURAL
Thanet District Council,15/09/2022,553677,550,,Med Clean South Ltd,MED015,Dir Ops/Commercial Serv,Revenue,"Repairs, Alter & Mtce - Build",CLEANING AND JANITORIAL
Thanet District Council,15/09/2022,553723,8214.31,,Michael Page Int Recruitment Ltd,PAG008,Deputy Chief Executive/S151,Revenue,Agency Staff,HUMAN RESOURCES
Thanet District Council,15/09/2022,553896,3576,,Michael Page Int Recruitment Ltd,PAG008,Deputy Chief Executive/S151,Revenue,Agency Staff,HUMAN RESOURCES
Thanet District Council,15/09/2022,553897,1420.8,,Michael Page Int Recruitment Ltd,PAG008,Deputy Chief Executive/S151,Revenue,Agency Staff,HUMAN RESOURCES
Thanet District Council,15/09/2022,553898,732,,Michael Page Int Recruitment Ltd,PAG008,Deputy Chief Executive/S151,Revenue,Agency Staff,HUMAN RESOURCES
Thanet District Council,15/09/2022,553955,3159.35,,Michael Page Int Recruitment Ltd,PAG008,Deputy Chief Executive/S151,Revenue,Agency Staff,HUMAN RESOURCES
Thanet District Council,15/09/2022,552875,44022,,Minster Parish Council,MIN001,Director of Corporate Resources and S151,Balance Sheet,Collection Fund,VARIOUS CATS-PUBLIC SECTOR
Thanet District Council,15/09/2022,552875,10142,,Minster Parish Council,MIN001,Dir Ops/Commercial Serv,Revenue,Other Local Authorities,VARIOUS CATS-PUBLIC SECTOR
Thanet District Council,15/09/2022,552968,743.75,,Modus Construction Consultants Ltd,MOD007,Director of Corporate Resources and S151,Balance Sheet,Other Land And Buildings-Hra,CONSULTANCY
Thanet District Council,15/09/2022,552876,7425.5,,Monkton Parish Council,MON001,Director of Corporate Resources and S151,Balance Sheet,Collection Fund,VARIOUS CATS-PUBLIC SECTOR
Thanet District Council,15/09/2022,552876,908.5,,Monkton Parish Council,MON001,Dir Ops/Commercial Serv,Revenue,Other Local Authorities,VARIOUS CATS-PUBLIC SECTOR
Thanet District Council,15/09/2022,553670,30630.27,,Nelson College London Limited,NEL002,Director Of Corp Gov/Mon Off,Revenue,Energy Costs,UTILITIES
Thanet District Council,15/09/2022,553440,2577.5,,Parity Projects Limited,PAR083,Deputy Chief Executive/S151,Revenue,Services,FACILITIES AND MANGEMENT SERV
Thanet District Council,15/09/2022,553480,750,,Paul Shadarevian,SHA031,Deputy Chief Executive/S151,Revenue,Services,HUMAN RESOURCES
Thanet District Council,15/09/2022,552818,1890,,Probe Limited,PRO040,Dir Ops/Commercial Serv,Revenue,Agency Staff,STREET AND TRAFFIC MANAGEMENT
Thanet District Council,15/09/2022,552877,480106,,Ramsgate Town Council,RAM031,Director of Corporate Resources and S151,Balance Sheet,Collection Fund,VARIOUS CATS-PUBLIC SECTOR
Thanet District Council,15/09/2022,553671,67704,,Serveco Ltd,SER009,Deputy Chief Executive/S151,Revenue,Services,SPECIAL COMMUNITY CARE
Thanet District Council,15/09/2022,552878,12449.5,,St Nicholas At Wade & Sarre P Counc,STN001,Director of Corporate Resources and S151,Balance Sheet,Collection Fund,VARIOUS CATS-PUBLIC SECTOR
Thanet District Council,15/09/2022,552878,3947.5,,St Nicholas At Wade & Sarre P Counc,STN001,Dir Ops/Commercial Serv,Revenue,Other Local Authorities,VARIOUS CATS-PUBLIC SECTOR
Thanet District Council,15/09/2022,553567,1424.24,,The Oyster Partnership Ltd,OYS001,Director Of Corp Gov/Mon Off,Revenue,Services,HUMAN RESOURCES
Thanet District Council,15/09/2022,553976,10000,,Town & Country Housing,TOW009,Director of Corporate Resources and S151,Balance Sheet,Capital Exp-Non Council Assets,GRANTS
Thanet District Council,15/09/2022,552971,2699.12,,Tructyre Fleet Management Ltd,TRU015,Dir Ops/Commercial Serv,Revenue,Direct Transport Costs,VEHICLE MANAGEMENT
Thanet District Council,15/09/2022,553972,27852.5,,Trueden Disability Adaptations Ltd,TRU012,Director of Corporate Resources and S151,Balance Sheet,Capital Exp-Non Council Assets,GRANTS
Thanet District Council,15/09/2022,552879,80800,,Westgate On Sea Town Council,WES052,Director of Corporate Resources and S151,Balance Sheet,Collection Fund,VARIOUS CATS-PUBLIC SECTOR
Thanet District Council,16/09/2022,554112,19350,,Public Works Loan Board,PWL001,Director of Corporate Resources and S151,Balance Sheet,Debit Interest And Expenses,INVESTMENTS AND LOANS
Thanet District Council,16/09/2022,554102,-9306,,Secretary Of State,SEC003,Deputy Chief Executive/S151,Revenue,Revenue Financing,GOVERNMENT AGENCIES
Thanet District Council,16/09/2022,554102,923738,,Secretary Of State,SEC003,Director of Corporate Resources and S151,Balance Sheet,Collection Fund,GOVERNMENT AGENCIES
Thanet District Council,16/09/2022,554103,-9306,,Secretary Of State,SEC003,Deputy Chief Executive/S151,Revenue,Revenue Financing,GOVERNMENT AGENCIES
Thanet District Council,16/09/2022,554103,923738,,Secretary Of State,SEC003,Director of Corporate Resources and S151,Balance Sheet,Collection Fund,GOVERNMENT AGENCIES
Thanet District Council,20/09/2022,553885,486.77,,Breem Construction Limited,BRE028,Director of Corporate Resources and S151,Balance Sheet,Repairs And Mtce Holding A/C,FINANCIAL SERVICES
Thanet District Council,20/09/2022,553637,426.45,,Canon (Uk) Ltd,CAN021,Deputy Chief Executive/S151,Revenue,"Equip, Furniture And Materials",FACILITIES AND MANGEMENT SERV
Thanet District Council,20/09/2022,553823,806.14,,Canon (Uk) Ltd,CAN021,Director Of Corp Gov/Mon Off,Revenue,"Equip, Furniture And Materials",FACILITIES AND MANGEMENT SERV
Thanet District Council,20/09/2022,553823,109.08,,Canon (Uk) Ltd,CAN021,Dir Ops/Commercial Serv,Revenue,"Equip, Furniture And Materials",FACILITIES AND MANGEMENT SERV
Thanet District Council,20/09/2022,553825,843.15,,Canon (Uk) Ltd,CAN021,Director Of Corp Gov/Mon Off,Revenue,"Equip, Furniture And Materials",FACILITIES AND MANGEMENT SERV
Thanet District Council,20/09/2022,553825,685.38,,Canon (Uk) Ltd,CAN021,Dir Ops/Commercial Serv,Revenue,"Equip, Furniture And Materials",FACILITIES AND MANGEMENT SERV
Thanet District Council,20/09/2022,553920,11000,,Capita Business Services Ltd,CAP001,Deputy Chief Executive/S151,Revenue,Communications & Computing,HUMAN RESOURCES
Thanet District Council,20/09/2022,553701,590,,Ceas Kent Ltd,CEA001,Dir Ops/Commercial Serv,Revenue,"Repairs, Alter & Mtce - Build",FACILITIES AND MANGEMENT SERV
Thanet District Council,20/09/2022,553754,18628.78,,Cloud Technology Solutions Ltd,CLO006,Deputy Chief Executive/S151,Revenue,Communications & Computing,ICT
Thanet District Council,20/09/2022,553960,1545.6,,Dds (International) Limited,DDS002,Director of Corporate Resources and S151,Balance Sheet,Repairs And Mtce Holding A/C,CONSULTANCY
Thanet District Council,20/09/2022,553152,1071.59,,Dennis Eagle Ltd,DEN005,Dir Ops/Commercial Serv,Revenue,Direct Transport Costs,VEHICLE MANAGEMENT
Thanet District Council,20/09/2022,553903,15540,,Dover District Council,DOV001,East Kent Shared Services,Revenue,Services,VARIOUS CATS-PUBLIC SECTOR
